Workbook

Sheet Title
B2: Senate Bill 1 Grant Programs Emissions Calculator
B23: February 2022

Sheet Instructions
A1: The column titles for this worksheet are in row 2. They span cells A2. The data spans cells A3 through E43. There is information in every cell for column A through E inclusive. If you are not using a screen reader, you can press Alt + R, T for the Review Ribbon, Edit Comment to move to and open a Comment once you are on a cell with a Comment. When you are finished reading the Comment, press Escape to close the comment and return to the worksheet. If you are using the JAWS screen reader, press Ctrl + Shift + Apostrophe to get a list of Comments and their cell coordinates in the worksheet. Press Enter on the Comment you want to go to or Escape once you’ve read the Comment for a cell. You are returned to the workbook. Note that there is no keyboard command with JAWS to reread Comments or read Comments once you are on them in a cell. You must use the ability to list Comments in order to read them if you are using the JAWS screen reader.

Sheet 1) Project Information
A1: The column titles for this worksheet are in row 2. They span cells A2. The data spans cells A3 through AE41. There is information in every cell for column A through AE inclusive. If you are not using a screen reader, you can press Alt + R, T for the Review Ribbon, Edit Comment to move to and open a Comment once you are on a cell with a Comment. When you are finished reading the Comment, press Escape to close the comment and return to the worksheet. If you are using the JAWS screen reader, press Ctrl + Shift + Apostrophe to get a list of Comments and their cell coordinates in the worksheet. Press Enter on the Comment you want to go to or Escape once you’ve read the Comment for a cell. You are returned to the workbook. Note that there is no keyboard command with JAWS to reread Comments or read Comments once you are on them in a cell. You must use the ability to list Comments in order to read them if you are using the JAWS screen reader.
C2: District: | F2: HQ
P3: EA:
C4: PROJECT: | F4: Hypothetical Project | P4: PPNO:
C6: PROJECT DESCRIPTION: | F6: Hypothetical Project Description
C10: 1A | D10: PROJECT DATA | M10: 1C | N10: SYSTEM USAGE BY MODE | V10: 1D | W10: AVERAGE SPEED/FUEL CONSUMPTION
M12: Vehicle-Miles Traveled (Passenger Vehicles) | V12: Average Speed (Passenger Vehicles)
C13: Project Location (enter 1 for So. Cal., 2 for No. Cal., or 3 for rural)
P14: No Build | Q14: Build | Y14: No Build | Z14: Build
C15: Length of Construction Period (years) | N15: Base (Year 1) | P15: =AvgVMT1NB*(1-IF(G$31="", F$31, G$31)-IF(G$32="", F$32, G$32)) -> 0 | Q15: =AvgVMT1B*(1-IF(I$31="", H$31, I$31)-IF(I$32="", H$32, I$32)) -> 0 | W15: Base (Year 1)
N16: Forecast (Year 20) | P16: =AvgVMT20NB*(1-IF(G$31="", F$31, G$31)-IF(G$32="", F$32, G$32)) -> 0 | Q16: =AvgVMT20B*(1-IF(I$31="", H$31, I$31)-IF(I$32="", H$32, I$32)) -> 0 | W16: Forecast (Year 20)
M19: Vehicle-Miles Traveled (Trucks) | V19: Average Speed (Trucks)
C21: 1B | D21: HIGHWAY DATA | P21: No Build | Q21: Build | Y21: No Build | Z21: Build
N22: Base (Year 1) | P22: =AvgVMT1NB*IF(G$31="", F$31, G$31) -> 0 | Q22: =AvgVMT1B*IF(I$31="", H$31, I$31) -> 0 | W22: Base (Year 1)
N23: Forecast (Year 20) | P23: =AvgVMT20NB*IF(G$31="", F$31, G$31) -> 0 | Q23: =AvgVMT20B*IF(I$31="", H$31, I$31) -> 0 | W23: Forecast (Year 20)
C24: Average Daily Vehicle-Miles Traveled (VMT)
H25: No Build | I25: Build
E26: Base (Year 1) | M26: Service-Miles (Buses) | V26: Average Speed (Buses)
E27: Forecast (Year 20)
P28: No Build | Q28: Build | Y28: No Build | Z28: Build
C29: Percent of VMT | F29: No Build | H29: Build | N29: Base (Year 1) | P29: =AvgVMT1NB*IF(G$32="", F$32, G$32) -> 0 | Q29: =AvgVMT1B*IF(I$32="", H$32, I$32) -> 0 | W29: Base (Year 1)
F30: Default | G30: User Override | H30: Default | I30: User Override | N30: Forecast (Year 20) | P30: =AvgVMT20NB*IF(G$32="", F$32, G$32) -> 0 | Q30: =AvgVMT20B*IF(I$32="", H$32, I$32) -> 0 | W30: Forecast (Year 20)
D31: Percent Truck | F31: 0.09 | H31: =F31 -> 0.09
D32: Percent Bus | F32: 0 | H32: =F32 -> 0
M33: Ton-Miles (Freight Locomotives) | V33: Average Ton-Miles/Gallon (Freight Locomotive)
C35: Trip or Route Length (miles) | P35: No Build | Q35: Build | Y35: No Build | Z35: Build
H36: No Build | I36: Build | N36: Base (Year 1) | W36: Base (Year 1) | Y36: =FuelFreightRail -> 480 | Z36: =AvgTonMilesGal1NB -> 480
D37: Average Trip Length for Passenger Vehicles | I37: =TripLengPvNB -> 0 | N37: Forecast (Year 20) | W37: Forecast (Year 20) | Y37: =AvgTonMilesGal1NB -> 480 | Z37: =AvgTonMilesGal20NB -> 480
D38: Average Trip Length for Trucks | I38: =TripLengTruckNB -> 0
D39: Average Route Length for Buses | I39: =TripLengBusNB -> 0

Sheet 2) Results
A1: The column titles for this worksheet are in row 2. They span cells A2. The data spans cells A3 through M23. There is information in every cell for column A through M inclusive. If you are not using a screen reader, you can press Alt + R, T for the Review Ribbon, Edit Comment to move to and open a Comment once you are on a cell with a Comment. When you are finished reading the Comment, press Escape to close the comment and return to the worksheet. If you are using the JAWS screen reader, press Ctrl + Shift + Apostrophe to get a list of Comments and their cell coordinates in the worksheet. Press Enter on the Comment you want to go to or Escape once you’ve read the Comment for a cell. You are returned to the workbook. Note that there is no keyboard command with JAWS to reread Comments or read Comments once you are on them in a cell. You must use the ability to list Comments in order to read them if you are using the JAWS screen reader.
B2: District: | E2: ='1) Project Information'!F2 -> HQ
J3: EA: | K3: ='1) Project Information'!Q3 -> 0
B4: PROJECT: | E4: =ProjName -> Hypothetical Project | J4: PPNO: | K4: ='1) Project Information'!Q4 -> 0
D9: 2 | E9: INVESTMENT ANALYSIS
E10: SUMMARY RESULTS
H12: Short Tons | J12: Value (mil. $)
H13: Total Over | I13: Average | J13: Total Over | K13: Average
E14: EMISSIONS REDUCTION | H14: 20 Years | I14: Annual | J14: 20 Years | K14: Annual
E15: CO Emissions Saved | H15: =Emissions!Y46 -> 0 | I15: =H15/20 -> 0 | J15: =Emissions!AF46/1000000 ->  | K15: =J15/20 -> 
E16: CO2 Emissions Saved | H16: =Emissions!Z46 -> 0 | I16: 0 | J16: =Emissions!AG46/1000000 ->  | K16: =J16/20 -> 
E17: NOX Emissions Saved | H17: =Emissions!AA46 -> 0 | I17: 0 | J17: =Emissions!AH46/1000000 ->  | K17: =J17/20 -> 
E18: PM10 Emissions Saved | H18: =Emissions!AB46 -> 0 | I18: 0 | J18: =Emissions!AI46/1000000 ->  | K18: =J18/20 -> 
E19: PM2.5 Emissions Saved | H19: =Emissions!AE46 -> 0 | I19: 0
E20: SOX Emissions Saved | H20: =Emissions!AC46 -> 0 | I20: 0 | J20: =Emissions!AJ46/1000000 ->  | K20: =J20/20 -> 
E21: VOC Emissions Saved | H21: =Emissions!AD46 -> 0 | I21: 0 | J21: =Emissions!AK46/1000000 ->  | K21: =J21/20 -> 

Sheet Emissions
A1: The column titles for this worksheet are in row 2. They span cells A2. The data spans cells A3 through U139. There is information in every cell for column A through U inclusive. If you are not using a screen reader, you can press Alt + R, T for the Review Ribbon, Edit Comment to move to and open a Comment once you are on a cell with a Comment. When you are finished reading the Comment, press Escape to close the comment and return to the worksheet. If you are using the JAWS screen reader, press Ctrl + Shift + Apostrophe to get a list of Comments and their cell coordinates in the worksheet. Press Enter on the Comment you want to go to or Escape once you’ve read the Comment for a cell. You are returned to the workbook. Note that there is no keyboard command with JAWS to reread Comments or read Comments once you are on them in a cell. You must use the ability to list Comments in order to read them if you are using the JAWS screen reader. | B1: Emission Reductions
B3: This sheet calculates emissions reductions for pasenger vehicles, trucks, buses, and freight locomotives.
B5: Formulas:
B7: Passenger Vehicle Emissions = (Emission Factor)*(Passenger Vehicle VMT)*(Impacted Distance)*(20 Year Project Life) | K7: Bus Emissions=(Emission Factor)*(Bus VMT)*(Impacted Distance)*(20 Year Project Life)
B10: Truck Emissions=(Emission Factor)*(Truck VMT)*(Impacted Distance)*(20 Year Project Life) | K10: Freight Locomotive Emissions=(Emission Factor)*(Fuel Usage Factor)*(Freight Locomotive Ton-Miles)*(Impacted Distance)*(20 Year Project Life)
B15: A | C15: EMISSIONS CALCULATIONS | X15: B | Y15: SUMMARY OF EMISSION REDUCTION BENEFITS | AF15: SUMMARY OF EMISSION REDUCTION BENEFITS
B18: Passenger Vehicles
C20: ANNUAL VEH-MILES | E20: AVERAGE SPEED | G20: VOLUME | I20: TONS EMISSIONS SAVED | P20: DOLLARS EMISSIONS SAVED | Y20: TONS EMISSIONS SAVED | AF20: DOLLARS EMISSIONS SAVED
C21: (veh-miles/yr) | E21: (mph) | G21: (vehicles/yr) | I21: (tons/yr) | P21: (PV $/yr) | Y21: (tons/yr) | AF21: (PV $/yr)
B22: Year | X22: Year
C23: No Build | D23: Build | E23: No Build | F23: Build | G23: No Build | H23: Build | I23: CO | J23: CO2 | K23: NOX | L23: PM10 | M23: SOX | N23: VOC | O23: PM2.5 | P23: CO | Q23: CO2 | R23: NOX | S23: PM10 | T23: SOX | U23: VOC | Y23: CO | Z23: CO2 | AA23: NOX | AB23: PM10 | AC23: SOX | AD23: VOC | AE23: PM2.5 | AF23: CO | AG23: CO2 | AH23: NOX | AI23: PM10 | AJ23: SOX | AK23: VOC
B24: 1 | C24: =VMTPV1NB*AnnualFactor -> 0 | D24: =VMTPV1B*AnnualFactor -> 0 | E24: =AvgSpdPV1NB -> 0 | F24: =AvgSpdPV1B -> 0 | G24: =IFERROR(VMTPV1NB*AnnualFactor/TripLengPvNB, 0) -> 0 | H24: =IFERROR(VMTPV1B*AnnualFactor/TripLengPvB, 0) -> 0 | I24: =0.00000110231131*($C24*VLOOKUP($E24,EmAuto1,2)-$D24*VLOOKUP($F24,EmAuto1,2)+($G24-$H24)*VLOOKUP(0,EmAuto1,2)) -> 0 | J24: =0.00000110231131*($C24*VLOOKUP($E24,EmAuto1,3)-$D24*VLOOKUP($F24,EmAuto1,3)+($G24-$H24)*VLOOKUP(0,EmAuto1,3)) -> 0 | K24: =0.00000110231131*($C24*VLOOKUP($E24,EmAuto1,4)-$D24*VLOOKUP($F24,EmAuto1,4)+($G24-$H24)*VLOOKUP(0,EmAuto1,4)) -> 0 | L24: =0.00000110231131*($C24*VLOOKUP($E24,EmAuto1,5)-$D24*VLOOKUP($F24,EmAuto1,5)+($G24-$H24)*VLOOKUP(0,EmAuto1,5)) -> 0 | M24: =0.00000110231131*($C24*VLOOKUP($E24,EmAuto1,6)-$D24*VLOOKUP($F24,EmAuto1,6)+($G24-$H24)*VLOOKUP(0,EmAuto1,6)) -> 0 | N24: =0.00000110231131*($C24*VLOOKUP($E24,EmAuto1,7)-$D24*VLOOKUP($F24,EmAuto1,7)+($G24-$H24)*VLOOKUP(0,EmAuto1,7)) -> 0 | O24: =0.00000110231131*($C24*VLOOKUP($E24,EmAuto1,8)-$D24*VLOOKUP($F24,EmAuto1,8)+($G24-$H24)*VLOOKUP(0,EmAuto1,8)) -> 0 | P24: =I24*VLOOKUP(ProjLoc,EmCost,2)/(1+DiscRate)^($B24+Construct-1) ->  | Q24: =J24*VLOOKUP(ProjLoc,EmCost,3)*(1+CO2Uprater)^($B24+Construct-1)/(1+DiscRate)^($B24+Construct-1) ->  | R24: =K24*VLOOKUP(ProjLoc,EmCost,4)/(1+DiscRate)^($B24+Construct-1) ->  | S24: =L24*VLOOKUP(ProjLoc,EmCost,5)/(1+DiscRate)^($B24+Construct-1) ->  | T24: =M24*VLOOKUP(ProjLoc,EmCost,6)/(1+DiscRate)^($B24+Construct-1) ->  | U24: =N24*VLOOKUP(ProjLoc,EmCost,7)/(1+DiscRate)^($B24+Construct-1) ->  | X24: 1 | Y24: =I24+I55+I86+I117 -> 0 | Z24: 0 | AA24: 0 | AB24: 0 | AC24: 0 | AD24: 0 | AE24: 0
B25: 20 | C25: =VMTPV20NB*AnnualFactor -> 0 | D25: =VMTPV20B*AnnualFactor -> 0 | E25: =AvgSpdPV20NB -> 0 | F25: =AvgSpdPV20B -> 0 | G25: =IFERROR(VMTPV20NB*AnnualFactor/TripLengPvNB, 0) -> 0 | H25: =IFERROR(VMTPV20B*AnnualFactor/TripLengPvB, 0) -> 0 | I25: =0.00000110231131*($C25*VLOOKUP($E25,EmAuto20,2)-$D25*VLOOKUP($F25,EmAuto20,2)+($G25-$H25)*VLOOKUP(0,EmAuto20,2)) -> 0 | J25: =0.00000110231131*($C25*VLOOKUP($E25,EmAuto20,3)-$D25*VLOOKUP($F25,EmAuto20,3)+($G25-$H25)*VLOOKUP(0,EmAuto20,3)) -> 0 | K25: =0.00000110231131*($C25*VLOOKUP($E25,EmAuto20,4)-$D25*VLOOKUP($F25,EmAuto20,4)+($G25-$H25)*VLOOKUP(0,EmAuto20,4)) -> 0 | L25: =0.00000110231131*($C25*VLOOKUP($E25,EmAuto20,5)-$D25*VLOOKUP($F25,EmAuto20,5)+($G25-$H25)*VLOOKUP(0,EmAuto20,5)) -> 0 | M25: =0.00000110231131*($C25*VLOOKUP($E25,EmAuto20,6)-$D25*VLOOKUP($F25,EmAuto20,6)+($G25-$H25)*VLOOKUP(0,EmAuto20,6)) -> 0 | N25: =0.00000110231131*($C25*VLOOKUP($E25,EmAuto20,7)-$D25*VLOOKUP($F25,EmAuto20,7)+($G25-$H25)*VLOOKUP(0,EmAuto20,7)) -> 0 | O25: =0.00000110231131*($C25*VLOOKUP($E25,EmAuto20,8)-$D25*VLOOKUP($F25,EmAuto20,8)+($G25-$H25)*VLOOKUP(0,EmAuto20,8)) -> 0 | P25: =I25*VLOOKUP(ProjLoc,EmCost,2)/(1+DiscRate)^($B25+Construct-1) ->  | Q25: =J25*VLOOKUP(ProjLoc,EmCost,3)*(1+CO2Uprater)^($B25+Construct-1)/(1+DiscRate)^($B25+Construct-1) ->  | R25: =K25*VLOOKUP(ProjLoc,EmCost,4)/(1+DiscRate)^($B25+Construct-1) ->  | S25: =L25*VLOOKUP(ProjLoc,EmCost,5)/(1+DiscRate)^($B25+Construct-1) ->  | T25: =M25*VLOOKUP(ProjLoc,EmCost,6)/(1+DiscRate)^($B25+Construct-1) ->  | U25: =N25*VLOOKUP(ProjLoc,EmCost,7)/(1+DiscRate)^($B25+Construct-1) ->  | X25: 20 | Y25: 0 | Z25: 0 | AA25: 0 | AB25: 0 | AC25: 0 | AD25: 0 | AE25: 0
B27: 2 | C27: =TREND(C24:C25,B24:B25,B27) -> 0 | D27: =TREND(D24:D25,B24:B25,B27) -> 0 | E27: =TREND(E24:E25,B24:B25,B27) -> 0 | F27: =TREND(F24:F25,B24:B25,B27) -> 0 | G27: =TREND(G24:G25,B24:B25,B27) -> 0 | H27: =TREND(H24:H25,B24:B25,B27) -> 0 | I27: =0.00000110231131*($C27*VLOOKUP($E27,EmAuto1,2)-$D27*VLOOKUP($F27,EmAuto1,2)+($G27-$H27)*VLOOKUP(0,EmAuto1,2)) -> 0 | J27: =0.00000110231131*($C27*VLOOKUP($E27,EmAuto1,3)-$D27*VLOOKUP($F27,EmAuto1,3)+($G27-$H27)*VLOOKUP(0,EmAuto1,3)) -> 0 | K27: =0.00000110231131*($C27*VLOOKUP($E27,EmAuto1,4)-$D27*VLOOKUP($F27,EmAuto1,4)+($G27-$H27)*VLOOKUP(0,EmAuto1,4)) -> 0 | L27: =0.00000110231131*($C27*VLOOKUP($E27,EmAuto1,5)-$D27*VLOOKUP($F27,EmAuto1,5)+($G27-$H27)*VLOOKUP(0,EmAuto1,5)) -> 0 | M27: =0.00000110231131*($C27*VLOOKUP($E27,EmAuto1,6)-$D27*VLOOKUP($F27,EmAuto1,6)+($G27-$H27)*VLOOKUP(0,EmAuto1,6)) -> 0 | N27: =0.00000110231131*($C27*VLOOKUP($E27,EmAuto1,7)-$D27*VLOOKUP($F27,EmAuto1,7)+($G27-$H27)*VLOOKUP(0,EmAuto1,7)) -> 0 | O27: =0.00000110231131*($C27*VLOOKUP($E27,EmAuto1,8)-$D27*VLOOKUP($F27,EmAuto1,8)+($G27-$H27)*VLOOKUP(0,EmAuto1,8)) -> 0 | P27: =I27*VLOOKUP(ProjLoc,EmCost,2)/(1+DiscRate)^($B27+Construct-1) ->  | Q27: =J27*VLOOKUP(ProjLoc,EmCost,3)*(1+CO2Uprater)^($B27+Construct-1)/(1+DiscRate)^($B27+Construct-1) ->  | R27: =K27*VLOOKUP(ProjLoc,EmCost,4)/(1+DiscRate)^($B27+Construct-1) ->  | S27: =L27*VLOOKUP(ProjLoc,EmCost,5)/(1+DiscRate)^($B27+Construct-1) ->  | T27: =M27*VLOOKUP(ProjLoc,EmCost,6)/(1+DiscRate)^($B27+Construct-1) ->  | U27: =N27*VLOOKUP(ProjLoc,EmCost,7)/(1+DiscRate)^($B27+Construct-1) ->  | X27: 2 | Y27: =I27+I58+I89+I120 -> 0 | Z27: =J27+J58+J89+J120 -> 0 | AA27: =K27+K58+K89+K120 -> 0 | AB27: =L27+L58+L89+L120 -> 0 | AC27: =M27+M58+M89+M120 -> 0 | AD27: =N27+N58+N89+N120 -> 0 | AE27: =O27+O58+O89+O120 -> 0 | AF27: =P27+P58+P89+P120 ->  | AG27: =Q27+Q58+Q89+Q120 ->  | AH27: =R27+R58+R89+R120 ->  | AI27: =S27+S58+S89+S120 ->  | AJ27: =T27+T58+T89+T120 ->  | AK27: =U27+U58+U89+U120 -> 
B28: 3 | C28: =TREND(C24:C25,B24:B25,B28) -> 0 | D28: =TREND(D24:D25,B24:B25,B28) -> 0 | E28: =TREND(E24:E25,B24:B25,B28) -> 0 | F28: =TREND(F24:F25,B24:B25,B28) -> 0 | G28: =TREND(G24:G25,B24:B25,B28) -> 0 | H28: =TREND(H24:H25,B24:B25,B28) -> 0 | I28: 0 | J28: 0 | K28: 0 | L28: 0 | M28: 0 | N28: 0 | O28: 0 | X28: 3 | Y28: 0 | Z28: 0 | AA28: =K28+K59+K90+K121 -> 0 | AB28: 0 | AC28: 0 | AD28: 0 | AE28: 0
B29: 4 | C29: =TREND(C24:C25,B24:B25,B29) -> 0 | D29: =TREND(D24:D25,B24:B25,B29) -> 0 | E29: =TREND(E24:E25,B24:B25,B29) -> 0 | F29: =TREND(F24:F25,B24:B25,B29) -> 0 | G29: =TREND(G24:G25,B24:B25,B29) -> 0 | H29: =TREND(H24:H25,B24:B25,B29) -> 0 | I29: 0 | J29: 0 | K29: 0 | L29: 0 | M29: 0 | N29: 0 | O29: 0 | X29: 4 | Y29: 0 | Z29: 0 | AA29: 0 | AB29: 0 | AC29: 0 | AD29: 0 | AE29: 0
B30: 5 | C30: =TREND(C24:C25,B24:B25,B30) -> 0 | D30: =TREND(D24:D25,B24:B25,B30) -> 0 | E30: =TREND(E24:E25,B24:B25,B30) -> 0 | F30: =TREND(F24:F25,B24:B25,B30) -> 0 | G30: =TREND(G24:G25,B24:B25,B30) -> 0 | H30: =TREND(H24:H25,B24:B25,B30) -> 0 | I30: 0 | J30: 0 | K30: 0 | L30: 0 | M30: 0 | N30: 0 | O30: 0 | X30: 5 | Y30: 0 | Z30: 0 | AA30: 0 | AB30: 0 | AC30: 0 | AD30: 0 | AE30: 0
B31: 6 | C31: =TREND(C24:C25,B24:B25,B31) -> 0 | D31: =TREND(D24:D25,B24:B25,B31) -> 0 | E31: =TREND(E24:E25,B24:B25,B31) -> 0 | F31: =TREND(F24:F25,B24:B25,B31) -> 0 | G31: =TREND(G24:G25,B24:B25,B31) -> 0 | H31: =TREND(H24:H25,B24:B25,B31) -> 0 | I31: 0 | J31: 0 | K31: 0 | L31: 0 | M31: 0 | N31: 0 | O31: 0 | X31: 6 | Y31: 0 | Z31: 0 | AA31: 0 | AB31: 0 | AC31: 0 | AD31: 0 | AE31: 0
B32: 7 | C32: =TREND(C24:C25,B24:B25,B32) -> 0 | D32: =TREND(D24:D25,B24:B25,B32) -> 0 | E32: =TREND(E24:E25,B24:B25,B32) -> 0 | F32: =TREND(F24:F25,B24:B25,B32) -> 0 | G32: =TREND(G24:G25,B24:B25,B32) -> 0 | H32: =TREND(H24:H25,B24:B25,B32) -> 0 | I32: 0 | J32: 0 | K32: 0 | L32: 0 | M32: 0 | N32: 0 | O32: 0 | X32: 7 | Y32: 0 | Z32: 0 | AA32: 0 | AB32: 0 | AC32: 0 | AD32: 0 | AE32: 0
B33: 8 | C33: =TREND(C24:C25,B24:B25,B33) -> 0 | D33: =TREND(D24:D25,B24:B25,B33) -> 0 | E33: =TREND(E24:E25,B24:B25,B33) -> 0 | F33: =TREND(F24:F25,B24:B25,B33) -> 0 | G33: =TREND(G24:G25,B24:B25,B33) -> 0 | H33: =TREND(H24:H25,B24:B25,B33) -> 0 | I33: =0.00000110231131*($C33*VLOOKUP($E33,EmAuto20,2)-$D33*VLOOKUP($F33,EmAuto20,2)+($G33-$H33)*VLOOKUP(0,EmAuto20,2)) -> 0 | J33: =0.00000110231131*($C33*VLOOKUP($E33,EmAuto20,3)-$D33*VLOOKUP($F33,EmAuto20,3)+($G33-$H33)*VLOOKUP(0,EmAuto20,3)) -> 0 | K33: =0.00000110231131*($C33*VLOOKUP($E33,EmAuto20,4)-$D33*VLOOKUP($F33,EmAuto20,4)+($G33-$H33)*VLOOKUP(0,EmAuto20,4)) -> 0 | L33: =0.00000110231131*($C33*VLOOKUP($E33,EmAuto20,5)-$D33*VLOOKUP($F33,EmAuto20,5)+($G33-$H33)*VLOOKUP(0,EmAuto20,5)) -> 0 | M33: =0.00000110231131*($C33*VLOOKUP($E33,EmAuto20,6)-$D33*VLOOKUP($F33,EmAuto20,6)+($G33-$H33)*VLOOKUP(0,EmAuto20,6)) -> 0 | N33: =0.00000110231131*($C33*VLOOKUP($E33,EmAuto20,7)-$D33*VLOOKUP($F33,EmAuto20,7)+($G33-$H33)*VLOOKUP(0,EmAuto20,7)) -> 0 | O33: =0.00000110231131*($C33*VLOOKUP($E33,EmAuto20,8)-$D33*VLOOKUP($F33,EmAuto20,8)+($G33-$H33)*VLOOKUP(0,EmAuto20,8)) -> 0 | X33: 8 | Y33: 0 | Z33: 0 | AA33: 0 | AB33: 0 | AC33: 0 | AD33: 0 | AE33: 0
B34: 9 | C34: =TREND(C24:C25,B24:B25,B34) -> 0 | D34: =TREND(D24:D25,B24:B25,B34) -> 0 | E34: =TREND(E24:E25,B24:B25,B34) -> 0 | F34: =TREND(F24:F25,B24:B25,B34) -> 0 | G34: =TREND(G24:G25,B24:B25,B34) -> 0 | H34: =TREND(H24:H25,B24:B25,B34) -> 0 | I34: 0 | J34: 0 | K34: 0 | L34: 0 | M34: 0 | N34: 0 | O34: 0 | X34: 9 | Y34: 0 | Z34: 0 | AA34: 0 | AB34: 0 | AC34: 0 | AD34: 0 | AE34: 0
B35: 10 | C35: =TREND(C24:C25,B24:B25,B35) -> 0 | D35: =TREND(D24:D25,B24:B25,B35) -> 0 | E35: =TREND(E24:E25,B24:B25,B35) -> 0 | F35: =TREND(F24:F25,B24:B25,B35) -> 0 | G35: =TREND(G24:G25,B24:B25,B35) -> 0 | H35: =TREND(H24:H25,B24:B25,B35) -> 0 | I35: 0 | J35: 0 | K35: 0 | L35: 0 | M35: 0 | N35: 0 | O35: 0 | X35: 10 | Y35: 0 | Z35: 0 | AA35: 0 | AB35: 0 | AC35: 0 | AD35: 0 | AE35: 0
B36: 11 | C36: =TREND(C24:C25,B24:B25,B36) -> 0 | D36: =TREND(D24:D25,B24:B25,B36) -> 0 | E36: =TREND(E24:E25,B24:B25,B36) -> 0 | F36: =TREND(F24:F25,B24:B25,B36) -> 0 | G36: =TREND(G24:G25,B24:B25,B36) -> 0 | H36: =TREND(H24:H25,B24:B25,B36) -> 0 | I36: 0 | J36: 0 | K36: 0 | L36: 0 | M36: 0 | N36: 0 | O36: 0 | X36: 11 | Y36: 0 | Z36: 0 | AA36: 0 | AB36: 0 | AC36: 0 | AD36: 0 | AE36: 0
B37: 12 | C37: =TREND(C24:C25,B24:B25,B37) -> 0 | D37: =TREND(D24:D25,B24:B25,B37) -> 0 | E37: =TREND(E24:E25,B24:B25,B37) -> 0 | F37: =TREND(F24:F25,B24:B25,B37) -> 0 | G37: =TREND(G24:G25,B24:B25,B37) -> 0 | H37: =TREND(H24:H25,B24:B25,B37) -> 0 | I37: 0 | J37: 0 | K37: 0 | L37: 0 | M37: 0 | N37: 0 | O37: 0 | X37: 12 | Y37: 0 | Z37: 0 | AA37: 0 | AB37: 0 | AC37: 0 | AD37: 0 | AE37: 0
B38: 13 | C38: =TREND(C24:C25,B24:B25,B38) -> 0 | D38: =TREND(D24:D25,B24:B25,B38) -> 0 | E38: =TREND(E24:E25,B24:B25,B38) -> 0 | F38: =TREND(F24:F25,B24:B25,B38) -> 0 | G38: =TREND(G24:G25,B24:B25,B38) -> 0 | H38: =TREND(H24:H25,B24:B25,B38) -> 0 | I38: 0 | J38: 0 | K38: 0 | L38: 0 | M38: 0 | N38: 0 | O38: 0 | X38: 13 | Y38: 0 | Z38: 0 | AA38: 0 | AB38: 0 | AC38: 0 | AD38: 0 | AE38: 0
B39: 14 | C39: =TREND(C24:C25,B24:B25,B39) -> 0 | D39: =TREND(D24:D25,B24:B25,B39) -> 0 | E39: =TREND(E24:E25,B24:B25,B39) -> 0 | F39: =TREND(F24:F25,B24:B25,B39) -> 0 | G39: =TREND(G24:G25,B24:B25,B39) -> 0 | H39: =TREND(H24:H25,B24:B25,B39) -> 0 | I39: 0 | J39: 0 | K39: 0 | L39: 0 | M39: 0 | N39: 0 | O39: 0 | X39: 14 | Y39: 0 | Z39: 0 | AA39: 0 | AB39: 0 | AC39: 0 | AD39: 0 | AE39: 0
B40: 15 | C40: =TREND(C24:C25,B24:B25,B40) -> 0 | D40: =TREND(D24:D25,B24:B25,B40) -> 0 | E40: =TREND(E24:E25,B24:B25,B40) -> 0 | F40: =TREND(F24:F25,B24:B25,B40) -> 0 | G40: =TREND(G24:G25,B24:B25,B40) -> 0 | H40: =TREND(H24:H25,B24:B25,B40) -> 0 | I40: 0 | J40: 0 | K40: 0 | L40: 0 | M40: 0 | N40: 0 | O40: 0 | X40: 15 | Y40: 0 | Z40: 0 | AA40: 0 | AB40: 0 | AC40: 0 | AD40: 0 | AE40: 0
B41: 16 | C41: =TREND(C24:C25,B24:B25,B41) -> 0 | D41: =TREND(D24:D25,B24:B25,B41) -> 0 | E41: =TREND(E24:E25,B24:B25,B41) -> 0 | F41: =TREND(F24:F25,B24:B25,B41) -> 0 | G41: =TREND(G24:G25,B24:B25,B41) -> 0 | H41: =TREND(H24:H25,B24:B25,B41) -> 0 | I41: 0 | J41: 0 | K41: 0 | L41: 0 | M41: 0 | N41: 0 | O41: 0 | X41: 16 | Y41: 0 | Z41: 0 | AA41: 0 | AB41: 0 | AC41: 0 | AD41: 0 | AE41: 0
B42: 17 | C42: =TREND(C24:C25,B24:B25,B42) -> 0 | D42: =TREND(D24:D25,B24:B25,B42) -> 0 | E42: =TREND(E24:E25,B24:B25,B42) -> 0 | F42: =TREND(F24:F25,B24:B25,B42) -> 0 | G42: =TREND(G24:G25,B24:B25,B42) -> 0 | H42: =TREND(H24:H25,B24:B25,B42) -> 0 | I42: 0 | J42: 0 | K42: 0 | L42: 0 | M42: 0 | N42: 0 | O42: 0 | X42: 17 | Y42: 0 | Z42: 0 | AA42: 0 | AB42: 0 | AC42: 0 | AD42: 0 | AE42: 0
B43: 18 | C43: =TREND(C24:C25,B24:B25,B43) -> 0 | D43: =TREND(D24:D25,B24:B25,B43) -> 0 | E43: =TREND(E24:E25,B24:B25,B43) -> 0 | F43: =TREND(F24:F25,B24:B25,B43) -> 0 | G43: =TREND(G24:G25,B24:B25,B43) -> 0 | H43: =TREND(H24:H25,B24:B25,B43) -> 0 | I43: 0 | J43: 0 | K43: 0 | L43: 0 | M43: 0 | N43: 0 | O43: 0 | X43: 18 | Y43: 0 | Z43: 0 | AA43: 0 | AB43: 0 | AC43: 0 | AD43: 0 | AE43: 0
B44: 19 | C44: =TREND(C24:C25,B24:B25,B44) -> 0 | D44: =TREND(D24:D25,B24:B25,B44) -> 0 | E44: =TREND(E24:E25,B24:B25,B44) -> 0 | F44: =TREND(F24:F25,B24:B25,B44) -> 0 | G44: =TREND(G24:G25,B24:B25,B44) -> 0 | H44: =TREND(H24:H25,B24:B25,B44) -> 0 | I44: 0 | J44: 0 | K44: 0 | L44: 0 | M44: 0 | N44: 0 | O44: 0 | X44: 19 | Y44: 0 | Z44: 0 | AA44: 0 | AB44: 0 | AC44: 0 | AD44: 0 | AE44: 0
B46: Total | I46: =SUM(I24:I44) -> 0 | J46: =SUM(J24:J44) -> 0 | K46: =SUM(K24:K44) -> 0 | L46: =SUM(L24:L44) -> 0 | M46: 0 | N46: =SUM(N24:N44) -> 0 | O46: 0 | P46: =SUM(P24:P44) ->  | X46: Total | Y46: =I46+I77+I108+I139 -> 0 | Z46: 0 | AA46: 0 | AB46: 0 | AC46: 0 | AD46: 0 | AE46: 0
B49: Trucks
C51: ANNUAL VEH-MILES | E51: AVERAGE SPEED | G51: VOLUME | I51: TONS EMISSIONS SAVED | P51: DOLLARS EMISSIONS SAVED
C52: (veh-miles/yr) | E52: (mph) | G52: (vehicles/yr) | I52: (tons/yr) | P52: (PV $/yr)
B53: Year
C54: No Build | D54: Build | E54: No Build | F54: Build | G54: No Build | H54: Build | I54: CO | J54: CO2 | K54: NOX | L54: PM10 | M54: SOX | N54: VOC | O54: PM2.5 | P54: CO | Q54: CO2 | R54: NOX | S54: PM10 | T54: SOX | U54: VOC
B55: 1 | C55: =VMTTruck1NB*AnnualFactor -> 0 | D55: =VMTTruck1B*AnnualFactor -> 0 | E55: =AvgSpdTruck1NB -> 0 | F55: =AvgSpdTruck1B -> 0 | G55: =IFERROR(VMTTruck1NB*AnnualFactor/TripLengTruckNB,0) -> 0 | H55: =IFERROR(VMTTruck1B*AnnualFactor/TripLengTruckB, 0) -> 0 | I55: =0.00000110231131*($C55*VLOOKUP($E55,EmTruck1,2)-$D55*VLOOKUP($F55,EmTruck1,2)+($G55-$H55)*VLOOKUP(0,EmTruck1,2)) -> 0 | J55: =0.00000110231131*($C55*VLOOKUP($E55,EmTruck1,3)-$D55*VLOOKUP($F55,EmTruck1,3)+($G55-$H55)*VLOOKUP(0,EmTruck1,3)) -> 0 | K55: =0.00000110231131*($C55*VLOOKUP($E55,EmTruck1,4)-$D55*VLOOKUP($F55,EmTruck1,4)+($G55-$H55)*VLOOKUP(0,EmTruck1,4)) -> 0 | L55: =0.00000110231131*($C55*VLOOKUP($E55,EmTruck1,5)-$D55*VLOOKUP($F55,EmTruck1,5)+($G55-$H55)*VLOOKUP(0,EmTruck1,5)) -> 0 | M55: =0.00000110231131*($C55*VLOOKUP($E55,EmTruck1,6)-$D55*VLOOKUP($F55,EmTruck1,6)+($G55-$H55)*VLOOKUP(0,EmTruck1,6)) -> 0 | N55: =0.00000110231131*($C55*VLOOKUP($E55,EmTruck1,7)-$D55*VLOOKUP($F55,EmTruck1,7)+($G55-$H55)*VLOOKUP(0,EmTruck1,7)) -> 0 | O55: =0.00000110231131*($C55*VLOOKUP($E55,EmTruck1,8)-$D55*VLOOKUP($F55,EmTruck1,8)+($G55-$H55)*VLOOKUP(0,EmTruck1,8)) -> 0 | P55: =I55*VLOOKUP(ProjLoc,EmCost,2)/(1+DiscRate)^($B55+Construct-1) ->  | Q55: =J55*VLOOKUP(ProjLoc,EmCost,3)*(1+CO2Uprater)^($B55+Construct-1)/(1+DiscRate)^($B55+Construct-1) ->  | R55: =K55*VLOOKUP(ProjLoc,EmCost,4)/(1+DiscRate)^($B55+Construct-1) ->  | S55: =L55*VLOOKUP(ProjLoc,EmCost,5)/(1+DiscRate)^($B55+Construct-1) ->  | T55: =M55*VLOOKUP(ProjLoc,EmCost,6)/(1+DiscRate)^($B55+Construct-1) ->  | U55: =N55*VLOOKUP(ProjLoc,EmCost,7)/(1+DiscRate)^($B55+Construct-1) -> 
B56: 20 | C56: =VMTTruck20NB*AnnualFactor -> 0 | D56: =VMTTruck20B*AnnualFactor -> 0 | E56: =AvgSpdTruck20NB -> 0 | F56: =AvgSpdTruck20B -> 0 | G56: =IFERROR(VMTTruck20NB*AnnualFactor/TripLengTruckNB, 0) -> 0 | H56: =IFERROR(VMTTruck20B*AnnualFactor/TripLengTruckB, 0) -> 0 | I56: =0.00000110231131*($C56*VLOOKUP($E56,EmTruck20,2)-$D56*VLOOKUP($F56,EmTruck20,2)+($G56-$H56)*VLOOKUP(0,EmTruck20,2)) -> 0 | J56: =0.00000110231131*($C56*VLOOKUP($E56,EmTruck20,3)-$D56*VLOOKUP($F56,EmTruck20,3)+($G56-$H56)*VLOOKUP(0,EmTruck20,3)) -> 0 | K56: =0.00000110231131*($C56*VLOOKUP($E56,EmTruck20,4)-$D56*VLOOKUP($F56,EmTruck20,4)+($G56-$H56)*VLOOKUP(0,EmTruck20,4)) -> 0 | L56: =0.00000110231131*($C56*VLOOKUP($E56,EmTruck20,5)-$D56*VLOOKUP($F56,EmTruck20,5)+($G56-$H56)*VLOOKUP(0,EmTruck20,5)) -> 0 | M56: =0.00000110231131*($C56*VLOOKUP($E56,EmTruck20,6)-$D56*VLOOKUP($F56,EmTruck20,6)+($G56-$H56)*VLOOKUP(0,EmTruck20,6)) -> 0 | N56: =0.00000110231131*($C56*VLOOKUP($E56,EmTruck20,7)-$D56*VLOOKUP($F56,EmTruck20,7)+($G56-$H56)*VLOOKUP(0,EmTruck20,7)) -> 0 | O56: =0.00000110231131*($C56*VLOOKUP($E56,EmTruck20,8)-$D56*VLOOKUP($F56,EmTruck20,8)+($G56-$H56)*VLOOKUP(0,EmTruck20,8)) -> 0 | P56: =I56*VLOOKUP(ProjLoc,EmCost,2)/(1+DiscRate)^($B56+Construct-1) ->  | Q56: =J56*VLOOKUP(ProjLoc,EmCost,3)*(1+CO2Uprater)^($B56+Construct-1)/(1+DiscRate)^($B56+Construct-1) ->  | R56: =K56*VLOOKUP(ProjLoc,EmCost,4)/(1+DiscRate)^($B56+Construct-1) ->  | S56: =L56*VLOOKUP(ProjLoc,EmCost,5)/(1+DiscRate)^($B56+Construct-1) ->  | T56: =M56*VLOOKUP(ProjLoc,EmCost,6)/(1+DiscRate)^($B56+Construct-1) ->  | U56: =N56*VLOOKUP(ProjLoc,EmCost,7)/(1+DiscRate)^($B56+Construct-1) -> 
B58: 2 | C58: =TREND(C55:C56,B55:B56,B58) -> 0 | D58: =TREND(D55:D56,B55:B56,B58) -> 0 | E58: =TREND(E55:E56,B55:B56,B58) -> 0 | F58: =TREND(F55:F56,B55:B56,B58) -> 0 | G58: =TREND(G55:G56,B55:B56,B58) -> 0 | H58: =TREND(H55:H56,B55:B56,B58) -> 0 | I58: =0.00000110231131*($C58*VLOOKUP($E58,EmTruck1,2)-$D58*VLOOKUP($F58,EmTruck1,2)+($G58-$H58)*VLOOKUP(0,EmTruck1,2)) -> 0 | J58: =0.00000110231131*($C58*VLOOKUP($E58,EmTruck1,3)-$D58*VLOOKUP($F58,EmTruck1,3)+($G58-$H58)*VLOOKUP(0,EmTruck1,3)) -> 0 | K58: =0.00000110231131*($C58*VLOOKUP($E58,EmTruck1,4)-$D58*VLOOKUP($F58,EmTruck1,4)+($G58-$H58)*VLOOKUP(0,EmTruck1,4)) -> 0 | L58: =0.00000110231131*($C58*VLOOKUP($E58,EmTruck1,5)-$D58*VLOOKUP($F58,EmTruck1,5)+($G58-$H58)*VLOOKUP(0,EmTruck1,5)) -> 0 | M58: =0.00000110231131*($C58*VLOOKUP($E58,EmTruck1,6)-$D58*VLOOKUP($F58,EmTruck1,6)+($G58-$H58)*VLOOKUP(0,EmTruck1,6)) -> 0 | N58: =0.00000110231131*($C58*VLOOKUP($E58,EmTruck1,7)-$D58*VLOOKUP($F58,EmTruck1,7)+($G58-$H58)*VLOOKUP(0,EmTruck1,7)) -> 0 | O58: =0.00000110231131*($C58*VLOOKUP($E58,EmTruck1,8)-$D58*VLOOKUP($F58,EmTruck1,8)+($G58-$H58)*VLOOKUP(0,EmTruck1,8)) -> 0 | P58: =I58*VLOOKUP(ProjLoc,EmCost,2)/(1+DiscRate)^($B58+Construct-1) ->  | Q58: =J58*VLOOKUP(ProjLoc,EmCost,3)*(1+CO2Uprater)^($B58+Construct-1)/(1+DiscRate)^($B58+Construct-1) ->  | R58: =K58*VLOOKUP(ProjLoc,EmCost,4)/(1+DiscRate)^($B58+Construct-1) ->  | S58: =L58*VLOOKUP(ProjLoc,EmCost,5)/(1+DiscRate)^($B58+Construct-1) ->  | T58: =M58*VLOOKUP(ProjLoc,EmCost,6)/(1+DiscRate)^($B58+Construct-1) ->  | U58: =N58*VLOOKUP(ProjLoc,EmCost,7)/(1+DiscRate)^($B58+Construct-1) -> 
B59: 3 | C59: =TREND(C55:C56,B55:B56,B59) -> 0 | D59: =TREND(D55:D56,B55:B56,B59) -> 0 | E59: =TREND(E55:E56,B55:B56,B59) -> 0 | F59: =TREND(F55:F56,B55:B56,B59) -> 0 | G59: =TREND(G55:G56,B55:B56,B59) -> 0 | H59: =TREND(H55:H56,B55:B56,B59) -> 0 | I59: 0 | J59: 0 | K59: 0 | L59: 0 | M59: 0 | N59: 0 | O59: 0
B60: 4 | C60: =TREND(C55:C56,B55:B56,B60) -> 0 | D60: =TREND(D55:D56,B55:B56,B60) -> 0 | E60: =TREND(E55:E56,B55:B56,B60) -> 0 | F60: =TREND(F55:F56,B55:B56,B60) -> 0 | G60: =TREND(G55:G56,B55:B56,B60) -> 0 | H60: =TREND(H55:H56,B55:B56,B60) -> 0 | I60: 0 | J60: 0 | K60: 0 | L60: 0 | M60: 0 | N60: 0 | O60: 0
B61: 5 | C61: =TREND(C55:C56,B55:B56,B61) -> 0 | D61: =TREND(D55:D56,B55:B56,B61) -> 0 | E61: =TREND(E55:E56,B55:B56,B61) -> 0 | F61: =TREND(F55:F56,B55:B56,B61) -> 0 | G61: =TREND(G55:G56,B55:B56,B61) -> 0 | H61: =TREND(H55:H56,B55:B56,B61) -> 0 | I61: 0 | J61: 0 | K61: 0 | L61: 0 | M61: 0 | N61: 0 | O61: 0
B62: 6 | C62: =TREND(C55:C56,B55:B56,B62) -> 0 | D62: =TREND(D55:D56,B55:B56,B62) -> 0 | E62: =TREND(E55:E56,B55:B56,B62) -> 0 | F62: =TREND(F55:F56,B55:B56,B62) -> 0 | G62: =TREND(G55:G56,B55:B56,B62) -> 0 | H62: =TREND(H55:H56,B55:B56,B62) -> 0 | I62: 0 | J62: 0 | K62: 0 | L62: 0 | M62: 0 | N62: 0 | O62: 0
B63: 7 | C63: =TREND(C55:C56,B55:B56,B63) -> 0 | D63: =TREND(D55:D56,B55:B56,B63) -> 0 | E63: =TREND(E55:E56,B55:B56,B63) -> 0 | F63: =TREND(F55:F56,B55:B56,B63) -> 0 | G63: =TREND(G55:G56,B55:B56,B63) -> 0 | H63: =TREND(H55:H56,B55:B56,B63) -> 0 | I63: 0 | J63: 0 | K63: 0 | L63: 0 | M63: 0 | N63: 0 | O63: 0
B64: 8 | C64: =TREND(C55:C56,B55:B56,B64) -> 0 | D64: =TREND(D55:D56,B55:B56,B64) -> 0 | E64: =TREND(E55:E56,B55:B56,B64) -> 0 | F64: =TREND(F55:F56,B55:B56,B64) -> 0 | G64: =TREND(G55:G56,B55:B56,B64) -> 0 | H64: =TREND(H55:H56,B55:B56,B64) -> 0 | I64: =0.00000110231131*($C64*VLOOKUP($E64,EmTruck20,2)-$D64*VLOOKUP($F64,EmTruck20,2)+($G64-$H64)*VLOOKUP(0,EmTruck20,2)) -> 0 | J64: =0.00000110231131*($C64*VLOOKUP($E64,EmTruck20,3)-$D64*VLOOKUP($F64,EmTruck20,3)+($G64-$H64)*VLOOKUP(0,EmTruck20,3)) -> 0 | K64: =0.00000110231131*($C64*VLOOKUP($E64,EmTruck20,4)-$D64*VLOOKUP($F64,EmTruck20,4)+($G64-$H64)*VLOOKUP(0,EmTruck20,4)) -> 0 | L64: =0.00000110231131*($C64*VLOOKUP($E64,EmTruck20,5)-$D64*VLOOKUP($F64,EmTruck20,5)+($G64-$H64)*VLOOKUP(0,EmTruck20,5)) -> 0 | M64: =0.00000110231131*($C64*VLOOKUP($E64,EmTruck20,6)-$D64*VLOOKUP($F64,EmTruck20,6)+($G64-$H64)*VLOOKUP(0,EmTruck20,6)) -> 0 | N64: =0.00000110231131*($C64*VLOOKUP($E64,EmTruck20,7)-$D64*VLOOKUP($F64,EmTruck20,7)+($G64-$H64)*VLOOKUP(0,EmTruck20,7)) -> 0 | O64: =0.00000110231131*($C64*VLOOKUP($E64,EmTruck20,8)-$D64*VLOOKUP($F64,EmTruck20,8)+($G64-$H64)*VLOOKUP(0,EmTruck20,8)) -> 0
B65: 9 | C65: =TREND(C55:C56,B55:B56,B65) -> 0 | D65: =TREND(D55:D56,B55:B56,B65) -> 0 | E65: =TREND(E55:E56,B55:B56,B65) -> 0 | F65: =TREND(F55:F56,B55:B56,B65) -> 0 | G65: =TREND(G55:G56,B55:B56,B65) -> 0 | H65: =TREND(H55:H56,B55:B56,B65) -> 0 | I65: 0 | J65: 0 | K65: 0 | L65: 0 | M65: 0 | N65: =0.00000110231131*($C65*VLOOKUP($E65,EmTruck20,7)-$D65*VLOOKUP($F65,EmTruck20,7)+($G65-$H65)*VLOOKUP(0,EmTruck20,7)) -> 0 | O65: 0
B66: 10 | C66: =TREND(C55:C56,B55:B56,B66) -> 0 | D66: =TREND(D55:D56,B55:B56,B66) -> 0 | E66: =TREND(E55:E56,B55:B56,B66) -> 0 | F66: =TREND(F55:F56,B55:B56,B66) -> 0 | G66: =TREND(G55:G56,B55:B56,B66) -> 0 | H66: =TREND(H55:H56,B55:B56,B66) -> 0 | I66: 0 | J66: 0 | K66: 0 | L66: 0 | M66: 0 | N66: 0 | O66: 0
B67: 11 | C67: =TREND(C55:C56,B55:B56,B67) -> 0 | D67: =TREND(D55:D56,B55:B56,B67) -> 0 | E67: =TREND(E55:E56,B55:B56,B67) -> 0 | F67: =TREND(F55:F56,B55:B56,B67) -> 0 | G67: =TREND(G55:G56,B55:B56,B67) -> 0 | H67: =TREND(H55:H56,B55:B56,B67) -> 0 | I67: 0 | J67: 0 | K67: 0 | L67: 0 | M67: 0 | N67: 0 | O67: 0
B68: 12 | C68: =TREND(C55:C56,B55:B56,B68) -> 0 | D68: =TREND(D55:D56,B55:B56,B68) -> 0 | E68: =TREND(E55:E56,B55:B56,B68) -> 0 | F68: =TREND(F55:F56,B55:B56,B68) -> 0 | G68: =TREND(G55:G56,B55:B56,B68) -> 0 | H68: =TREND(H55:H56,B55:B56,B68) -> 0 | I68: 0 | J68: 0 | K68: 0 | L68: 0 | M68: 0 | N68: 0 | O68: 0
B69: 13 | C69: =TREND(C55:C56,B55:B56,B69) -> 0 | D69: =TREND(D55:D56,B55:B56,B69) -> 0 | E69: =TREND(E55:E56,B55:B56,B69) -> 0 | F69: =TREND(F55:F56,B55:B56,B69) -> 0 | G69: =TREND(G55:G56,B55:B56,B69) -> 0 | H69: =TREND(H55:H56,B55:B56,B69) -> 0 | I69: 0 | J69: 0 | K69: 0 | L69: 0 | M69: 0 | N69: 0 | O69: 0
B70: 14 | C70: =TREND(C55:C56,B55:B56,B70) -> 0 | D70: =TREND(D55:D56,B55:B56,B70) -> 0 | E70: =TREND(E55:E56,B55:B56,B70) -> 0 | F70: =TREND(F55:F56,B55:B56,B70) -> 0 | G70: =TREND(G55:G56,B55:B56,B70) -> 0 | H70: =TREND(H55:H56,B55:B56,B70) -> 0 | I70: 0 | J70: 0 | K70: 0 | L70: 0 | M70: 0 | N70: 0 | O70: 0
B71: 15 | C71: =TREND(C55:C56,B55:B56,B71) -> 0 | D71: =TREND(D55:D56,B55:B56,B71) -> 0 | E71: =TREND(E55:E56,B55:B56,B71) -> 0 | F71: =TREND(F55:F56,B55:B56,B71) -> 0 | G71: =TREND(G55:G56,B55:B56,B71) -> 0 | H71: =TREND(H55:H56,B55:B56,B71) -> 0 | I71: 0 | J71: 0 | K71: 0 | L71: 0 | M71: 0 | N71: 0 | O71: 0
B72: 16 | C72: =TREND(C55:C56,B55:B56,B72) -> 0 | D72: =TREND(D55:D56,B55:B56,B72) -> 0 | E72: =TREND(E55:E56,B55:B56,B72) -> 0 | F72: =TREND(F55:F56,B55:B56,B72) -> 0 | G72: =TREND(G55:G56,B55:B56,B72) -> 0 | H72: =TREND(H55:H56,B55:B56,B72) -> 0 | I72: 0 | J72: 0 | K72: 0 | L72: 0 | M72: 0 | N72: 0 | O72: 0
B73: 17 | C73: =TREND(C55:C56,B55:B56,B73) -> 0 | D73: =TREND(D55:D56,B55:B56,B73) -> 0 | E73: =TREND(E55:E56,B55:B56,B73) -> 0 | F73: =TREND(F55:F56,B55:B56,B73) -> 0 | G73: =TREND(G55:G56,B55:B56,B73) -> 0 | H73: =TREND(H55:H56,B55:B56,B73) -> 0 | I73: 0 | J73: 0 | K73: 0 | L73: 0 | M73: 0 | N73: 0 | O73: 0
B74: 18 | C74: =TREND(C55:C56,B55:B56,B74) -> 0 | D74: =TREND(D55:D56,B55:B56,B74) -> 0 | E74: =TREND(E55:E56,B55:B56,B74) -> 0 | F74: =TREND(F55:F56,B55:B56,B74) -> 0 | G74: =TREND(G55:G56,B55:B56,B74) -> 0 | H74: =TREND(H55:H56,B55:B56,B74) -> 0 | I74: 0 | J74: 0 | K74: 0 | L74: 0 | M74: 0 | N74: 0 | O74: 0
B75: 19 | C75: =TREND(C55:C56,B55:B56,B75) -> 0 | D75: =TREND(D55:D56,B55:B56,B75) -> 0 | E75: =TREND(E55:E56,B55:B56,B75) -> 0 | F75: =TREND(F55:F56,B55:B56,B75) -> 0 | G75: =TREND(G55:G56,B55:B56,B75) -> 0 | H75: =TREND(H55:H56,B55:B56,B75) -> 0 | I75: 0 | J75: 0 | K75: 0 | L75: 0 | M75: 0 | N75: 0 | O75: 0
B77: Total | I77: =SUM(I55:I75) -> 0 | J77: =SUM(J55:J75) -> 0 | K77: =SUM(K55:K75) -> 0 | L77: 0 | M77: 0 | N77: 0 | O77: 0 | P77: =SUM(P55:P75) -> 
B80: Bus
C82: ANNUAL VEH-MILES | E82: AVERAGE SPEED | I82: TONS EMISSIONS SAVED | P82: DOLLARS EMISSIONS SAVED
C83: (service-miles/yr) | E83: (mph) | I83: (tons/yr) | P83: (PV $/yr)
B84: Year
C85: No Build | D85: Build | E85: No Build | F85: Build | I85: CO | J85: CO2 | K85: NOX | L85: PM10 | M85: SOX | N85: VOC | O85: PM2.5 | P85: CO | Q85: CO2 | R85: NOX | S85: PM10 | T85: SOX | U85: VOC
B86: 1 | C86: =SMTBus1NB*AnnualFactor -> 0 | D86: =SMTBus1B*AnnualFactor -> 0 | E86: =AvgSpdBus1NB -> 0 | F86: =AvgSpdBus1B -> 0 | I86: =0.00000110231131*($C86*VLOOKUP($E86,EmBus1,2)-$D86*VLOOKUP($F86,EmBus1,2)) -> 0 | J86: =0.00000110231131*($C86*VLOOKUP($E86,EmBus1,3)-$D86*VLOOKUP($F86,EmBus1,3)) -> 0 | K86: =0.00000110231131*($C86*VLOOKUP($E86,EmBus1,4)-$D86*VLOOKUP($F86,EmBus1,4)) -> 0 | L86: =0.00000110231131*($C86*VLOOKUP($E86,EmBus1,5)-$D86*VLOOKUP($F86,EmBus1,5)) -> 0 | M86: =0.00000110231131*($C86*VLOOKUP($E86,EmBus1,6)-$D86*VLOOKUP($F86,EmBus1,6)) -> 0 | N86: =0.00000110231131*($C86*VLOOKUP($E86,EmBus1,7)-$D86*VLOOKUP($F86,EmBus1,7)) -> 0 | O86: =0.00000110231131*($C86*VLOOKUP($E86,EmBus1,8)-$D86*VLOOKUP($F86,EmBus1,8)) -> 0 | P86: =I86*VLOOKUP(ProjLoc,EmCost,2)/(1+DiscRate)^($B86+Construct-1) ->  | Q86: =J86*VLOOKUP(ProjLoc,EmCost,3)*(1+CO2Uprater)^($B86+Construct-1)/(1+DiscRate)^($B86+Construct-1) ->  | R86: =K86*VLOOKUP(ProjLoc,EmCost,4)/(1+DiscRate)^($B86+Construct-1) ->  | S86: =L86*VLOOKUP(ProjLoc,EmCost,5)/(1+DiscRate)^($B86+Construct-1) ->  | T86: =M86*VLOOKUP(ProjLoc,EmCost,6)/(1+DiscRate)^($B86+Construct-1) ->  | U86: =N86*VLOOKUP(ProjLoc,EmCost,7)/(1+DiscRate)^($B86+Construct-1) -> 
B87: 20 | C87: =SMTBus20NB*AnnualFactor -> 0 | D87: =SMTBus20B*AnnualFactor -> 0 | E87: =AvgSpdBus20NB -> 0 | F87: =AvgSpdBus20B -> 0 | I87: =0.00000110231131*($C87*VLOOKUP($E87,EmBus20,2)-$D87*VLOOKUP($F87,EmBus20,2)) -> 0 | J87: =0.00000110231131*($C87*VLOOKUP($E87,EmBus20,3)-$D87*VLOOKUP($F87,EmBus20,3)) -> 0 | K87: =0.00000110231131*($C87*VLOOKUP($E87,EmBus20,4)-$D87*VLOOKUP($F87,EmBus20,4)) -> 0 | L87: =0.00000110231131*($C87*VLOOKUP($E87,EmBus20,5)-$D87*VLOOKUP($F87,EmBus20,5)) -> 0 | M87: =0.00000110231131*($C87*VLOOKUP($E87,EmBus20,6)-$D87*VLOOKUP($F87,EmBus20,6)) -> 0 | N87: =0.00000110231131*($C87*VLOOKUP($E87,EmBus20,7)-$D87*VLOOKUP($F87,EmBus20,7)) -> 0 | O87: =0.00000110231131*($C87*VLOOKUP($E87,EmBus20,8)-$D87*VLOOKUP($F87,EmBus20,8)) -> 0 | P87: =I87*VLOOKUP(ProjLoc,EmCost,2)/(1+DiscRate)^($B87+Construct-1) ->  | Q87: =J87*VLOOKUP(ProjLoc,EmCost,3)*(1+CO2Uprater)^($B87+Construct-1)/(1+DiscRate)^($B87+Construct-1) ->  | R87: =K87*VLOOKUP(ProjLoc,EmCost,4)/(1+DiscRate)^($B87+Construct-1) ->  | S87: =L87*VLOOKUP(ProjLoc,EmCost,5)/(1+DiscRate)^($B87+Construct-1) ->  | T87: =M87*VLOOKUP(ProjLoc,EmCost,6)/(1+DiscRate)^($B87+Construct-1) ->  | U87: =N87*VLOOKUP(ProjLoc,EmCost,7)/(1+DiscRate)^($B87+Construct-1) -> 
B89: 2 | C89: =TREND(C86:C87,B86:B87,B89) -> 0 | D89: =TREND(D86:D87,B86:B87,B89) -> 0 | E89: =TREND(E86:E87,B86:B87,B89) -> 0 | F89: =TREND(F86:F87,B86:B87,B89) -> 0 | I89: =0.00000110231131*($C89*VLOOKUP($E89,EmBus1,2)-$D89*VLOOKUP($F89,EmBus1,2)) -> 0 | J89: =0.00000110231131*($C89*VLOOKUP($E89,EmBus1,3)-$D89*VLOOKUP($F89,EmBus1,3)) -> 0 | K89: =0.00000110231131*($C89*VLOOKUP($E89,EmBus1,4)-$D89*VLOOKUP($F89,EmBus1,4)) -> 0 | L89: =0.00000110231131*($C89*VLOOKUP($E89,EmBus1,5)-$D89*VLOOKUP($F89,EmBus1,5)) -> 0 | M89: =0.00000110231131*($C89*VLOOKUP($E89,EmBus1,6)-$D89*VLOOKUP($F89,EmBus1,6)) -> 0 | N89: =0.00000110231131*($C89*VLOOKUP($E89,EmBus1,7)-$D89*VLOOKUP($F89,EmBus1,7)) -> 0 | O89: =0.00000110231131*($C89*VLOOKUP($E89,EmBus1,8)-$D89*VLOOKUP($F89,EmBus1,8)) -> 0 | P89: =I89*VLOOKUP(ProjLoc,EmCost,2)/(1+DiscRate)^($B89+Construct-1) ->  | Q89: =J89*VLOOKUP(ProjLoc,EmCost,3)*(1+CO2Uprater)^($B89+Construct-1)/(1+DiscRate)^($B89+Construct-1) ->  | R89: =K89*VLOOKUP(ProjLoc,EmCost,4)/(1+DiscRate)^($B89+Construct-1) ->  | S89: =L89*VLOOKUP(ProjLoc,EmCost,5)/(1+DiscRate)^($B89+Construct-1) ->  | T89: =M89*VLOOKUP(ProjLoc,EmCost,6)/(1+DiscRate)^($B89+Construct-1) ->  | U89: =N89*VLOOKUP(ProjLoc,EmCost,7)/(1+DiscRate)^($B89+Construct-1) -> 
B90: 3 | C90: =TREND(C86:C87,B86:B87,B90) -> 0 | D90: =TREND(D86:D87,B86:B87,B90) -> 0 | E90: =TREND(E86:E87,B86:B87,B90) -> 0 | F90: =TREND(F86:F87,B86:B87,B90) -> 0 | I90: 0 | J90: 0 | K90: 0 | L90: 0 | M90: 0 | N90: 0 | O90: 0
B91: 4 | C91: =TREND(C86:C87,B86:B87,B91) -> 0 | D91: =TREND(D86:D87,B86:B87,B91) -> 0 | E91: =TREND(E86:E87,B86:B87,B91) -> 0 | F91: =TREND(F86:F87,B86:B87,B91) -> 0 | I91: 0 | J91: 0 | K91: 0 | L91: 0 | M91: 0 | N91: 0 | O91: 0
B92: 5 | C92: =TREND(C86:C87,B86:B87,B92) -> 0 | D92: =TREND(D86:D87,B86:B87,B92) -> 0 | E92: =TREND(E86:E87,B86:B87,B92) -> 0 | F92: =TREND(F86:F87,B86:B87,B92) -> 0 | I92: 0 | J92: 0 | K92: 0 | L92: 0 | M92: 0 | N92: 0 | O92: 0
B93: 6 | C93: =TREND(C86:C87,B86:B87,B93) -> 0 | D93: =TREND(D86:D87,B86:B87,B93) -> 0 | E93: =TREND(E86:E87,B86:B87,B93) -> 0 | F93: =TREND(F86:F87,B86:B87,B93) -> 0 | I93: 0 | J93: 0 | K93: 0 | L93: 0 | M93: 0 | N93: 0 | O93: 0
B94: 7 | C94: =TREND(C86:C87,B86:B87,B94) -> 0 | D94: =TREND(D86:D87,B86:B87,B94) -> 0 | E94: =TREND(E86:E87,B86:B87,B94) -> 0 | F94: =TREND(F86:F87,B86:B87,B94) -> 0 | I94: 0 | J94: 0 | K94: 0 | L94: 0 | M94: 0 | N94: 0 | O94: 0
B95: 8 | C95: =TREND(C86:C87,B86:B87,B95) -> 0 | D95: =TREND(D86:D87,B86:B87,B95) -> 0 | E95: =TREND(E86:E87,B86:B87,B95) -> 0 | F95: =TREND(F86:F87,B86:B87,B95) -> 0 | I95: =0.00000110231131*($C95*VLOOKUP($E95,EmBus20,2)-$D95*VLOOKUP($F95,EmBus20,2)) -> 0 | J95: =0.00000110231131*($C95*VLOOKUP($E95,EmBus20,3)-$D95*VLOOKUP($F95,EmBus20,3)) -> 0 | K95: =0.00000110231131*($C95*VLOOKUP($E95,EmBus20,4)-$D95*VLOOKUP($F95,EmBus20,4)) -> 0 | L95: =0.00000110231131*($C95*VLOOKUP($E95,EmBus20,5)-$D95*VLOOKUP($F95,EmBus20,5)) -> 0 | M95: =0.00000110231131*($C95*VLOOKUP($E95,EmBus20,6)-$D95*VLOOKUP($F95,EmBus20,6)) -> 0 | N95: =0.00000110231131*($C95*VLOOKUP($E95,EmBus20,7)-$D95*VLOOKUP($F95,EmBus20,7)) -> 0 | O95: =0.00000110231131*($C95*VLOOKUP($E95,EmBus20,8)-$D95*VLOOKUP($F95,EmBus20,8)) -> 0
B96: 9 | C96: =TREND(C86:C87,B86:B87,B96) -> 0 | D96: =TREND(D86:D87,B86:B87,B96) -> 0 | E96: =TREND(E86:E87,B86:B87,B96) -> 0 | F96: =TREND(F86:F87,B86:B87,B96) -> 0 | I96: 0 | J96: 0 | K96: 0 | L96: 0 | M96: 0 | N96: 0 | O96: 0
B97: 10 | C97: =TREND(C86:C87,B86:B87,B97) -> 0 | D97: =TREND(D86:D87,B86:B87,B97) -> 0 | E97: =TREND(E86:E87,B86:B87,B97) -> 0 | F97: =TREND(F86:F87,B86:B87,B97) -> 0 | I97: 0 | J97: 0 | K97: 0 | L97: 0 | M97: 0 | N97: 0 | O97: 0
B98: 11 | C98: =TREND(C86:C87,B86:B87,B98) -> 0 | D98: =TREND(D86:D87,B86:B87,B98) -> 0 | E98: =TREND(E86:E87,B86:B87,B98) -> 0 | F98: =TREND(F86:F87,B86:B87,B98) -> 0 | I98: 0 | J98: 0 | K98: 0 | L98: 0 | M98: 0 | N98: 0 | O98: 0
B99: 12 | C99: =TREND(C86:C87,B86:B87,B99) -> 0 | D99: =TREND(D86:D87,B86:B87,B99) -> 0 | E99: =TREND(E86:E87,B86:B87,B99) -> 0 | F99: =TREND(F86:F87,B86:B87,B99) -> 0 | I99: 0 | J99: 0 | K99: 0 | L99: 0 | M99: 0 | N99: 0 | O99: 0
B100: 13 | C100: =TREND(C86:C87,B86:B87,B100) -> 0 | D100: =TREND(D86:D87,B86:B87,B100) -> 0 | E100: =TREND(E86:E87,B86:B87,B100) -> 0 | F100: =TREND(F86:F87,B86:B87,B100) -> 0 | I100: 0 | J100: 0 | K100: 0 | L100: 0 | M100: 0 | N100: 0 | O100: 0
B101: 14 | C101: =TREND(C86:C87,B86:B87,B101) -> 0 | D101: =TREND(D86:D87,B86:B87,B101) -> 0 | E101: =TREND(E86:E87,B86:B87,B101) -> 0 | F101: =TREND(F86:F87,B86:B87,B101) -> 0 | I101: 0 | J101: 0 | K101: 0 | L101: 0 | M101: 0 | N101: 0 | O101: 0
B102: 15 | C102: =TREND(C86:C87,B86:B87,B102) -> 0 | D102: =TREND(D86:D87,B86:B87,B102) -> 0 | E102: =TREND(E86:E87,B86:B87,B102) -> 0 | F102: =TREND(F86:F87,B86:B87,B102) -> 0 | I102: 0 | J102: 0 | K102: 0 | L102: 0 | M102: 0 | N102: 0 | O102: 0
B103: 16 | C103: =TREND(C86:C87,B86:B87,B103) -> 0 | D103: =TREND(D86:D87,B86:B87,B103) -> 0 | E103: =TREND(E86:E87,B86:B87,B103) -> 0 | F103: =TREND(F86:F87,B86:B87,B103) -> 0 | I103: 0 | J103: 0 | K103: 0 | L103: 0 | M103: 0 | N103: 0 | O103: 0
B104: 17 | C104: =TREND(C86:C87,B86:B87,B104) -> 0 | D104: =TREND(D86:D87,B86:B87,B104) -> 0 | E104: =TREND(E86:E87,B86:B87,B104) -> 0 | F104: =TREND(F86:F87,B86:B87,B104) -> 0 | I104: 0 | J104: 0 | K104: 0 | L104: 0 | M104: 0 | N104: 0 | O104: 0
B105: 18 | C105: =TREND(C86:C87,B86:B87,B105) -> 0 | D105: =TREND(D86:D87,B86:B87,B105) -> 0 | E105: =TREND(E86:E87,B86:B87,B105) -> 0 | F105: =TREND(F86:F87,B86:B87,B105) -> 0 | I105: 0 | J105: 0 | K105: 0 | L105: 0 | M105: 0 | N105: 0 | O105: 0
B106: 19 | C106: =TREND(C86:C87,B86:B87,B106) -> 0 | D106: =TREND(D86:D87,B86:B87,B106) -> 0 | E106: =TREND(E86:E87,B86:B87,B106) -> 0 | F106: =TREND(F86:F87,B86:B87,B106) -> 0 | I106: 0 | J106: 0 | K106: 0 | L106: 0 | M106: 0 | N106: 0 | O106: 0
B108: Total | I108: =SUM(I86:I106) -> 0 | J108: =SUM(J86:J106) -> 0 | K108: =SUM(K86:K106) -> 0 | L108: 0 | M108: 0 | N108: =SUM(N86:N106) -> 0 | O108: 0 | P108: =SUM(P86:P106) -> 
B111: Freight Locomotive
C113: ANNUAL TON-MILES | E113: FUEL CONSUMPTION | I113: TONS EMISSIONS SAVED | P113: DOLLARS EMISSIONS SAVED
C114: (ton-miles/yr) | E114: (ton-miles/gal) | I114: (tons/yr) | P114: (PV $/yr)
B115: Year
C116: No Build | D116: Build | E116: No Build | F116: Build | I116: CO | J116: CO2 | K116: NOX | L116: PM10 | M116: SOX | N116: VOC | O116: PM2.5 | P116: CO | Q116: CO2 | R116: NOX | S116: PM10 | T116: SOX | U116: VOC
B117: 1 | C117: =TonMileLoco1NB*AnnualFactor -> 0 | D117: =TonMileLoco1B*AnnualFactor -> 0 | E117: =AvgTonMilesGal1NB -> 480 | F117: =AvgTonMilesGal1B -> 480 | I117: =0.00000110231131*($C117/$E117-$D117/$F117)*VLOOKUP(2030,EmFreightTrain,2) -> 0 | J117: =0.00000110231131*($C117/$E117-$D117/$F117)*VLOOKUP(2030,EmFreightTrain,3) -> 0 | K117: =0.00000110231131*($C117/$E117-$D117/$F117)*VLOOKUP(2030,EmFreightTrain,4) -> 0 | L117: =0.00000110231131*($C117/$E117-$D117/$F117)*VLOOKUP(2030,EmFreightTrain,5) -> 0 | M117: =0.00000110231131*($C117/$E117-$D117/$F117)*VLOOKUP(2030,EmFreightTrain,6) -> 0 | N117: =0.00000110231131*($C117/$E117-$D117/$F117)*VLOOKUP(2030,EmFreightTrain,7) -> 0 | O117: =0.00000110231131*($C117/$E117-$D117/$F117)*VLOOKUP(2030,EmFreightTrain,8) -> 0 | P117: =I117*VLOOKUP(ProjLoc,EmCost,2)/(1+DiscRate)^($B117+Construct-1) ->  | Q117: =J117*VLOOKUP(ProjLoc,EmCost,3)*(1+CO2Uprater)^($B117+Construct-1)/(1+DiscRate)^($B117+Construct-1) ->  | R117: =K117*VLOOKUP(ProjLoc,EmCost,4)/(1+DiscRate)^($B117+Construct-1) ->  | S117: =L117*VLOOKUP(ProjLoc,EmCost,5)/(1+DiscRate)^($B117+Construct-1) ->  | T117: =M117*VLOOKUP(ProjLoc,EmCost,6)/(1+DiscRate)^($B117+Construct-1) ->  | U117: =N117*VLOOKUP(ProjLoc,EmCost,7)/(1+DiscRate)^($B117+Construct-1) -> 
B118: 20 | C118: =TonMileLoco20NB*AnnualFactor -> 0 | D118: =TonMileLoco20B*AnnualFactor -> 0 | E118: =AvgTonMilesGal20NB -> 480 | F118: =AvgTonMilesGal20B -> 480 | I118: =0.00000110231131*($C118/$E118-$D118/$F118)*VLOOKUP(2030,EmFreightTrain,2) -> 0 | J118: =0.00000110231131*($C118/$E118-$D118/$F118)*VLOOKUP(2030,EmFreightTrain,3) -> 0 | K118: =0.00000110231131*($C118/$E118-$D118/$F118)*VLOOKUP(2030,EmFreightTrain,4) -> 0 | L118: =0.00000110231131*($C118/$E118-$D118/$F118)*VLOOKUP(2030,EmFreightTrain,5) -> 0 | M118: =0.00000110231131*($C118/$E118-$D118/$F118)*VLOOKUP(2030,EmFreightTrain,6) -> 0 | N118: =0.00000110231131*($C118/$E118-$D118/$F118)*VLOOKUP(2030,EmFreightTrain,7) -> 0 | O118: =0.00000110231131*($C118/$E118-$D118/$F118)*VLOOKUP(2030,EmFreightTrain,8) -> 0 | P118: =I118*VLOOKUP(ProjLoc,EmCost,2)/(1+DiscRate)^($B118+Construct-1) ->  | Q118: =J118*VLOOKUP(ProjLoc,EmCost,3)*(1+CO2Uprater)^($B118+Construct-1)/(1+DiscRate)^($B118+Construct-1) ->  | R118: =K118*VLOOKUP(ProjLoc,EmCost,4)/(1+DiscRate)^($B118+Construct-1) ->  | S118: =L118*VLOOKUP(ProjLoc,EmCost,5)/(1+DiscRate)^($B118+Construct-1) ->  | T118: =M118*VLOOKUP(ProjLoc,EmCost,6)/(1+DiscRate)^($B118+Construct-1) ->  | U118: =N118*VLOOKUP(ProjLoc,EmCost,7)/(1+DiscRate)^($B118+Construct-1) -> 
B120: 2 | C120: =TREND(C117:C118,B117:B118,B120) -> 0 | D120: =TREND(D117:D118,B117:B118,B120) -> 0 | E120: =TREND(E117:E118,B117:B118,B120) -> 480 | F120: =TREND(F117:F118,B117:B118,B120) -> 480 | I120: =0.00000110231131*($C120/$E120-$D120/$F120)*VLOOKUP(2030,EmFreightTrain,2) -> 0 | J120: =0.00000110231131*($C120/$E120-$D120/$F120)*VLOOKUP(2030,EmFreightTrain,3) -> 0 | K120: =0.00000110231131*($C120/$E120-$D120/$F120)*VLOOKUP(2030,EmFreightTrain,4) -> 0 | L120: =0.00000110231131*($C120/$E120-$D120/$F120)*VLOOKUP(2030,EmFreightTrain,5) -> 0 | M120: =0.00000110231131*($C120/$E120-$D120/$F120)*VLOOKUP(2030,EmFreightTrain,6) -> 0 | N120: =0.00000110231131*($C120/$E120-$D120/$F120)*VLOOKUP(2030,EmFreightTrain,7) -> 0 | O120: =0.00000110231131*($C120/$E120-$D120/$F120)*VLOOKUP(2030,EmFreightTrain,8) -> 0 | P120: =I120*VLOOKUP(ProjLoc,EmCost,2)/(1+DiscRate)^($B120+Construct-1) ->  | Q120: =J120*VLOOKUP(ProjLoc,EmCost,3)*(1+CO2Uprater)^($B120+Construct-1)/(1+DiscRate)^($B120+Construct-1) ->  | R120: =K120*VLOOKUP(ProjLoc,EmCost,4)/(1+DiscRate)^($B120+Construct-1) ->  | S120: =L120*VLOOKUP(ProjLoc,EmCost,5)/(1+DiscRate)^($B120+Construct-1) ->  | T120: =M120*VLOOKUP(ProjLoc,EmCost,6)/(1+DiscRate)^($B120+Construct-1) ->  | U120: =N120*VLOOKUP(ProjLoc,EmCost,7)/(1+DiscRate)^($B120+Construct-1) -> 
B121: 3 | C121: =TREND(C117:C118,B117:B118,B121) -> 0 | D121: =TREND(D117:D118,B117:B118,B121) -> 0 | E121: =TREND(E117:E118,B117:B118,B121) -> 480 | F121: =TREND(F117:F118,B117:B118,B121) -> 480 | I121: 0 | J121: 0 | K121: 0 | L121: 0 | M121: 0 | N121: 0 | O121: 0
B122: 4 | C122: =TREND(C117:C118,B117:B118,B122) -> 0 | D122: =TREND(D117:D118,B117:B118,B122) -> 0 | E122: =TREND(E117:E118,B117:B118,B122) -> 480 | F122: =TREND(F117:F118,B117:B118,B122) -> 480 | I122: 0 | J122: 0 | K122: 0 | L122: 0 | M122: 0 | N122: 0 | O122: 0
B123: 5 | C123: =TREND(C117:C118,B117:B118,B123) -> 0 | D123: =TREND(D117:D118,B117:B118,B123) -> 0 | E123: =TREND(E117:E118,B117:B118,B123) -> 480 | F123: =TREND(F117:F118,B117:B118,B123) -> 480 | I123: 0 | J123: 0 | K123: 0 | L123: 0 | M123: 0 | N123: 0 | O123: 0
B124: 6 | C124: =TREND(C117:C118,B117:B118,B124) -> 0 | D124: =TREND(D117:D118,B117:B118,B124) -> 0 | E124: =TREND(E117:E118,B117:B118,B124) -> 480 | F124: =TREND(F117:F118,B117:B118,B124) -> 480 | I124: 0 | J124: 0 | K124: 0 | L124: 0 | M124: 0 | N124: 0 | O124: 0
B125: 7 | C125: =TREND(C117:C118,B117:B118,B125) -> 0 | D125: =TREND(D117:D118,B117:B118,B125) -> 0 | E125: =TREND(E117:E118,B117:B118,B125) -> 480 | F125: =TREND(F117:F118,B117:B118,B125) -> 480 | I125: 0 | J125: 0 | K125: 0 | L125: 0 | M125: 0 | N125: 0 | O125: 0
B126: 8 | C126: =TREND(C117:C118,B117:B118,B126) -> 0 | D126: =TREND(D117:D118,B117:B118,B126) -> 0 | E126: =TREND(E117:E118,B117:B118,B126) -> 480 | F126: =TREND(F117:F118,B117:B118,B126) -> 480 | I126: 0 | J126: 0 | K126: 0 | L126: 0 | M126: 0 | N126: 0 | O126: 0
B127: 9 | C127: =TREND(C117:C118,B117:B118,B127) -> 0 | D127: =TREND(D117:D118,B117:B118,B127) -> 0 | E127: =TREND(E117:E118,B117:B118,B127) -> 480 | F127: =TREND(F117:F118,B117:B118,B127) -> 480 | I127: 0 | J127: 0 | K127: 0 | L127: 0 | M127: 0 | N127: 0 | O127: 0
B128: 10 | C128: =TREND(C117:C118,B117:B118,B128) -> 0 | D128: =TREND(D117:D118,B117:B118,B128) -> 0 | E128: =TREND(E117:E118,B117:B118,B128) -> 480 | F128: =TREND(F117:F118,B117:B118,B128) -> 480 | I128: 0 | J128: 0 | K128: 0 | L128: 0 | M128: 0 | N128: 0 | O128: 0
B129: 11 | C129: =TREND(C117:C118,B117:B118,B129) -> 0 | D129: =TREND(D117:D118,B117:B118,B129) -> 0 | E129: =TREND(E117:E118,B117:B118,B129) -> 480 | F129: =TREND(F117:F118,B117:B118,B129) -> 480 | I129: 0 | J129: 0 | K129: 0 | L129: 0 | M129: 0 | N129: 0 | O129: 0
B130: 12 | C130: =TREND(C117:C118,B117:B118,B130) -> 0 | D130: =TREND(D117:D118,B117:B118,B130) -> 0 | E130: =TREND(E117:E118,B117:B118,B130) -> 480 | F130: =TREND(F117:F118,B117:B118,B130) -> 480 | I130: 0 | J130: 0 | K130: 0 | L130: 0 | M130: 0 | N130: 0 | O130: 0
B131: 13 | C131: =TREND(C117:C118,B117:B118,B131) -> 0 | D131: =TREND(D117:D118,B117:B118,B131) -> 0 | E131: =TREND(E117:E118,B117:B118,B131) -> 480 | F131: =TREND(F117:F118,B117:B118,B131) -> 480 | I131: 0 | J131: 0 | K131: 0 | L131: 0 | M131: 0 | N131: 0 | O131: 0
B132: 14 | C132: =TREND(C117:C118,B117:B118,B132) -> 0 | D132: =TREND(D117:D118,B117:B118,B132) -> 0 | E132: =TREND(E117:E118,B117:B118,B132) -> 480 | F132: =TREND(F117:F118,B117:B118,B132) -> 480 | I132: 0 | J132: 0 | K132: 0 | L132: 0 | M132: 0 | N132: 0 | O132: 0
B133: 15 | C133: =TREND(C117:C118,B117:B118,B133) -> 0 | D133: =TREND(D117:D118,B117:B118,B133) -> 0 | E133: =TREND(E117:E118,B117:B118,B133) -> 480 | F133: =TREND(F117:F118,B117:B118,B133) -> 480 | I133: 0 | J133: 0 | K133: 0 | L133: 0 | M133: 0 | N133: 0 | O133: 0
B134: 16 | C134: =TREND(C117:C118,B117:B118,B134) -> 0 | D134: =TREND(D117:D118,B117:B118,B134) -> 0 | E134: =TREND(E117:E118,B117:B118,B134) -> 480 | F134: =TREND(F117:F118,B117:B118,B134) -> 480 | I134: 0 | J134: 0 | K134: 0 | L134: 0 | M134: 0 | N134: 0 | O134: 0
B135: 17 | C135: =TREND(C117:C118,B117:B118,B135) -> 0 | D135: =TREND(D117:D118,B117:B118,B135) -> 0 | E135: =TREND(E117:E118,B117:B118,B135) -> 480 | F135: =TREND(F117:F118,B117:B118,B135) -> 480 | I135: 0 | J135: 0 | K135: 0 | L135: 0 | M135: 0 | N135: 0 | O135: 0
B136: 18 | C136: =TREND(C117:C118,B117:B118,B136) -> 0 | D136: =TREND(D117:D118,B117:B118,B136) -> 0 | E136: =TREND(E117:E118,B117:B118,B136) -> 480 | F136: =TREND(F117:F118,B117:B118,B136) -> 480 | I136: 0 | J136: 0 | K136: 0 | L136: 0 | M136: 0 | N136: 0 | O136: 0
B137: 19 | C137: =TREND(C117:C118,B117:B118,B137) -> 0 | D137: =TREND(D117:D118,B117:B118,B137) -> 0 | E137: =TREND(E117:E118,B117:B118,B137) -> 480 | F137: =TREND(F117:F118,B117:B118,B137) -> 480 | I137: 0 | J137: 0 | K137: 0 | L137: 0 | M137: 0 | N137: 0 | O137: 0
B139: Total | I139: =SUM(I117:I137) -> 0 | J139: 0 | K139: 0 | L139: 0 | M139: 0 | N139: 0 | O139: 0

Sheet PARAMETERS
A1: The column titles for this worksheet are in row 2. They span cells A2. The data spans cells A3 through EC219. There is information in every cell for column A through EC inclusive. If you are not using a screen reader, you can press Alt + R, T for the Review Ribbon, Edit Comment to move to and open a Comment once you are on a cell with a Comment. When you are finished reading the Comment, press Escape to close the comment and return to the worksheet. If you are using the JAWS screen reader, press Ctrl + Shift + Apostrophe to get a list of Comments and their cell coordinates in the worksheet. Press Enter on the Comment you want to go to or Escape once you’ve read the Comment for a cell. You are returned to the workbook. Note that there is no keyboard command with JAWS to reread Comments or read Comments once you are on them in a cell. You must use the ability to list Comments in order to read them if you are using the JAWS screen reader. | B1: Parameters
B3: This page contains all economic values and rate tables.
B4: To update economic values automatically, change "Economic Update Factor." | AF4: Travel Demand Tables | AQ4: Operating Cost Tables | AX4: Accident Tables | BO4: Emissions Tables | DA4: Pavement Adjustments (used only for pavement projects) | DO4: Weaving Adjustments (used only for freeway | DV4: TMS Adjustments (used only for ramp metering, ramp metering signal coordination, incident
DO5: connector, HOV connector, and HOV drop ramp projects) | DV5: management, traveler information projects, AVL, transit priority, and BRT projects)
B7: General Economic Parameters | Y7: Project Types
AG8: DEMAND FOR TRAVEL IN PEAK PERIOD | AR8: FUEL CONSUMPTION RATES | AY8: HIGHWAY INJURY SEVERITY FREQUENCY | BG8: RATES FOR NON-HIGHWAY ACCIDENT EVENTS | BP8: HIGHWAY EMISSIONS FACTORS (g/mi) | CB8: HIGHWAY EMISSIONS FACTORS (g/mi) | CO8: HEALTH COST OF TRANSPORTATION EMISSIONS | DB8: PAVEMENT DETERIORATION | DI8: VEHICLE OPERATING SPEED | DP8: VEHICLE OPERATING SPEED | DW8: PEAK PERIOD SPEED, VOLUME, AND NON-HIGHWAY BENEFITS
C9: Year of Current Dollars for Model | F9: 2021 | Z9: Highway Capacity Expansion | AC9: Please select a type of highway project | AG9: (percent of total daily travel) | AR9: (gal/veh-mi) | AY9: (percent of injuries) | BG9: (events/million veh-mi) | BP9: Model Year 2024 | CB9: Model Year 2044 | CO9: ($/ton) | DB9: (IRI in inches/mile) | DI9: (percent adjustment) | DP9: (percent adjustment) | DW9: (percent adjustment)
C10: Economic Update Factor (Using GDP Deflator) | F10: 1 | H10: 1 | Z10: General Highway | AB10: GenHwy
Z11: HOV Lane Addition | AB11: HOV | AC11: Enter HOV restriction in section 1B | AG11: Number of | AH11: Urban | AR11: Speed | AS11: Auto* | AT11: Truck | AY11: Event | AZ11: Urban | BA11: Suburban | BB11: Rural | BC11: Average | BG11: Event | BH11: Pass Train | BI11: Light Rail | BJ11: Bus | BK11: Freight Rail | BP11: Mode | BQ11: Speed | BR11: CO | BS11: CO2 | BT11: NOX | BU11: PM10 | BV11: SOX | BW11: VOC | BX11: PM2.5 | CB11: Mode | CC11: Speed | CD11: CO | CE11: CO2 | CF11: NOX | CG11: PM10 | CH11: SOX | CI11: VOC | CJ11: PM2.5 | CO11: Area | CP11: Proj Loc | CQ11: CO | CR11: CO2e | CS11: NOX | CT11: PM10 | CU11: SOX | CV11: VOC | DC11: Year 20, By Loading | DP11: Percent | DQ11: Freeway | DR11: HOV | DW11: TMS | DX11: Without | DZ11: With | EB11: Non-Highway Benefits | EE11: Total
C12: Real Discount Rate | F12: 0.04 | H12: 2 | Z12: HOT Lane Addition | AB12: HOT | AC12: Include toll payers as HOVs & check AVOs | AG12: Hours in | AH12: So. California | AJ12: No. California | AL12: Rural | AR12: 5 | AS12: 0.0515 | AT12: 0.14 | AY12: Severe Injury (A) | AZ12: =ROUND((11713+2488)/277160,4) -> 0.0512 | BA12: =ROUND((11713+2488)/277160,4) -> 0.0512 | BB12: =ROUND((11713+2488)/277160,4) -> 0.0512 | BC12: =ROUND((11713+2488)/277160,4) -> 0.0512 | BG12: Fatality | BH12: 0.0804 | BI12: 0.2416 | BJ12: 0.0372 | BK12: 1.0368 | BP12: Auto | BQ12: 0 | BR12: 3.5182 | BS12: 78.9185 | BT12: 0.3056 | BU12: 0.0022 | BV12: 0.0008 | BW12: 0.39 | BX12: 0.002 | CB12: Auto | CC12: 0 | CD12: 1.7535 | CE12: 60.2289 | CF12: 0.1686 | CG12: 0.0008 | CH12: 0.0006 | CI12: 0.1451 | CJ12: 0.0008 | CO12: LA/South Coast | CP12: 1 | CQ12: =ROUND(115*(1.1578/0.78)*ValueUpdate/5,0)*5 -> 170 | CR12: =ROUND(51*(1+2%)^(2021-2020)*(1.1578/1.1385)/1.10231*ValueUpdate,0) -> 48 | CS12: =ROUND(46615*(1.1578/0.78)*ValueUpdate,-2) -> 69200 | CT12: =ROUND(381859*(1.1578/0.78)*ValueUpdate,-2) -> 566800 | CU12: =ROUND(143469*(1.1578/0.78)*ValueUpdate,-2) -> 213000 | CV12: =ROUND(2898*(1.1578/0.78)*ValueUpdate/5,0)*5 -> 4300 | DB12: Year 0 | DC12: Light | DD12: Medium | DE12: Heavy | DI12: IRI | DJ12: Auto | DK12: Truck | DP12: Weaving | DQ12: Conn | DR12: Project | DW12: Strategy | DX12: Speed | DY12: Volume | DZ12: Speed | EA12: Volume | EB12: TT | EC12: VOC | ED12: Em | EE12: Benefit
Z13: Passing Lane | AB13: Passing | AC13: Enter a truck speed in section 1B | AG13: Peak Period | AH13: Fwy/Exp | AI13: Other | AJ13: Fwy/Exp | AK13: Other | AL13: Fwy/Exp | AM13: Other | AR13: 6 | AS13: 0.0501 | AT13: 0.1377 | AY13: Other Visible Injury (B) | AZ13: =ROUND((60380+9746)/277160,4) -> 0.253 | BA13: =ROUND((60380+9746)/277160,4) -> 0.253 | BB13: =ROUND((60380+9746)/277160,4) -> 0.253 | BC13: =ROUND((60380+9746)/277160,4) -> 0.253 | BG13: Injury | BH13: 0.2855 | BI13: 2.9209 | BJ13: 3.5526 | BK13: 7.3121 | BQ13: 5 | BR13: 1.3616 | BS13: 555.4365 | BT13: 0.0959 | BU13: 0.007 | BV13: 0.0055 | BW13: 0.0868 | BX13: 0.0065 | CC13: 5 | CD13: 0.5559 | CE13: 330.9034 | CF13: 0.0223 | CG13: 0.0019 | CH13: 0.0033 | CI13: 0.0249 | CJ13: 0.0018 | CO13: CA Urban Area | CP13: 2 | CQ13: =ROUND(60*(1.1578/0.78)*ValueUpdate/5,0)*5 -> 90 | CR13: =ROUND(51*(1+2%)^(2021-2020)*(1.1578/1.1385)/1.10231*ValueUpdate,0) -> 48 | CS13: =ROUND(13646*(1.1578/0.78)*ValueUpdate,-2) -> 20300 | CT13: =ROUND(110258*(1.1578/0.78)*ValueUpdate,-2) -> 163700 | CU13: =ROUND(55069*(1.1578/0.78)*ValueUpdate,-2) -> 81700 | CV13: =ROUND(954*(1.1578/0.78)*ValueUpdate/5,0)*5 -> 1415 | DB13: 0 | DC13: 125 | DD13: 150 | DE13: 350 | DI13: 0 | DJ13: 1 | DK13: 1.025 | DP13: 0 | DQ13: 1 | DR13: 1 | DW13: AMoth | DX13: 1.024390244 | DY13: 0.9503320629 | DZ13: 1.022648084 | EA13: 0.9502478565 | EB13: -5.048265471 | EC13: 12.81200477 | ED13: 1.368537764 | EE13: 0.736497545
Z14: Intersection | AB14: Intersect | AC14: Remember to run model for both roads | AG14: 1 | AH14: 0.085 | AI14: 0.085 | AJ14: 0.085 | AK14: 0.085 | AL14: 0.085 | AM14: 0.085 | AR14: 7 | AS14: 0.0488 | AT14: 0.1355 | AY14: Complaint of Pain (C) | AZ14: =ROUND((174210+18623)/277160,4) -> 0.6957 | BA14: =ROUND((174210+18623)/277160,4) -> 0.6957 | BB14: =ROUND((174210+18623)/277160,4) -> 0.6957 | BC14: =ROUND((174210+18623)/277160,4) -> 0.6957 | BG14: All Accidents | BH14: 0.3128 | BI14: 4.1374 | BJ14: 2.0523 | BK14: 13.2505 | BQ14: 6 | BR14: 1.3409 | BS14: 538.7039 | BT14: 0.0933 | BU14: 0.0065 | BV14: 0.0053 | BW14: 0.0797 | BX14: 0.006 | CC14: 6 | CD14: 0.5576 | CE14: 324.7042 | CF14: 0.0221 | CG14: 0.0018 | CH14: 0.0032 | CI14: 0.0233 | CJ14: 0.0016 | CO14: CA Rural Area | CP14: 3 | CQ14: =ROUND(54*(1.1578/0.78)*ValueUpdate/5,0)*5 -> 80 | CR14: =ROUND(51*(1+2%)^(2021-2020)*(1.1578/1.1385)/1.10231*ValueUpdate,0) -> 48 | CS14: =ROUND(10144*(1.1578/0.78)*ValueUpdate,-2) -> 15100 | CT14: =ROUND(78618*(1.1578/0.78)*ValueUpdate,-2) -> 116700 | CU14: =ROUND(39732*(1.1578/0.78)*ValueUpdate,-2) -> 59000 | CV14: =ROUND(749*(1.1578/0.78)*ValueUpdate/5,0)*5 -> 1110 | DB14: 25 | DC14: 150 | DD14: 200 | DE14: 500 | DI14: 25 | DJ14: 1 | DK14: 1.025 | DP14: 0.002 | DQ14: 0.982 | DR14: 0.988 | DW14: AMsev | DX14: 1.530973451 | DY14: 0.9385815808 | DZ14: 1.533923304 | EA14: 0.9365252325 | EB14: 1.205596712 | EC14: 1.379528678 | ED14: -0.3652658395 | EE14: 1
Z15: Truck Only Lane | AB15: TruckLane | AC15: Remember to run macro for truck lane | AG15: 2 | AH15: 0.168 | AI15: 0.168 | AJ15: 0.168 | AK15: 0.168 | AL15: 0.168 | AM15: 0.168 | AR15: 8 | AS15: 0.0476 | AT15: 0.1333 | BQ15: 7 | BR15: 1.3206 | BS15: 522.4754 | BT15: 0.0907 | BU15: 0.006 | BV15: 0.0052 | BW15: 0.0732 | BX15: 0.0055 | CC15: 7 | CD15: 0.5594 | CE15: 318.621 | CF15: 0.0219 | CG15: 0.0017 | CH15: 0.0031 | CI15: 0.0217 | CJ15: 0.0015 | DB15: 50 | DC15: 175 | DD15: 250 | DE15: 675 | DI15: 50 | DJ15: 1 | DK15: 1.025 | DP15: 0.004 | DQ15: 0.964 | DR15: 0.976 | DW15: IMoth | DX15: 0.8763197587 | DY15: 1.178741497 | DZ15: 0.9793459552 | EA15: 0.9556060017 | EB15: 0.5127996725 | EC15: 0.148212878 | ED15: 0.05879892443 | EE15: 0.736497545
Z16: Bypass | AB16: Bypass | AC16: Remember to run model for both roads | AG16: 3 | AH16: 0.25 | AI16: 0.25 | AJ16: 0.25 | AK16: 0.25 | AL16: 0.25 | AM16: 0.25 | AR16: 9 | AS16: 0.0464 | AT16: 0.1312 | BQ16: 8 | BR16: 1.3005 | BS16: 506.7358 | BT16: 0.0881 | BU16: 0.0055 | BV16: 0.005 | BW16: 0.0672 | BX16: 0.0051 | CC16: 8 | CD16: 0.5612 | CE16: 312.6518 | CF16: 0.0218 | CG16: 0.0016 | CH16: 0.0031 | CI16: 0.0203 | CJ16: 0.0014 | CQ16: CO2e Uprater | CR16: 0.02 | CS16: increase in value per year | DB16: 75 | DC16: 200 | DD16: 300 | DE16: 750 | DI16: 75 | DJ16: 1 | DK16: 1.025 | DP16: 0.006 | DQ16: 0.945 | DR16: 0.964 | DW16: IMsev | DX16: 1.006389776 | DY16: 0.9724862862 | DZ16: 1.009584665 | EA16: 0.9461055622 | EB16: 0.2957044886 | EC16: 0.3126114503 | ED16: 0.3020072069 | EE16: 1
B17: Travel Time Parameters | I17: Highway Operations Parameters | R17: Active Transportation Parameters | Z17: Queuing | AB17: Queuing | AC17: Add arrival rate & check departure rate in 1B | AG17: 4 | AH17: 0.328 | AI17: 0.328 | AJ17: 0.328 | AK17: 0.328 | AL17: 0.328 | AM17: 0.328 | AR17: 10 | AS17: 0.0452 | AT17: 0.1291 | AX17: Source: 2017 SWITRS Annual Report, Table 8C | BF17: Sources: USDOT,Transportation Statistics Annual Report, Table 2-33, 2010 to 2019 average | BQ17: 9 | BR17: 1.2807 | BS17: 491.4703 | BT17: 0.0857 | BU17: 0.0051 | BV17: 0.0049 | BW17: 0.0617 | BX17: 0.0047 | CC17: 9 | CD17: 0.563 | CE17: 306.7945 | CF17: 0.0216 | CG17: 0.0014 | CH17: 0.003 | CI17: 0.0189 | CJ17: 0.0013 | DB17: 100 | DC17: 275 | DD17: 400 | DE17: 750 | DI17: 100 | DJ17: 1 | DK17: 1.025 | DP17: 0.008 | DQ17: 0.927 | DR17: 0.952 | DW17: NoAdj | DX17: 1 | DY17: 1 | DZ17: 1 | EA17: 1 | EB17: 0 | EC17: 0 | ED17: 0 | EE17: 1
E18: Value | F18: Units | M18: Value | N18: Units | Z18: Pavement | AB18: Pavement | AC18: Enter pavement condition in section 1B | AG18: 5 | AH18: 0.403 | AI18: 0.403 | AJ18: 0.403 | AK18: 0.403 | AL18: 0.403 | AM18: 0.403 | AR18: 11 | AS18: 0.0429 | AT18: 0.1238 | BG18: FRA, Office of Safety Analysis, Table 1.13, 2011 to 2020 CY average. | BQ18: 10 | BR18: 1.2613 | BS18: 476.6647 | BT18: 0.0833 | BU18: 0.0047 | BV18: 0.0047 | BW18: 0.0567 | BX18: 0.0043 | CC18: 10 | CD18: 0.5647 | CE18: 301.0469 | CF18: 0.0214 | CG18: 0.0014 | CH18: 0.003 | CI18: 0.0177 | CJ18: 0.0012 | DB18: 125 | DC18: 325 | DD18: 475 | DE18: 750 | DI18: 125 | DJ18: 1 | DK18: 1.025 | DP18: 0.01 | DQ18: 0.909 | DR18: 0.939 | DW18: ORoth | DX18: =1/1.025 -> 0.9756097561 | DY18: =1/0.967507287790243 -> 1.033583946 | DZ18: 1 | EA18: 1 | EB18: -0.07356647791 | EC18: -0.03071615219 | ED18: -0.0696029926 | EG18: 29
C19: Statewide Average Hourly Wage | E19: =31.61*(148.1/144.3)*ValueUpdate -> 32.44241857 | F19: $/hr | H19: 3 | J19: Maximum V/C Ratio | M19: 1.56 | N19: - | Q19: 16 | S19: General Travel Activity Characteristics Parameters | U19: Value | V19: Units | AG19: 6 | AH19: 0.474 | AI19: 0.474 | AJ19: 0.474 | AK19: 0.474 | AL19: 0.474 | AM19: 0.474 | AR19: 12 | AS19: 0.0407 | AT19: 0.1186 | BQ19: 11 | BR19: 1.2223 | BS19: 452.58 | BT19: 0.0804 | BU19: 0.0043 | BV19: 0.0045 | BW19: 0.0518 | BX19: 0.0039 | CC19: 11 | CD19: 0.5479 | CE19: 285.9535 | CF19: 0.0206 | CG19: 0.0012 | CH19: 0.0028 | CI19: 0.0161 | CJ19: 0.0011 | CN19: Sources: McCubbin and Delucchi, 1996 for emissions other than CO2e | DB19: 150 | DC19: 400 | DD19: 575 | DE19: 750 | DI19: 150 | DJ19: 1 | DK19: 1.013 | DP19: 0.012 | DQ19: 0.891 | DR19: 0.927 | DW19: ORsev | DX19: =1/1.05014749262537 -> 0.952247191 | DY19: =1/0.972697289554735 -> 1.028069072 | DZ19: 1 | EA19: 1 | EB19: -0.001481505335 | EC19: -0.001323833569 | ED19: 5.67437418 | EG19: 29
T20: Cycling Days per Year | U20: 365 | V20: days | Z20: Rail or Transit Cap Expansion | AC20: Please select a type of rail or transit project | AG20: 7 | AH20: 0.542 | AI20: 0.542 | AJ20: 0.542 | AK20: 0.542 | AL20: 0.542 | AM20: 0.542 | AR20: 13 | AS20: 0.0387 | AT20: 0.1137 | BQ20: 12 | BR20: 1.1846 | BS20: 429.7124 | BT20: 0.0775 | BU20: 0.0039 | BV20: 0.0042 | BW20: 0.0473 | BX20: 0.0036 | CC20: 12 | CD20: 0.5315 | CE20: 271.6169 | CF20: 0.0199 | CG20: 0.0011 | CH20: 0.0027 | CI20: 0.0147 | CJ20: 0.001 | CO20: Interagency Working Group on Social Cost of Carbon, United States Government, 2021 for CO2e | DB20: 175 | DC20: 500 | DD20: 700 | DE20: 750 | DI20: 175 | DJ20: 1 | DK20: 1 | DP20: 0.014 | DQ20: 0.873 | DR20: 0.915 | DW20: RMoth | DX20: 1 | DY20: 1 | DZ20: 1.025 | EA20: 0.9675072878 | EB20: -0.07356647791 | EC20: -0.03071615219 | ED20: -0.0696029926 | EE20: 1
C21: Heavy and Light Truck Drivers | J21: Percent ADT in Peak Period | N21: % | T21: Walking Days per Year | U21: 365 | V21: days | Z21: Passenger Rail | AB21: PassRail | AC21: Enter data in both sections 1B & 1E | AG21: 8 | AH21: 0.608 | AI21: 0.608 | AJ21: 0.608 | AK21: 0.608 | AL21: 0.608 | AM21: 0.608 | AR21: 14 | AS21: 0.0367 | AT21: 0.109 | BQ21: 13 | BR21: 1.148 | BS21: 408.0001 | BT21: 0.0748 | BU21: 0.0036 | BV21: 0.004 | BW21: 0.0433 | BX21: 0.0033 | CC21: 13 | CD21: 0.5156 | CE21: 257.9991 | CF21: 0.0192 | CG21: 0.001 | CH21: 0.0026 | CI21: 0.0134 | CJ21: 0.0009 | DB21: 200 | DC21: 575 | DD21: 750 | DE21: 750 | DI21: 200 | DJ21: 1 | DK21: 0.98 | DP21: 0.016 | DQ21: 0.855 | DR21: 0.903 | DW21: RMsev | DX21: 1 | DY21: 1 | DZ21: 1.050147493 | EA21: 0.9726972896 | EB21: -0.001481505335 | EC21: -0.001323833569 | ED21: 5.67437418 | EE21: 1
D22: Average Hourly Wage | E22: =(24.71*143150+22.09*111530)/(143150+111530)*(1.1578/1.1385)*ValueUpdate -> 23.96208111 | F22: $/hr | H22: 3 | J22: Percent ADT in Average Peak Hour | N22: % | T22: School Days per Year | U22: 180 | V22: days | Z22: Light-Rail (LRT) | AB22: LRT | AC22: Enter data in both sections 1B & 1E | AG22: 9 | AH22: 0.671 | AI22: 0.671 | AJ22: 0.671 | AK22: 0.671 | AL22: 0.671 | AM22: 0.671 | AR22: 15 | AS22: 0.0349 | AT22: 0.1044 | AY22: NUMBER OF FATALITIES | BG22: COST OF NON-HIGHWAY ACCIDENT EVENTS | BQ22: 14 | BR22: 1.1126 | BS22: 387.3849 | BT22: 0.0721 | BU22: 0.0033 | BV22: 0.0038 | BW22: 0.0396 | BX22: 0.003 | CC22: 14 | CD22: 0.5002 | CE22: 245.064 | CF22: 0.0185 | CG22: 0.0009 | CH22: 0.0024 | CI22: 0.0122 | CJ22: 0.0009 | DB22: 225 | DC22: 650 | DD22: 750 | DE22: 750 | DI22: 225 | DJ22: 1 | DK22: 0.949 | DP22: 0.018 | DQ22: 0.836 | DR22: 0.891 | DW22: TIoth | DX22: 1 | DY22: 1 | DZ22: 1.015463918 | EA22: 0.9691308177 | EB22: -0.1102658587 | EC22: -0.1187270477 | ED22: -0.3518002468 | EE22: 1
D23: Benefits and Costs | E23: =WageTruck*(32.42/21.65-1)*ValueUpdate -> 11.92016691 | F23: $/hr | H23: 4 | Z23: Bus | AB23: Bus | AC23: Enter data in both sections 1B & 1E | AG23: 10 | AH23: 0.734 | AI23: 0.734 | AJ23: 0.734 | AK23: 0.734 | AL23: 0.734 | AM23: 0.734 | AR23: 16 | AS23: 0.0351 | AT23: 0.1029 | AY23: (events/crash) | BG23: ($/event) | BQ23: 15 | BR23: 1.0783 | BS23: 367.8114 | BT23: 0.0696 | BU23: 0.003 | BV23: 0.0036 | BW23: 0.0361 | BX23: 0.0027 | CC23: 15 | CD23: 0.4853 | CE23: 232.7774 | CF23: 0.0178 | CG23: 0.0008 | CH23: 0.0023 | CI23: 0.0111 | CJ23: 0.0008 | DB23: 250 | DC23: 750 | DD23: 750 | DE23: 750 | DI23: 250 | DJ23: 1 | DK23: 0.919 | DP23: 0.02 | DQ23: 0.789 | DR23: 0.879 | DW23: TIsev | DX23: 1 | DY23: 1 | DZ23: 1.005899705 | EA23: 0.9718304881 | EB23: -0.391225726 | EC23: -0.3916022882 | ED23: -0.3518002468 | EE23: 1
J24: Annualization Factor | M24: 365 | N24: days/yr | S24: Vehicle Statistics | Z24: Hwy-Rail Grade Crossing | AB24: HwyRail | AC24: Put hwy design in 1B, safety in 1C & crossing in 1D | AG24: 11 | AH24: 0.79 | AI24: 0.79 | AJ24: 0.79 | AK24: 0.79 | AL24: 0.79 | AM24: 0.79 | AR24: 17 | AS24: 0.0352 | AT24: 0.1015 | BQ24: 16 | BR24: 1.0942 | BS24: 366.761 | BT24: 0.0702 | BU24: 0.0029 | BV24: 0.0036 | BW24: 0.0348 | BX24: 0.0026 | CC24: 16 | CD24: 0.5039 | CE24: 236.956 | CF24: 0.0184 | CG24: 0.0008 | CH24: 0.0023 | CI24: 0.0109 | CJ24: 0.0008 | CO24: PASSENGER TRAIN EMISSIONS FACTORS | DB24: 275 | DC24: 750 | DD24: 750 | DE24: 750 | DI24: 275 | DJ24: 0.991 | DK24: 0.89 | DP24: 0.022 | DQ24: 0.747 | DR24: 0.867
C25: Value of Time | T25: Average Vehicle Speed | U25: 25 | V25: mph | AG25: 12 | AH25: 0.843 | AI25: 0.843 | AJ25: 0.843 | AK25: 0.843 | AL25: 0.843 | AM25: 0.843 | AR25: 18 | AS25: 0.0354 | AT25: 0.1 | AY25: Accident Type | AZ25: Urban | BA25: Suburban | BB25: Rural | BC25: Average | BG25: Event | BH25: Pass Train | BI25: Light Rail | BJ25: Bus | BK25: Freight Rail | BQ25: 17 | BR25: 1.1103 | BS25: 365.7136 | BT25: 0.0708 | BU25: 0.0028 | BV25: 0.0036 | BW25: 0.0335 | BX25: 0.0025 | CC25: 17 | CD25: 0.5232 | CE25: 241.2096 | CF25: 0.019 | CG25: 0.0008 | CH25: 0.0024 | CI25: 0.0107 | CJ25: 0.0008 | CO25: (g/train-mile) | DB25: 300 | DC25: 750 | DD25: 750 | DE25: 750 | DI25: 300 | DJ25: 0.981 | DK25: 0.862 | DP25: 0.024 | DQ25: 0.706 | DR25: 0.855
D26: Automobile | E26: =ROUND(WageStatewide*0.5/5,2)*5 -> 16.2 | F26: $/hr/per | H26: 5 | N26: Capacity | O26: Dep. Rate | T26: Average Vehicle Occupancy | U26: 1.25 | V26: persons / veh | X26: 19 | Z26: Hwy Operational Improvement | AC26: Please select a type of op. improvement | AG26: 13 | AH26: 0.886 | AI26: 0.886 | AJ26: 0.886 | AK26: 0.886 | AL26: 0.886 | AM26: 0.886 | AR26: 19 | AS26: 0.0356 | AT26: 0.0986 | AY26: Fatal Accident | AZ26: 1.09 | BA26: 1.08 | BB26: 1.14 | BC26: 1.11 | BG26: Fatality | BH26: =FatValue -> 11800000 | BI26: =FatValue -> 11800000 | BJ26: =FatValue -> 11800000 | BK26: =FatValue -> 11800000 | BQ26: 18 | BR26: 1.1267 | BS26: 364.6693 | BT26: 0.0714 | BU26: 0.0027 | BV26: 0.0036 | BW26: 0.0323 | BX26: 0.0024 | CC26: 18 | CD26: 0.5433 | CE26: 245.5396 | CF26: 0.0197 | CG26: 0.0008 | CH26: 0.0024 | CI26: 0.0105 | CJ26: 0.0007 | DB26: 325 | DC26: 750 | DD26: 750 | DE26: 750 | DI26: 325 | DJ26: 0.971 | DK26: 0.834 | DP26: 0.026 | DQ26: 0.664 | DR26: 0.842 | DV26: Source: California Department of Transportation TMS Master Plan, 2003
D27: Truck | E27: =ROUND((WageTruck+FringeTruck)/5,2)*5 -> 35.9 | F27: $/hr/veh | H27: 5 | L27: Alpha | M27: Beta | N27: (vphpl) | O27: (vphpl) | Z27: Auxiliary Lane | AB27: AuxLane | AC27: Enter ramp design speed & on-ramp volume | AG27: 14 | AH27: 0.916 | AI27: 0.916 | AJ27: 0.916 | AK27: 0.916 | AL27: 0.916 | AM27: 0.916 | AR27: 20 | AS27: 0.0358 | AT27: 0.0972 | BG27: Injury | BH27: =ROUND((BC12*InjAValue+BC13*InjBValue)/SUM(BC12:BC13),-2) -> 211900 | BI27: =ROUND((BC12*InjAValue+BC13*InjBValue)/SUM(BC12:BC13),-2) -> 211900 | BJ27: =ROUND((BC12*InjAValue+BC13*InjBValue)/SUM(BC12:BC13),-2) -> 211900 | BK27: =ROUND((BC12*InjAValue+BC13*InjBValue)/SUM(BC12:BC13),-2) -> 211900 | BQ27: 19 | BR27: 1.1433 | BS27: 363.6278 | BT27: 0.072 | BU27: 0.0026 | BV27: 0.0036 | BW27: 0.0311 | BX27: 0.0024 | CC27: 19 | CD27: 0.5641 | CE27: 249.9473 | CF27: 0.0203 | CG27: 0.0008 | CH27: 0.0025 | CI27: 0.0103 | CJ27: 0.0007 | CO27: Mode | CP27: Year | CQ27: CO | CR27: CO2 | CS27: NOX | CT27: PM10 | CU27: SOX | CV27: VOC | CW27: PM2.5 | DB27: 350 | DC27: 750 | DD27: 750 | DE27: 750 | DI27: 350 | DJ27: 0.961 | DK27: 0.808 | DP27: 0.028 | DQ27: 0.623 | DR27: 0.817 | DW27: 29) Chaudhary and Messer, 2000
D28: Auto & Truck Composite | E28: =ROUND((1.3*ValTimeAuto*0.91+ValTimeTruck*0.09)/5,2)*5 -> 22.4 | F28: $/hr/veh | H28: 6 | J28: Freeway | L28: 0.2 | M28: 10 | N28: 2000 | O28: 1800 | Q28: 16, 17 | S28: Active Transportation User Characteristics | Z28: Freeway Connector | AB28: FreeConn | AC28: Check percent traffic in weave in section 1B | AG28: 15 | AH28: 0.943 | AI28: 0.943 | AJ28: 0.943 | AK28: 0.943 | AL28: 0.943 | AM28: 0.943 | AR28: 21 | AS28: 0.0354 | AT28: 0.094 | BG28: Prop Damage | BH28: 90000 | BI28: 14200 | BJ28: 4300 | BK28: =ROUND(156700, -2) -> 156700 | BQ28: 20 | BR28: 1.1601 | BS28: 362.5894 | BT28: 0.0726 | BU28: 0.0025 | BV28: 0.0036 | BW28: 0.03 | BX28: 0.0023 | CC28: 20 | CD28: 0.5858 | CE28: 254.4341 | CF28: 0.021 | CG28: 0.0008 | CH28: 0.0025 | CI28: 0.0101 | CJ28: 0.0007 | CO28: Passenger Train | CP28: 2010 | CQ28: 8.110940668 | CR28: 5150.447324 | CS28: 96.11464692 | CT28: 2.027735167 | CW28: 2.027735167 | DB28: 375 | DC28: 750 | DD28: 750 | DE28: 750 | DI28: 375 | DJ28: 0.952 | DK28: 0.782 | DP28: 0.03 | DQ28: 0.581 | DR28: 0.789
D29: Transit | E29: =ROUND(WageStatewide*0.5/5,2)*5 -> 16.2 | F29: $/hr/per | H29: 5 | J29: Expressway | L29: 0.2 | M29: 10 | N29: 2000 | O29: 1800 | Q29: 16, 17 | T29: Average Cycling Speed | U29: 8.7 | V29: mph | X29: 20 | Z29: HOV Connector | AB29: HOVConn | AC29: Check percent traffic in weave in section 1B | AG29: 16 | AH29: 0.964 | AI29: 0.964 | AJ29: 0.964 | AK29: 0.964 | AL29: 0.964 | AM29: 0.964 | AR29: 22 | AS29: 0.035 | AT29: 0.0909 | AY29: NUMBER OF INJURIES | BQ29: 21 | BR29: 1.1563 | BS29: 356.251 | BT29: 0.0724 | BU29: 0.0024 | BV29: 0.0035 | BW29: 0.0287 | BX29: 0.0022 | CC29: 21 | CD29: 0.591 | CE29: 253.2384 | CF29: 0.0211 | CG29: 0.0008 | CH29: 0.0025 | CI29: 0.0098 | CJ29: 0.0007 | CP29: 2040 | CQ29: 0.4055470334 | CR29: 359.3146716 | CS29: 4.866564401 | CT29: 0 | CW29: 0 | DB29: 400 | DC29: 750 | DD29: 750 | DE29: 750 | DI29: 400 | DJ29: 0.942 | DK29: 0.758 | DP29: 0.032 | DQ29: 0.54 | DR29: 0.761
D30: Out-of-Vehicle Travel | E30: 2 | F30: times | H30: 5 | J30: Conventional Highway | L30: 0.05 | M30: 10 | N30: 800 | O30: 1400 | Q30: 17 | T30: Average Walking Speed | U30: 3.3 | V30: mph | X30: 20 | Z30: HOV Drop Ramp | AB30: HOVDrop | AC30: Check percent traffic in weave in section 1B | AG30: 17 | AH30: 0.976 | AI30: 0.976 | AJ30: 0.976 | AK30: 0.976 | AL30: 0.976 | AM30: 0.976 | AR30: 23 | AS30: 0.0345 | AT30: 0.0879 | AY30: (events/crash) | BQ30: 22 | BR30: 1.1524 | BS30: 350.0234 | BT30: 0.0723 | BU30: 0.0022 | BV30: 0.0035 | BW30: 0.0275 | BX30: 0.0021 | CC30: 22 | CD30: 0.5964 | CE30: 252.0482 | CF30: 0.0213 | CG30: 0.0007 | CH30: 0.0025 | CI30: 0.0094 | CJ30: 0.0007 | DB30: 425 | DC30: 750 | DD30: 750 | DE30: 750 | DI30: 425 | DJ30: 0.932 | DK30: 0.734 | DP30: 0.034 | DQ30: 0.498 | DR30: 0.734
D31: Incident-Related Travel | E31: 3 | F31: times | H31: 7 | J31: HOV Lanes | L31: 0.55 | M31: 8 | N31: 1600 | Q31: 18 | T31: Number of Unlinked Cycling Trips per Day | U31: 2.23 | V31: trips | X31: 19 | Z31: Off-Ramp Widening | AB31: OffRamp | AC31: Check percent traffic in weave in section 1B | AG31: 18 | AH31: 0.985 | AI31: 0.985 | AJ31: 0.985 | AK31: 0.985 | AL31: 0.985 | AM31: 0.985 | AR31: 24 | AS31: 0.0341 | AT31: 0.085 | BF31: Sources: FTA, Transit Safety & Security Statistics, 2002 to 2011 average | BQ31: 23 | BR31: 1.1486 | BS31: 343.9046 | BT31: 0.0721 | BU31: 0.0022 | BV31: 0.0034 | BW31: 0.0263 | BX31: 0.002 | CC31: 23 | CD31: 0.6018 | CE31: 250.8636 | CF31: 0.0215 | CG31: 0.0007 | CH31: 0.0025 | CI31: 0.0091 | CJ31: 0.0006 | DB31: 450 | DC31: 750 | DD31: 750 | DE31: 750 | DI31: 450 | DJ31: 0.923 | DK31: 0.709 | DP31: 0.036 | DQ31: 0.476 | DR31: 0.706
D32: Travel Time Uprater | E32: 0 | F32: annual incr | T32: Number of Unlinked Pedestrian Trips per Day | U32: 2.1 | V32: trips | X32: 19 | Z32: On-Ramp Widening | AB32: OnRamp | AC32: Enter on-ramp volume & metering strategy | AG32: 19 | AH32: 0.991 | AI32: 0.991 | AJ32: 0.991 | AK32: 0.991 | AL32: 0.991 | AM32: 0.991 | AR32: 25 | AS32: 0.0337 | AT32: 0.0822 | AY32: Accident Type | AZ32: Urban | BA32: Suburban | BB32: Rural | BC32: Average | BG32: FRA, Office of Safety Analysis, Table 3.16, 2018 to 2020 average | BQ32: 24 | BR32: 1.1448 | BS32: 337.8928 | BT32: 0.0719 | BU32: 0.0021 | BV32: 0.0033 | BW32: 0.0252 | BX32: 0.0019 | CC32: 24 | CD32: 0.6072 | CE32: 249.6847 | CF32: 0.0217 | CG32: 0.0007 | CH32: 0.0025 | CI32: 0.0088 | CJ32: 0.0006 | CO32: LIGHT RAIL EMISSIONS FACTORS | DP32: 0.038 | DQ32: 0.473 | DR32: 0.678 | DW32: TRANSIT TRAVEL TIME AND AGENCY COST SAVINGS
N33: Capacity | T33: Diversion of Cyclists from Personal Vehicles | U33: 0.5 | V33: assumption | Z33: HOV-2 to HOV-3 Conv | AB33: HOV2to3 | AC33: Check AVOs & trips in sections 1B & 2D | AG33: 20 | AH33: 0.994 | AI33: 0.994 | AJ33: 0.994 | AK33: 0.994 | AL33: 0.994 | AM33: 0.994 | AR33: 26 | AS33: 0.0334 | AT33: 0.0813 | AY33: Fatal Accident | AZ33: 0.81 | BA33: 0.82 | BB33: 1.12 | BC33: 0.95 | BQ33: 25 | BR33: 1.141 | BS33: 331.9861 | BT33: 0.0718 | BU33: 0.002 | BV33: 0.0033 | BW33: 0.0242 | BX33: 0.0018 | CC33: 25 | CD33: 0.6127 | CE33: 248.5112 | CF33: 0.0218 | CG33: 0.0007 | CH33: 0.0025 | CI33: 0.0085 | CJ33: 0.0006 | CO33: (g/veh-mile) | DP33: 0.04 | DQ33: 0.471 | DR33: 0.65 | DW33: (percent savings)
B34: Vehicle Operating Cost Parameters | J34: Non-HOV Lanes | L34: Alpha | M34: Beta | N34: (vphpl) | T34: Diversion of Pedestrians from Personal Vehicles | U34: 0.5 | V34: assumption | Z34: HOT Lane Conversion | AB34: HOTConv | AC34: Check AVOs & trips in sections 1B & 2D | AG34: 21 | AH34: 0.997 | AI34: 0.997 | AJ34: 0.997 | AK34: 0.997 | AL34: 0.997 | AM34: 0.997 | AR34: 27 | AS34: 0.0331 | AT34: 0.0803 | AY34: Injury Accident | AZ34: 1.44 | BA34: 1.43 | BB34: 1.5 | BC34: 1.44 | BQ34: 26 | BR34: 1.1286 | BS34: 327.2741 | BT34: 0.0711 | BU34: 0.0019 | BV34: 0.0032 | BW34: 0.0232 | BX34: 0.0017 | CC34: 26 | CD34: 0.6144 | CE34: 247.79 | CF34: 0.022 | CG34: 0.0006 | CH34: 0.0024 | CI34: 0.0083 | CJ34: 0.0006 | DA34: Source: Paterson, 1987 | DH34: Source: Botterill, 1996 and 1997 | DP34: 0.042 | DQ34: 0.468 | DR34: 0.623
K35: No Build | AG35: 22 | AH35: 0.998 | AI35: 0.998 | AJ35: 0.998 | AK35: 0.998 | AL35: 0.998 | AM35: 0.998 | AR35: 28 | AS35: 0.0328 | AT35: 0.0794 | BG35: COSTS OF NON-HIGHWAY ACCIDENTS | BQ35: 27 | BR35: 1.1164 | BS35: 322.6289 | BT35: 0.0703 | BU35: 0.0018 | BV35: 0.0032 | BW35: 0.0222 | BX35: 0.0017 | CC35: 27 | CD35: 0.6161 | CE35: 247.0709 | CF35: 0.0221 | CG35: 0.0006 | CH35: 0.0024 | CI35: 0.008 | CJ35: 0.0006 | CO35: Mode | CP35: Year | CQ35: CO | CR35: CO2 | CS35: NOX | CT35: PM10 | CU35: SOX | CV35: VOC | CW35: PM2.5 | DP35: 0.044 | DQ35: 0.466 | DR35: 0.595 | DZ35: Travel | EA35: Agency Costs
C36: Average Fuel Price | K36: Build | S36: Value of Travel Time | Z36: Transp Mgmt Systems (TMS) | AC36: Please select a type of TMS project | AG36: 23 | AH36: 0.999 | AI36: 0.999 | AJ36: 0.999 | AK36: 0.999 | AL36: 0.999 | AM36: 0.999 | AR36: 29 | AS36: 0.0325 | AT36: 0.0785 | BG36: ($/million veh-mi) | BQ36: 28 | BR36: 1.1042 | BS36: 318.0497 | BT36: 0.0696 | BU36: 0.0017 | BV36: 0.0031 | BW36: 0.0213 | BX36: 0.0016 | CC36: 28 | CD36: 0.6178 | CE36: 246.3539 | CF36: 0.0222 | CG36: 0.0006 | CH36: 0.0024 | CI36: 0.0078 | CJ36: 0.0006 | CO36: Light Rail | CP36: 2021 | CQ36: 0.3079346802 | CR36: 1241.733628 | CS36: 0.3867304278 | CT36: 0.06629953509 | CU36: 0.0872871461 | CV36: 0.02548694683 | CW36: 0.06433220275 | DP36: 0.046 | DQ36: 0.463 | DR36: 0.567 | DW36: TMS Strategy | DZ36: Time | EA36: Capital | EB36: O&M
D37: Automobile (regular unleaded) | E37: =AVERAGE(3.227,4.39)*ValueUpdate -> 3.8085 | F37: $/gal | H37: 8 | T37: Adults | U37: =ValTimeAuto -> 16.2 | V37: $/hr/per | Z37: Ramp Metering | AB37: RM | AC37: Enter model data, if avail, in sections 2A & 2C | AG37: 24 | AH37: 1 | AI37: 1 | AJ37: 1 | AK37: 1 | AL37: 1 | AM37: 1 | AR37: 30 | AS37: 0.0322 | AT37: 0.0776 | AY37: NUMBER OF VEHICLES INVOLVED | BQ37: 29 | BR37: 1.0922 | BS37: 313.5355 | BT37: 0.0689 | BU37: 0.0017 | BV37: 0.0031 | BW37: 0.0204 | BX37: 0.0015 | CC37: 29 | CD37: 0.6195 | CE37: 245.6389 | CF37: 0.0224 | CG37: 0.0006 | CH37: 0.0024 | CI37: 0.0076 | CJ37: 0.0005 | CP37: 2022 | CQ37: 0.3079346802 | CR37: 1241.733628 | CS37: 0.3867304278 | CT37: 0.06629953509 | CU37: 0.0872871461 | CV37: 0.02548694683 | CW37: 0.06433220275 | DP37: 0.048 | DQ37: 0.46 | DR37: 0.54 | DW37: Transit Vehicle Location (AVL) | DZ37: 0.15 | EA37: 0.02 | EB37: 0.08
D38: Truck (diesel) | E38: =AVERAGE(4.372,3.366)*ValueUpdate -> 3.869 | F38: $/gal | H38: 8 | T38: Children | U38: =ValTimeAuto -> 16.2 | V38: $/hr/per | Z38: Ramp Metering Signal Coord | AB38: AM | AC38: Enter model data, if avail, in sections 2A & 2C | AR38: 31 | AS38: 0.0317 | AT38: 0.0778 | AY38: (events/crash) | BG38: Value | BH38: Pass Train | BI38: Light Rail | BJ38: Bus | BK38: Freight Rail | BQ38: 30 | BR38: 1.0804 | BS38: 309.0854 | BT38: 0.0682 | BU38: 0.0016 | BV38: 0.0031 | BW38: 0.0196 | BX38: 0.0015 | CC38: 30 | CD38: 0.6212 | CE38: 244.9261 | CF38: 0.0225 | CG38: 0.0006 | CH38: 0.0024 | CI38: 0.0074 | CJ38: 0.0005 | DB38: FUEL CONSUMPTION | DI38: NON-FUEL COSTS | DP38: 0.05 | DQ38: 0.458 | DR38: 0.512 | DW38: Transit Vehicle Signal Priority | DZ38: 0.1 | EA38: - | EB38: -
I39: Sources: 16) Highway Capacity Manual, 17) NCHRP 387, 18) PeMS data | Z39: Incident Management | AB39: IM | AC39: Enter model data, if avail, in sections 2A & 2C | AR39: 32 | AS39: 0.0313 | AT39: 0.0781 | BG39: Cost | BH39: =ROUND(BH12*BH26+BH13*BH27+BH14*BH28,-2) -> 1037400 | BI39: =ROUND(BI12*BI26+BI13*BI27+BI14*BI28,-2) -> 3528600 | BJ39: =ROUND(BJ12*BJ26+BJ13*BJ27+BJ14*BJ28,-2) -> 1200600 | BK39: =ROUND(BK12*BK26+BK13*BK27+BK14*BK28,-2) -> 15860000 | BQ39: 31 | BR39: 1.0681 | BS39: 304.8313 | BT39: 0.0679 | BU39: 0.0016 | BV39: 0.003 | BW39: 0.019 | BX39: 0.0014 | CC39: 31 | CD39: 0.6126 | CE39: 241.3366 | CF39: 0.0222 | CG39: 0.0006 | CH39: 0.0024 | CI39: 0.0071 | CJ39: 0.0005 | DB39: (percent adjustment) | DI39: (percent adjustment) | DP39: 0.052 | DQ39: 0.455 | DR39: 0.484 | DW39: Bus Rapid Transit (BRT) | DZ39: 0.29 | EA39: - | EB39: -
C40: Sales and Fuel Taxes | S40: Cycling Journey Quality - Facility Preference Factors as Function of Distance by Facility Class | Z40: Traveler Information | AB40: TI | AC40: Enter model data, if avail, in sections 2A & 2C | AF40: Source: California Department of Transportation, 2010-2012 California Household Travel | AR40: 33 | AS40: 0.0308 | AT40: 0.0784 | AY40: Accident Type | AZ40: Urban | BA40: Suburban | BB40: Rural | BC40: Average | BQ40: 32 | BR40: 1.0561 | BS40: 300.6357 | BT40: 0.0675 | BU40: 0.0015 | BV40: 0.003 | BW40: 0.0184 | BX40: 0.0014 | CC40: 32 | CD40: 0.6042 | CE40: 237.7997 | CF40: 0.022 | CG40: 0.0005 | CH40: 0.0024 | CI40: 0.0068 | CJ40: 0.0005 | CO40: FREIGHT LOCOMOTIVE EMISSIONS FACTORS | DP40: 0.054 | DQ40: 0.453 | DR40: 0.476
D41: State Sales Tax (gasoline) | E41: 0.0225 | F41: % | H41: 9 | T41: Class I | U41: 0.57 | V41: - | X41: 21 | Z41: Arterial Signal Management | AB41: ASM | AC41: Complete only sections 1A, 1E & 2C | AF41: Survey, Final Report Appendix, June 2013 | AR41: 34 | AS41: 0.0304 | AT41: 0.0787 | AY41: Fatal Accident | AZ41: 1.51 | BA41: 1.69 | BB41: 1.58 | BC41: 1.63 | BQ41: 33 | BR41: 1.0441 | BS41: 296.4979 | BT41: 0.0671 | BU41: 0.0014 | BV41: 0.0029 | BW41: 0.0178 | BX41: 0.0013 | CC41: 33 | CD41: 0.5959 | CE41: 234.3147 | CF41: 0.0217 | CG41: 0.0005 | CH41: 0.0023 | CI41: 0.0065 | CJ41: 0.0005 | CO41: (g/gal) | DB41: IRI | DC41: Auto | DD41: Truck | DI41: IRI | DJ41: Auto | DK41: Truck | DP41: 0.056 | DQ41: 0.453 | DR41: 0.474
D42: State Sales Tax (diesel) | E42: 0.13 | F42: % | H42: 9 | T42: Class II | U42: 0.49 | V42: - | X42: 21 | Z42: Transit Vehicle Location (AVL) | AB42: AVL | AC42: Enter transit agency costs in section 1D | AR42: 35 | AS42: 0.03 | AT42: 0.079 | AY42: Injury Accident | AZ42: 1.82 | BA42: 2.1 | BB42: 1.59 | BC42: 1.99 | BF42: Source: Combination of above two tables | BQ42: 34 | BR42: 1.0323 | BS42: 292.4171 | BT42: 0.0667 | BU42: 0.0014 | BV42: 0.0029 | BW42: 0.0172 | BX42: 0.0013 | CC42: 34 | CD42: 0.5877 | CE42: 230.8807 | CF42: 0.0215 | CG42: 0.0005 | CH42: 0.0023 | CI42: 0.0063 | CJ42: 0.0005 | DB42: 0 | DC42: 0.971 | DD42: 0.961 | DI42: 0 | DJ42: 1 | DK42: 1 | DP42: 0.058 | DQ42: 0.453 | DR42: 0.473 | DV42: Sources: FHWA ITS Deployment Analysis System (IDAS), California PATH
D43: Average Local Sales Tax | E43: 0.005 | F43: % | H43: 9 | T43: Class III | U43: 0.92 | V43: - | X43: 21 | Z43: Transit Vehicle Signal Priority | AB43: SigPriority | AC43: Check travel time in section 1D | AR43: 36 | AS43: 0.0298 | AT43: 0.0794 | AY43: PDO Accident | AZ43: 1.8 | BA43: 2.03 | BB43: 1.59 | BC43: 1.96 | BQ43: 35 | BR43: 1.0206 | BS43: 288.3924 | BT43: 0.0663 | BU43: 0.0013 | BV43: 0.0029 | BW43: 0.0167 | BX43: 0.0012 | CC43: 35 | CD43: 0.5796 | CE43: 227.497 | CF43: 0.0212 | CG43: 0.0005 | CH43: 0.0022 | CI43: 0.006 | CJ43: 0.0004 | CO43: Mode | CP43: Year | CQ43: CO | CR43: CO2 | CS43: NOX | CT43: PM10 | CU43: SOX | CV43: VOC | CW43: PM2.5 | DB43: 25 | DC43: 0.977 | DD43: 0.965 | DI43: 25 | DJ43: 1 | DK43: 1 | DP43: 0.06 | DQ43: 0.453 | DR43: 0.471
D44: Federal Fuel Excise Tax (gasoline) | E44: 0.183 | F44: $/gal | H44: 9 | T44: Class IV | U44: =CLASS2MRS -> 0.49 | V44: - | X44: 21 | Z44: Bus Rapid Transit (BRT) | AB44: BRT | AC44: Enter free-flow bus lane speed in section 1B | AR44: 37 | AS44: 0.0297 | AT44: 0.0799 | BQ44: 36 | BR44: 1.0098 | BS44: 287.1873 | BT44: 0.0661 | BU44: 0.0013 | BV44: 0.0028 | BW44: 0.0163 | BX44: 0.0012 | CC44: 36 | CD44: 0.5729 | CE44: 226.5716 | CF44: 0.0211 | CG44: 0.0005 | CH44: 0.0022 | CI44: 0.0058 | CJ44: 0.0004 | CO44: Freight Rail | CP44: 2020 | CQ44: 26.62 | CR44: 10217 | CS44: 107.38 | CT44: 3.2 | CW44: 3.11 | DB44: 50 | DC44: 0.98 | DD44: 0.97 | DI44: 50 | DJ44: 1 | DK44: 1 | DP44: 0.062 | DQ44: 0.453 | DR44: 0.469
D45: Federal Fuel Excise Tax (diesel) | E45: 0.243 | F45: $/gal | H45: 9 | T45: Note: Class IV assumed to be the same as Class II | AR45: 38 | AS45: 0.0296 | AT45: 0.0803 | BQ45: 37 | BR45: 0.9991 | BS45: 285.9872 | BT45: 0.0658 | BU45: 0.0013 | BV45: 0.0028 | BW45: 0.0159 | BX45: 0.0012 | CC45: 37 | CD45: 0.5664 | CE45: 225.6499 | CF45: 0.021 | CG45: 0.0004 | CH45: 0.0022 | CI45: 0.0057 | CJ45: 0.0004 | CP45: 2030 | CQ45: 26.62 | CR45: 10217 | CS45: 70.92 | CT45: 1.88 | CW45: 1.83 | DB45: 75 | DC45: 0.982 | DD45: 0.975 | DI45: 75 | DJ45: 1 | DK45: 1 | DP45: 0.064 | DQ45: 0.453 | DR45: 0.467
D46: State Fuel Excise Tax (gasoline) | E46: 0.511 | F46: $/gal | H46: 9 | Z46: TMS Lookup Code | AB46: TMSLookup | AG46: AGE COHORTS FOR MORTALITY RISK REDUCTION | AR46: 39 | AS46: 0.0295 | AT46: 0.0808 | AY46: DISTRIBUTION OF CRASH TYPES | BG46: HIGHWAY-RAIL GRADE CROSSING INCIDENTS | BQ46: 38 | BR46: 0.9885 | BS46: 284.7922 | BT46: 0.0656 | BU46: 0.0012 | BV46: 0.0028 | BW46: 0.0155 | BX46: 0.0011 | CC46: 38 | CD46: 0.5599 | CE46: 224.7319 | CF46: 0.0208 | CG46: 0.0004 | CH46: 0.0022 | CI46: 0.0055 | CJ46: 0.0004 | DB46: 100 | DC46: 0.985 | DD46: 0.98 | DI46: 100 | DJ46: 1 | DK46: 1 | DP46: 0.066 | DQ46: 0.453 | DR46: 0.466
D47: State Fuel Excise Tax (diesel) | E47: 0.389 | F47: $/gal | H47: 9 | S47: Walking Journey Quality Values per Mile by Amentity | Z47: User Modified Inputs | AB47: UserAdjInputs | AG47: (percent of population) | AR47: 40 | AS47: 0.0293 | AT47: 0.0812 | AY47: (percent of crashes) | BG47: (units in table) | BQ47: 39 | BR47: 0.978 | BS47: 283.6021 | BT47: 0.0653 | BU47: 0.0012 | BV47: 0.0028 | BW47: 0.0152 | BX47: 0.0011 | CC47: 39 | CD47: 0.5535 | CE47: 223.8177 | CF47: 0.0207 | CG47: 0.0004 | CH47: 0.0022 | CI47: 0.0053 | CJ47: 0.0004 | CR47: Freight Rail Fuel Efficiency | CS47: 480 | CT47: ton-miles/gal | DB47: 125 | DC47: 0.99 | DD47: 0.986 | DI47: 125 | DJ47: 1 | DK47: 1 | DP47: 0.068 | DQ47: 0.453 | DR47: 0.464
T48: Street Lighting | U48: 0.11 | V48: $/mi | X48: 22 | AR48: 41 | AS48: 0.0294 | AT48: 0.0813 | BQ48: 40 | BR48: 0.9677 | BS48: 282.417 | BT48: 0.0651 | BU48: 0.0012 | BV48: 0.0028 | BW48: 0.0148 | BX48: 0.0011 | CC48: 40 | CD48: 0.5471 | CE48: 222.9072 | CF48: 0.0206 | CG48: 0.0004 | CH48: 0.0022 | CI48: 0.0052 | CJ48: 0.0004 | CR48: Fuel Burned at Idle | CS48: =AVERAGE(3,5) -> 4 | CT48: gal/hr | DB48: 150 | DC48: 0.995 | DD48: 0.993 | DI48: 150 | DJ48: 1.017 | DK48: 1.018 | DP48: 0.07 | DQ48: 0.453 | DR48: 0.462
C49: Fuel Cost Per Gallon (Exclude Taxes) | T49: Curb Level | U49: 0.078 | V49: $/mi | X49: 22 | AJ49: Urban | AR49: 42 | AS49: 0.0294 | AT49: 0.0813 | AY49: Accident Type | AZ49: Urban | BA49: Suburban | BB49: Rural | BC49: Average | BG49: Value | BH49: Incident | BI49: Fatality | BJ49: Injury | BQ49: 41 | BR49: 0.9542 | BS49: 282.6316 | BT49: 0.0649 | BU49: 0.0012 | BV49: 0.0028 | BW49: 0.0146 | BX49: 0.0011 | CC49: 41 | CD49: 0.5398 | CE49: 223.3585 | CF49: 0.0205 | CG49: 0.0004 | CH49: 0.0022 | CI49: 0.0051 | CJ49: 0.0004 | DB49: 175 | DC49: 1 | DD49: 1 | DI49: 175 | DJ49: 1.034 | DK49: 1.038 | DP49: 0.072 | DQ49: 0.453 | DR49: 0.46
D50: Automobile | E50: =ROUND((FuelPriceAuto/(1+SalesTaxGasState+SalesTaxLocal)-ExciseTaxGasFed-ExciseTaxGasState)/5,2)*5 -> 3 | F50: $/gal | T50: Crowding | U50: 0.055 | V50: $/mi | X50: 22 | AG50: Mode | AH50: Age Cohort | AJ50: South | AK50: North | AL50: Rural | AR50: 43 | AS50: 0.0295 | AT50: 0.0814 | AY50: Fatal Accident | AZ50: =ROUND(553/123662,4) -> 0.0045 | BA50: =ROUND(250/34195,4) -> 0.0073 | BB50: =ROUND(559/27456,4) -> 0.0204 | BC50: =ROUND(1362/185313,4) -> 0.0073 | BE50: 26 | BG50: Total Events | BH50: 847 | BI50: 80 | BJ50: 462 | BQ50: 42 | BR50: 0.9408 | BS50: 282.8464 | BT50: 0.0647 | BU50: 0.0011 | BV50: 0.0028 | BW50: 0.0144 | BX50: 0.001 | CC50: 42 | CD50: 0.5325 | CE50: 223.8107 | CF50: 0.0205 | CG50: 0.0004 | CH50: 0.0022 | CI50: 0.005 | CJ50: 0.0004 | DB50: 200 | DC50: 1.005 | DD50: 1.007 | DI50: 200 | DJ50: 1.052 | DK50: 1.058 | DP50: 0.074 | DQ50: 0.453 | DR50: 0.459
D51: Truck | E51: =ROUND((FuelPriceTruck/(1+SalesTaxDieselState)-ExciseTaxDieselFed-ExciseTaxDieselState)/5,2)*5 -> 2.8 | F51: $/gal | T51: Pavement Evenness | U51: 0.026 | V51: $/mi | X51: 22 | AG51: Cycling | AH51: Age 16-64 | AJ51: 0.549 | AK51: 0.549 | AL51: 0.446 | AR51: 44 | AS51: 0.0295 | AT51: 0.0814 | AY51: Injury Accident | AZ51: =ROUND(39513/123662,4) -> 0.3195 | BA51: =ROUND(11328/34195,4) -> 0.3313 | BB51: =ROUND(9886/27456,4) -> 0.3601 | BC51: =ROUND(60727/185313,4) -> 0.3277 | BE51: 26 | BG51: Avg per Incident | BI51: =ROUND(BI50/BH50,4) -> 0.0945 | BJ51: =ROUND(BJ50/BH50,4) -> 0.5455 | BQ51: 43 | BR51: 0.9277 | BS51: 283.0613 | BT51: 0.0645 | BU51: 0.0011 | BV51: 0.0028 | BW51: 0.0142 | BX51: 0.001 | CC51: 43 | CD51: 0.5253 | CE51: 224.2638 | CF51: 0.0204 | CG51: 0.0004 | CH51: 0.0022 | CI51: 0.005 | CJ51: 0.0004 | CN51: Sources: Argonne National Laboratory, Energy Systems, GREET Model, 2021 | DB51: 225 | DC51: 1.012 | DD51: 1.017 | DI51: 225 | DJ51: 1.07 | DK51: 1.078 | DP51: 0.076 | DQ51: 0.453 | DR51: 0.457
T52: Information Panels | U52: 0.026 | V52: $/mi | X52: 22 | AG52: Walking | AH52: Age 16-74 | AJ52: 0.805 | AK52: 0.805 | AL52: 0.799 | AR52: 45 | AS52: 0.0295 | AT52: 0.0814 | AY52: PDO Accident | AZ52: =ROUND(83596/123662,4) -> 0.676 | BA52: =ROUND(22617/34195,4) -> 0.6614 | BB52: =ROUND(17011/27456,4) -> 0.6196 | BC52: =ROUND(123224/185313,4) -> 0.665 | BE52: 26 | BG52: Cost per Event | BI52: =BH26 -> 11800000 | BJ52: =BH27 -> 211900 | BQ52: 44 | BR52: 0.9147 | BS52: 283.2764 | BT52: 0.0643 | BU52: 0.0011 | BV52: 0.0028 | BW52: 0.014 | BX52: 0.001 | CC52: 44 | CD52: 0.5182 | CE52: 224.7179 | CF52: 0.0203 | CG52: 0.0004 | CH52: 0.0022 | CI52: 0.0049 | CJ52: 0.0004 | CO52: FTA, National Transit Database, Fuel and Energy, 2019 | DB52: 250 | DC52: 1.019 | DD52: 1.026 | DI52: 250 | DJ52: 1.088 | DK52: 1.097 | DP52: 0.078 | DQ52: 0.453 | DR52: 0.455
C53: Non-Fuel Cost Per Mile | T53: Benches | U53: 0.017 | V53: $/mi | X53: 22 | AR53: 46 | AS53: 0.0299 | AT53: 0.0786 | BQ53: 45 | BR53: 0.902 | BS53: 283.4917 | BT53: 0.0641 | BU53: 0.0011 | BV53: 0.0028 | BW53: 0.0138 | BX53: 0.001 | CC53: 45 | CD53: 0.5112 | CE53: 225.1728 | CF53: 0.0203 | CG53: 0.0004 | CH53: 0.0022 | CI53: 0.0048 | CJ53: 0.0004 | CO53: Energy Information Administration, Electricty Retail Sales, 2019 | DB53: 275 | DC53: 1.027 | DD53: 1.036 | DI53: 275 | DJ53: 1.105 | DK53: 1.117 | DP53: 0.08 | DQ53: 0.453 | DR53: 0.453
D54: Automobile | E54: 0.356 | F54: $/mi | H54: 10 | T54: Directional Signage | U54: 0.017 | V54: $/mi | X54: 22 | AR54: 47 | AS54: 0.0302 | AT54: 0.0758 | BQ54: 46 | BR54: 0.895 | BS54: 286.147 | BT54: 0.0643 | BU54: 0.0011 | BV54: 0.0028 | BW54: 0.0138 | BX54: 0.001 | CC54: 46 | CD54: 0.5081 | CE54: 228.0552 | CF54: 0.0203 | CG54: 0.0004 | CH54: 0.0023 | CI54: 0.0048 | CJ54: 0.0004 | CO54: Association of American Railroads, Freight Rail & Preserving the Environment, April 2021 | DB54: 300 | DC54: 1.034 | DD54: 1.047 | DI54: 300 | DJ54: 1.123 | DK54: 1.137
D55: Truck | E55: 0.44 | F55: $/mi | H55: 11 | AG55: AVERAGE DISTANCE PER ACTIVE TRANSPORTATION TRIP | AR55: 48 | AS55: 0.0305 | AT55: 0.0731 | AX55: Source: California Department of Transportation,TASAS Unit, 2010 to 2013 average | BF55: Source: FRA, Office of Safety Analysis, 5.10 - Hwy/Rail Incidents Summary | BQ55: 47 | BR55: 0.8882 | BS55: 288.8273 | BT55: 0.0645 | BU55: 0.0011 | BV55: 0.0029 | BW55: 0.0138 | BX55: 0.001 | CC55: 47 | CD55: 0.5051 | CE55: 230.9745 | CF55: 0.0204 | CG55: 0.0004 | CH55: 0.0023 | CI55: 0.0048 | CJ55: 0.0004 | CO55: California Environmental Protection Agency / Air Resources Board, Technology Assessment: | DB55: 325 | DC55: 1.041 | DD55: 1.058 | DI55: 325 | DJ55: 1.141 | DK55: 1.156
S56: Health (Absenteeism Reduction) | AG56: (miles/trip) | AR56: 49 | AS56: 0.0309 | AT56: 0.0705 | BG56: Table, California, Motor Vehicles, Public Crossings, Jan 2011 to Dec 2020 | BQ56: 48 | BR56: 0.8814 | BS56: 291.5326 | BT56: 0.0647 | BU56: 0.0011 | BV56: 0.0029 | BW56: 0.0137 | BX56: 0.001 | CC56: 48 | CD56: 0.5021 | CE56: 233.9312 | CF56: 0.0205 | CG56: 0.0004 | CH56: 0.0023 | CI56: 0.0048 | CJ56: 0.0004 | CO56: Freight Locomotives, November 2016 | DB56: 350 | DC56: 1.05 | DD56: 1.07 | DI56: 350 | DJ56: 1.159 | DK56: 1.176 | DO56: Source: Fitzpatrick, Brewer, and Venglar, 2003
C57: Idling Speed for Op. Costs and Emissions | E57: 5 | F57: mph | T57: Average Absence of Employees | U57: 3.5 | V57: days/yr | X57: 23 | AR57: 50 | AS57: 0.0312 | AT57: 0.068 | BQ57: 49 | BR57: 0.8746 | BS57: 294.2633 | BT57: 0.0649 | BU57: 0.0011 | BV57: 0.0029 | BW57: 0.0137 | BX57: 0.001 | CC57: 49 | CD57: 0.4991 | CE57: 236.9257 | CF57: 0.0206 | CG57: 0.0004 | CH57: 0.0023 | CI57: 0.0048 | CJ57: 0.0004 | DB57: 375 | DC57: 1.061 | DD57: 1.085 | DI57: 375 | DJ57: 1.176 | DK57: 1.196
T58: Percentage Covered by Short-Term Sick Leave | U58: 0.66 | V58: % | X58: 23 | AJ58: Urban | AR58: 51 | AS58: 0.0316 | AT58: 0.0707 | BQ58: 50 | BR58: 0.8679 | BS58: 297.0195 | BT58: 0.0652 | BU58: 0.0011 | BV58: 0.0029 | BW58: 0.0137 | BX58: 0.001 | CC58: 50 | CD58: 0.4961 | CE58: 239.9586 | CF58: 0.0207 | CG58: 0.0004 | CH58: 0.0024 | CI58: 0.0048 | CJ58: 0.0004 | DB58: 400 | DC58: 1.072 | DD58: 1.1 | DI58: 400 | DJ58: 1.194 | DK58: 1.216
B59: Accident Cost Parameters | T59: Percentage of Sick Days Reduced When Active at Least 30 Minutes per Day | U59: 0.06 | V59: % | X59: 24 | AG59: Mode | AH59: Age Cohort | AJ59: South | AK59: North | AL59: Rural | AR59: 52 | AS59: 0.0321 | AT59: 0.0735 | BQ59: 51 | BR59: 0.8608 | BS59: 300.5677 | BT59: 0.0655 | BU59: 0.0011 | BV59: 0.003 | BW59: 0.0138 | BX59: 0.001 | CC59: 51 | CD59: 0.4937 | CE59: 243.8377 | CF59: 0.0209 | CG59: 0.0004 | CH59: 0.0024 | CI59: 0.0049 | CJ59: 0.0004 | DB59: 425 | DC59: 1.082 | DD59: 1.114 | DI59: 425 | DJ59: 1.212 | DK59: 1.235
AG60: Cycling | AH60: Adults | AJ60: 2.29 | AK60: 2.29 | AL60: 7.89 | AR60: 53 | AS60: 0.0325 | AT60: 0.0764 | AY60: COST OF HIGHWAY ACCIDENTS | BG60: PASSING LANE ACCIDENT REDUCTION FACTORS | BQ60: 52 | BR60: 0.8537 | BS60: 304.1583 | BT60: 0.0659 | BU60: 0.0011 | BV60: 0.003 | BW60: 0.0139 | BX60: 0.001 | CC60: 52 | CD60: 0.4913 | CE60: 247.7794 | CF60: 0.0211 | CG60: 0.0004 | CH60: 0.0024 | CI60: 0.0049 | CJ60: 0.0004 | DB60: 450 | DC60: 1.093 | DD60: 1.129 | DI60: 450 | DJ60: 1.23 | DK60: 1.255
C61: Cost of a Fatality | E61: =ROUND(11600000*(1.1578/1.1385)*ValueUpdate,-5) -> 11800000 | F61: $/event | H61: 12 | S61: Health (Mortality Reduction) | AH61: Children <16 | AJ61: 0.99 | AK61: 0.99 | AL61: 0.78 | AR61: 54 | AS61: 0.033 | AT61: 0.0794 | AY61: ($/accident) | BG61: (rate with passing lane/rate without passing lane) | BQ61: 53 | BR61: 0.8467 | BS61: 307.7918 | BT61: 0.0663 | BU61: 0.0011 | BV61: 0.003 | BW61: 0.014 | BX61: 0.001 | CC61: 53 | CD61: 0.4889 | CE61: 251.7849 | CF61: 0.0213 | CG61: 0.0004 | CH61: 0.0025 | CI61: 0.005 | CJ61: 0.0004
T62: Percentage of Cyclists Aged 16-64 | U62: 0.446 | V62: % | AG62: Walking | AH62: Adults | AJ62: 0.68 | AK62: 0.68 | AL62: 0.6 | AR62: 55 | AS62: 0.0334 | AT62: 0.0826 | BQ62: 54 | BR62: 0.8398 | BS62: 311.4687 | BT62: 0.0667 | BU62: 0.0011 | BV62: 0.0031 | BW62: 0.0141 | BX62: 0.001 | CC62: 54 | CD62: 0.4866 | CE62: 255.8552 | CF62: 0.0215 | CG62: 0.0004 | CH62: 0.0025 | CI62: 0.0051 | CJ62: 0.0004
C63: Cost of an Injury | T63: Percentage of Pedestrians Aged 16-74 | U63: 0.799 | V63: % | AH63: Children <16 | AJ63: 0.63 | AK63: 0.63 | AL63: 1.08 | AR63: 56 | AS63: 0.0337 | AT63: 0.0865 | AY63: Accident Type | AZ63: Urban | BA63: Suburban | BB63: Rural | BC63: Average | BG63: Minimum ADT | BH63: Fatality | BI63: Injury | BJ63: PDO | BQ63: 55 | BR63: 0.8329 | BS63: 315.1895 | BT63: 0.0671 | BU63: 0.0011 | BV63: 0.0031 | BW63: 0.0142 | BX63: 0.001 | CC63: 55 | CD63: 0.4842 | CE63: 259.9912 | CF63: 0.0217 | CG63: 0.0004 | CH63: 0.0026 | CI63: 0.0051 | CJ63: 0.0004 | DA63: Source: Texas Transportation Institute, 1994 | DH63: Source: ARRB Research Board TR VOC Model
D64: Level A (Severe) | E64: =ROUND(521300*(1.1578/1.1244)*ValueUpdate,-2) -> 536800 | F64: $/event | H64: 12 | AR64: 57 | AS64: 0.034 | AT64: 0.0907 | AY64: Fatal Accident | AZ64: =ROUND(FatValue*AZ26+(InjAValue*AZ$12+InjBValue*AZ$13+InjCValue*AZ$14)*AZ33+NoInjValue*AZ41,-5) -> 13000000 | BA64: =ROUND(FatValue*BA26+(InjAValue*BA$12+InjBValue*BA$13+InjCValue*BA$14)*BA33+NoInjValue*BA41,-5) -> 12800000 | BB64: =ROUND(FatValue*BB26+(InjAValue*BB$12+InjBValue*BB$13+InjCValue*BB$14)*BB33+NoInjValue*BB41,-5) -> 13600000 | BC64: =ROUND(FatValue*BC26+(InjAValue*BC$12+InjBValue*BC$13+InjCValue*BC$14)*BC33+NoInjValue*BC41,-5) -> 13200000 | BG64: 0 | BH64: 0.25 | BI64: 0.694 | BJ64: 0.926 | BQ64: 56 | BR64: 0.8167 | BS64: 317.3875 | BT64: 0.0668 | BU64: 0.0011 | BV64: 0.0031 | BW64: 0.0143 | BX64: 0.001 | CC64: 56 | CD64: 0.4772 | CE64: 262.646 | CF64: 0.0218 | CG64: 0.0004 | CH64: 0.0026 | CI64: 0.0052 | CJ64: 0.0004
D65: Level B (Moderate) | E65: =ROUND(142000*(1.1578/1.1244)*ValueUpdate,-2) -> 146200 | F65: $/event | H65: 12 | T65: Percentage Reduction in Mortality per 365 Annual Cycling Miles | U65: 0.045 | V65: % | X65: 20 | AR65: 58 | AS65: 0.0343 | AT65: 0.095 | AY65: Injury Accident | AZ65: =ROUND((InjAValue*AZ$12+InjBValue*AZ$13+InjCValue*AZ$14)*AZ34+NoInjValue*AZ42,-2) -> 173000 | BA65: =ROUND((InjAValue*BA$12+InjBValue*BA$13+InjCValue*BA$14)*BA34+NoInjValue*BA42,-2) -> 172600 | BB65: =ROUND((InjAValue*BB$12+InjBValue*BB$13+InjCValue*BB$14)*BB34+NoInjValue*BB42,-2) -> 179300 | BC65: =ROUND((InjAValue*BC$12+InjBValue*BC$13+InjCValue*BC$14)*BC34+NoInjValue*BC42,-2) -> 173400 | BG65: 5000 | BH65: 0.192 | BI65: 0.803 | BJ65: 0.965 | BQ65: 57 | BR65: 0.8008 | BS65: 319.6009 | BT65: 0.0666 | BU65: 0.0011 | BV65: 0.0032 | BW65: 0.0144 | BX65: 0.001 | CC65: 57 | CD65: 0.4703 | CE65: 265.3279 | CF65: 0.022 | CG65: 0.0004 | CH65: 0.0026 | CI65: 0.0053 | CJ65: 0.0004
D66: Level C (Minor) | E66: =ROUND(72500*(1.1578/1.1244)*ValueUpdate,-2) -> 74700 | F66: $/event | H66: 12 | T66: Percentage Reduction in Mortality per 365 Annual Walking Miles | U66: 0.09 | V66: % | X66: 20 | AG66: TRIP PURPOSE FOR ACTIVE TRANSPORTATION TRIPS | AR66: 59 | AS66: 0.0345 | AT66: 0.0995 | AY66: PDO Accident | AZ66: =ROUND(NoInjValue*AZ43*2,-2) -> 10400 | BA66: =ROUND(NoInjValue*BA43*2,-2) -> 11800 | BB66: =ROUND(NoInjValue*BB43*2,-2) -> 9200 | BC66: =ROUND(NoInjValue*BC43*2,-2) -> 11400 | BG66: 10000 | BH66: 0.84 | BI66: 0.577 | BJ66: 0.978 | BQ66: 58 | BR66: 0.7852 | BS66: 321.8297 | BT66: 0.0664 | BU66: 0.0011 | BV66: 0.0032 | BW66: 0.0144 | BX66: 0.0011 | CC66: 58 | CD66: 0.4635 | CE66: 268.0372 | CF66: 0.0222 | CG66: 0.0004 | CH66: 0.0026 | CI66: 0.0054 | CJ66: 0.0004
AG67: (percent of trips) | AR67: 60 | AS67: 0.0348 | AT67: 0.1043 | AY67: All Types | AZ67: =ROUND(AZ50*AZ64+AZ51*AZ65+AZ52*AZ66,-2) -> 120800 | BA67: =ROUND(BA50*BA64+BA51*BA65+BA52*BA66,-2) -> 158400 | BB67: =ROUND(BB50*BB64+BB51*BB65+BB52*BB66,-2) -> 347700 | BC67: =ROUND(BC50*BC64+BC51*BC65+BC52*BC66,-2) -> 160800 | BQ67: 59 | BR67: 0.7699 | BS67: 324.074 | BT67: 0.0662 | BU67: 0.0012 | BV67: 0.0032 | BW67: 0.0145 | BX67: 0.0011 | CC67: 59 | CD67: 0.4568 | CE67: 270.7741 | CF67: 0.0223 | CG67: 0.0004 | CH67: 0.0027 | CI67: 0.0055 | CJ67: 0.0004
C68: Cost of Property Damage | E68: =ROUND(2440*(1.1578/0.9622)*ValueUpdate,-2) -> 2900 | F68: $/event | H68: 13 | T68: Morality Rate - All Causes (Aged 20-64) | U68: 252 | V68: #/100,000 people | X68: 25 | AR68: 61 | AS68: 0.0351 | AT68: 0.1062 | BQ68: 60 | BR68: 0.7549 | BS68: 326.334 | BT68: 0.066 | BU68: 0.0012 | BV68: 0.0032 | BW68: 0.0146 | BX68: 0.0011 | CC68: 60 | CD68: 0.4502 | CE68: 273.539 | CF68: 0.0225 | CG68: 0.0004 | CH68: 0.0027 | CI68: 0.0057 | CJ68: 0.0004
T69: Morality Rate - All Causes (Aged 20-74) | U69: 392 | V69: #/100,000 people | X69: 25 | AJ69: Urban | AR69: 62 | AS69: 0.0353 | AT69: 0.1083 | BQ69: 61 | BR69: 0.7519 | BS69: 328.7321 | BT69: 0.0672 | BU69: 0.0012 | BV69: 0.0032 | BW69: 0.0151 | BX69: 0.0011 | CC69: 61 | CD69: 0.4455 | CE69: 275.3018 | CF69: 0.0227 | CG69: 0.0005 | CH69: 0.0027 | CI69: 0.0058 | CJ69: 0.0004
C70: Cost of Highway Accident | AG70: Mode | AH70: Trip Purpose | AJ70: South | AK70: North | AL70: Rural | AR70: 63 | AS70: 0.0356 | AT70: 0.1104 | AX70: Source: Combination of above four tables | BF70: Source: Taylor and Jain, 1991 | BQ70: 62 | BR70: 0.749 | BS70: 331.1477 | BT70: 0.0684 | BU70: 0.0012 | BV70: 0.0033 | BW70: 0.0156 | BX70: 0.0011 | CC70: 62 | CD70: 0.4408 | CE70: 277.076 | CF70: 0.0229 | CG70: 0.0005 | CH70: 0.0027 | CI70: 0.0059 | CJ70: 0.0004
D71: Fatal Accident | E71: =IF(ProjLoc=3,HwyFatCostR,HwyFatCostU) -> 13000000 | F71: $/accident | AG71: Cycling | AH71: Commuting | AJ71: 0.186 | AK71: 0.186 | AL71: 0.099 | AR71: 64 | AS71: 0.0358 | AT71: 0.1125 | BQ71: 63 | BR71: 0.746 | BS71: 333.5812 | BT71: 0.0697 | BU71: 0.0013 | BV71: 0.0033 | BW71: 0.016 | BX71: 0.0012 | CC71: 63 | CD71: 0.4362 | CE71: 278.8616 | CF71: 0.0231 | CG71: 0.0005 | CH71: 0.0028 | CI71: 0.0061 | CJ71: 0.0004
D72: Injury Accident | E72: =IF(ProjLoc=3,HwyInjCostR,HwyInjCostU) -> 173000 | F72: $/accident | R72: Sources: 19) 2017 National Household Travel Survey, 20) 2017 WHO HEAT Model Documentation, 21) Hood et al., 2011, 22) Heuman et al., 2005, | S72: Sources: 19) 2017 National Household Travel Survey, 20) 2017 WHO HEAT Model Documentation, 21) Hood et al., 2011, 22) Heuman et al., 2005, | T72: Sources: 19) 2017 National Household Travel Survey, 20) 2017 WHO HEAT Model Documentation, 21) Hood et al., 2011, 22) Heuman et al., 2005, | AH72: Recreation | AJ72: 0.461 | AK72: 0.461 | AL72: 0.622 | AR72: 65 | AS72: 0.0361 | AT72: 0.1146 | BQ72: 64 | BR72: 0.743 | BS72: 336.0325 | BT72: 0.071 | BU72: 0.0013 | BV72: 0.0033 | BW72: 0.0165 | BX72: 0.0012 | CC72: 64 | CD72: 0.4316 | CE72: 280.6587 | CF72: 0.0233 | CG72: 0.0005 | CH72: 0.0028 | CI72: 0.0062 | CJ72: 0.0005
D73: PDO Accident | E73: =IF(ProjLoc=3,HwyPDOCostR,HwyPDOCostU) -> 10400 | F73: $/accident | R73: 23) Maestas et al., 2018, 24) World Health Organization, 2003, 25) California Health and Human Services Agency, 2019 Final Deaths | S73: 23) Maestas et al., 2018, 24) World Health Organization, 2003, 25) California Health and Human Services Agency, 2019 Final Deaths | T73: 23) Maestas et al., 2018, 24) World Health Organization, 2003, 25) California Health and Human Services Agency, 2019 Final Deaths | AH73: Other Destination | AJ73: 0.353 | AK73: 0.353 | AL73: 0.279 | AR73: 66 | AS73: 0.0361 | AT73: 0.1138 | BQ73: 65 | BR73: 0.7401 | BS73: 338.5018 | BT73: 0.0723 | BU73: 0.0013 | BV73: 0.0033 | BW73: 0.0171 | BX73: 0.0012 | CC73: 65 | CD73: 0.4271 | CE73: 282.4673 | CF73: 0.0235 | CG73: 0.0005 | CH73: 0.0028 | CI73: 0.0064 | CJ73: 0.0005
D74: Average Cost | E74: =IF(ProjLoc=3,AvgAccCostR,AvgAccCostU) -> 120800 | F74: $/accident | AG74: Walking | AH74: Commuting | AJ74: 0.052 | AK74: 0.052 | AL74: 0.062 | AR74: 67 | AS74: 0.0362 | AT74: 0.113 | BQ74: 66 | BR74: 0.738 | BS74: 339.0778 | BT74: 0.0728 | BU74: 0.0014 | BV74: 0.0034 | BW74: 0.0172 | BX74: 0.0012 | CC74: 66 | CD74: 0.425 | CE74: 283.2451 | CF74: 0.0236 | CG74: 0.0005 | CH74: 0.0028 | CI74: 0.0065 | CJ74: 0.0005
AH75: Recreation | AJ75: 0.55 | AK75: 0.55 | AL75: 0.635 | AR75: 68 | AS75: 0.0363 | AT75: 0.1123 | BQ75: 67 | BR75: 0.7359 | BS75: 339.6547 | BT75: 0.0732 | BU75: 0.0014 | BV75: 0.0034 | BW75: 0.0173 | BX75: 0.0013 | CC75: 67 | CD75: 0.4229 | CE75: 284.025 | CF75: 0.0237 | CG75: 0.0005 | CH75: 0.0028 | CI75: 0.0066 | CJ75: 0.0005
C76: Statewide Highway Accident Rates | AH76: Other Destination | AJ76: 0.398 | AK76: 0.398 | AL76: 0.303 | AR76: 69 | AS76: 0.0364 | AT76: 0.1115 | BQ76: 68 | BR76: 0.7338 | BS76: 340.2326 | BT76: 0.0737 | BU76: 0.0014 | BV76: 0.0034 | BW76: 0.0175 | BX76: 0.0013 | CC76: 68 | CD76: 0.4208 | CE76: 284.807 | CF76: 0.0238 | CG76: 0.0005 | CH76: 0.0028 | CI76: 0.0067 | CJ76: 0.0005
D77: Fatal Accident | E77: =ROUND(1105/178281.76,3) -> 0.006 | F77: per mil veh-mi | H77: 14 | AR77: 70 | AS77: 0.0365 | AT77: 0.1107 | BQ77: 69 | BR77: 0.7318 | BS77: 340.8115 | BT77: 0.0742 | BU77: 0.0014 | BV77: 0.0034 | BW77: 0.0176 | BX77: 0.0013 | CC77: 69 | CD77: 0.4187 | CE77: 285.5912 | CF77: 0.0239 | CG77: 0.0005 | CH77: 0.0028 | CI77: 0.0068 | CJ77: 0.0005
D78: Injury Accident | E78: =ROUND(51378/178281.76,2) -> 0.29 | F78: per mil veh-mi | H78: 14 | BQ78: 70 | BR78: 0.7297 | BS78: 341.3914 | BT78: 0.0746 | BU78: 0.0014 | BV78: 0.0034 | BW78: 0.0178 | BX78: 0.0013 | CC78: 70 | CD78: 0.4166 | CE78: 286.3775 | CF78: 0.0241 | CG78: 0.0005 | CH78: 0.0028 | CI78: 0.0069 | CJ78: 0.0005
D79: PDO Accident | E79: =ROUND(98338/178281.76,2) -> 0.55 | F79: per mil veh-mi | H79: 14 | AF79: Source: 2017 National Household Travel Survey, California Sample | AQ79: * Includes motorcycles & motorhomes
D80: Non-Freeway | E80: 1.05 | F80: per mil veh-mi | H80: 15 | AQ80: Note: Five mph is best estimate for idling | BP80: Truck | BQ80: 0 | BR80: 1.315 | BS80: 11.0294 | BT80: 1.0065 | BU80: 0.0001 | BV80: 0.0001 | BW80: 0.0703 | BX80: 0.0001 | CB80: Truck | CC80: 0 | CD80: 0.6659 | CE80: 5.1023 | CF80: 0.7656 | CG80: 0 | CH80: 0.0001 | CI80: 0.0203 | CJ80: 0
BQ81: 5 | BR81: 2.3136 | BS81: 1696.8926 | BT81: 2.1959 | BU81: 0.0482 | BV81: 0.0164 | BW81: 0.3065 | BX81: 0.046 | CC81: 5 | CD81: 0.6516 | CE81: 865.1623 | CF81: 0.4277 | CG81: 0.01 | CH81: 0.0083 | CI81: 0.0478 | CJ81: 0.0095
AQ82: Source: California Air Resources Board, | BQ82: 6 | BR82: 2.2436 | BS82: 1668.3322 | BT82: 2.2233 | BU82: 0.0464 | BV82: 0.0161 | BW82: 0.2881 | BX82: 0.0443 | CC82: 6 | CD82: 0.6625 | CE82: 866.0485 | CF82: 0.5016 | CG82: 0.0097 | CH82: 0.0083 | CI82: 0.0465 | CJ82: 0.0092
B83: Sources: 1) Office of Management and Budget (OMB), 2) Review of OMB and State | AQ83: EMFAC2021, 2024 & 2044 average | BQ83: 7 | BR83: 2.1757 | BS83: 1640.2524 | BT83: 2.2511 | BU83: 0.0447 | BV83: 0.0157 | BW83: 0.2708 | BX83: 0.0426 | CC83: 7 | CD83: 0.6737 | CE83: 866.9357 | CF83: 0.5882 | CG83: 0.0094 | CH83: 0.0082 | CI83: 0.0453 | CJ83: 0.009
B84: Treasurer's Office data, 3) Bureau of Labor Statistics (BLS) OES, 4) BLS Employment | BQ84: 8 | BR84: 2.1098 | BS84: 1612.6453 | BT84: 2.2792 | BU84: 0.043 | BV84: 0.0154 | BW84: 0.2546 | BX84: 0.041 | CC84: 8 | CD84: 0.685 | CE84: 867.8238 | CF84: 0.6897 | CG84: 0.0091 | CH84: 0.0082 | CI84: 0.0441 | CJ84: 0.0087
B85: Cost Index, 5) USDOT Department Guidance, 6) California Department of Transportation | BQ85: 9 | BR85: 2.046 | BS85: 1585.5029 | BT85: 2.3076 | BU85: 0.0414 | BV85: 0.0151 | BW85: 0.2393 | BX85: 0.0395 | CC85: 9 | CD85: 0.6966 | CE85: 868.7128 | CF85: 0.8088 | CG85: 0.0088 | CH85: 0.0082 | CI85: 0.043 | CJ85: 0.0084
B86: TSI and Traffic Operations, 7) IDAS model, 8) AAA Daily Fuel Gauge Report, 9) California | BQ86: 10 | BR86: 1.9841 | BS86: 1558.8172 | BT86: 2.3365 | BU86: 0.0398 | BV86: 0.0148 | BW86: 0.2249 | BX86: 0.038 | CC86: 10 | CD86: 0.7083 | CE86: 869.6027 | CF86: 0.9484 | CG86: 0.0086 | CH86: 0.0081 | CI86: 0.0419 | CJ86: 0.0082
B87: Board of Equalization, 10) AAA Your Driving Costs, 11) American Transportation Research | BQ87: 11 | BR87: 1.8688 | BS87: 1490.2476 | BT87: 2.1839 | BU87: 0.0377 | BV87: 0.0141 | BW87: 0.2111 | BX87: 0.036 | CC87: 11 | CD87: 0.66 | CE87: 836.5388 | CF87: 0.8852 | CG87: 0.0083 | CH87: 0.0078 | CI87: 0.0398 | CJ87: 0.0079
B88: Institute, 12) USDOT VSL, 13) NHTSA, 14) TASAS summary 2013, 15) TASAS summary 2009 | BQ88: 12 | BR88: 1.7601 | BS88: 1424.6943 | BT88: 2.0413 | BU88: 0.0357 | BV88: 0.0135 | BW88: 0.1981 | BX88: 0.0341 | CC88: 12 | CD88: 0.615 | CE88: 804.7321 | CF88: 0.8261 | CG88: 0.008 | CH88: 0.0075 | CI88: 0.0378 | CJ88: 0.0077
BQ89: 13 | BR89: 1.6578 | BS89: 1362.0246 | BT89: 1.908 | BU89: 0.0338 | BV89: 0.0129 | BW89: 0.186 | BX89: 0.0323 | CC89: 13 | CD89: 0.5731 | CE89: 774.1348 | CF89: 0.771 | CG89: 0.0078 | CH89: 0.0073 | CI89: 0.0359 | CJ89: 0.0074
BQ90: 14 | BR90: 1.5615 | BS90: 1302.1116 | BT90: 1.7834 | BU90: 0.032 | BV90: 0.0124 | BW90: 0.1746 | BX90: 0.0306 | CC90: 14 | CD90: 0.534 | CE90: 744.7008 | CF90: 0.7196 | CG90: 0.0076 | CH90: 0.007 | CI90: 0.0341 | CJ90: 0.0072
BQ91: 15 | BR91: 1.4707 | BS91: 1244.834 | BT91: 1.667 | BU91: 0.0303 | BV91: 0.0118 | BW91: 0.1639 | BX91: 0.029 | CC91: 15 | CD91: 0.4976 | CE91: 716.386 | CF91: 0.6716 | CG91: 0.0073 | CH91: 0.0067 | CI91: 0.0324 | CJ91: 0.007
BQ92: 16 | BR92: 1.3769 | BS92: 1231.6228 | BT92: 1.6477 | BU92: 0.0282 | BV92: 0.0117 | BW92: 0.1517 | BX92: 0.0269 | CC92: 16 | CD92: 0.4584 | CE92: 707.567 | CF92: 0.6712 | CG92: 0.0069 | CH92: 0.0067 | CI92: 0.0303 | CJ92: 0.0066
BQ93: 17 | BR93: 1.289 | BS93: 1218.5517 | BT93: 1.6286 | BU93: 0.0262 | BV93: 0.0116 | BW93: 0.1404 | BX93: 0.0251 | CC93: 17 | CD93: 0.4222 | CE93: 698.8566 | CF93: 0.6709 | CG93: 0.0065 | CH93: 0.0066 | CI93: 0.0283 | CJ93: 0.0062
BQ94: 18 | BR94: 1.2067 | BS94: 1205.6194 | BT94: 1.6097 | BU94: 0.0244 | BV94: 0.0115 | BW94: 0.13 | BX94: 0.0233 | CC94: 18 | CD94: 0.389 | CE94: 690.2534 | CF94: 0.6706 | CG94: 0.0061 | CH94: 0.0065 | CI94: 0.0265 | CJ94: 0.0058
BQ95: 19 | BR95: 1.1297 | BS95: 1192.8244 | BT95: 1.591 | BU95: 0.0227 | BV95: 0.0113 | BW95: 0.1204 | BX95: 0.0217 | CC95: 19 | CD95: 0.3583 | CE95: 681.7562 | CF95: 0.6703 | CG95: 0.0057 | CH95: 0.0064 | CI95: 0.0247 | CJ95: 0.0055
BQ96: 20 | BR96: 1.0576 | BS96: 1180.1651 | BT96: 1.5726 | BU96: 0.0211 | BV96: 0.0112 | BW96: 0.1114 | BX96: 0.0201 | CC96: 20 | CD96: 0.33 | CE96: 673.3635 | CF96: 0.6699 | CG96: 0.0054 | CH96: 0.0063 | CI96: 0.0231 | CJ96: 0.0052
BQ97: 21 | BR97: 1.0154 | BS97: 1138.1322 | BT97: 1.5314 | BU97: 0.0208 | BV97: 0.0108 | BW97: 0.1089 | BX97: 0.0199 | CC97: 21 | CD97: 0.3157 | CE97: 654.8921 | CF97: 0.6323 | CG97: 0.0054 | CH97: 0.0062 | CI97: 0.023 | CJ97: 0.0051
BQ98: 22 | BR98: 0.9749 | BS98: 1097.5964 | BT98: 1.4913 | BU98: 0.0206 | BV98: 0.0104 | BW98: 0.1065 | BX98: 0.0197 | CC98: 22 | CD98: 0.3021 | CE98: 636.9274 | CF98: 0.5968 | CG98: 0.0053 | CH98: 0.006 | CI98: 0.0229 | CJ98: 0.0051
BQ99: 23 | BR99: 0.9361 | BS99: 1058.5043 | BT99: 1.4522 | BU99: 0.0204 | BV99: 0.0101 | BW99: 0.1041 | BX99: 0.0195 | CC99: 23 | CD99: 0.289 | CE99: 619.4555 | CF99: 0.5632 | CG99: 0.0053 | CH99: 0.0058 | CI99: 0.0227 | CJ99: 0.005
BQ100: 24 | BR100: 0.8988 | BS100: 1020.8046 | BT100: 1.4141 | BU100: 0.0201 | BV100: 0.0097 | BW100: 0.1017 | BX100: 0.0192 | CC100: 24 | CD100: 0.2765 | CE100: 602.4629 | CF100: 0.5316 | CG100: 0.0052 | CH100: 0.0057 | CI100: 0.0226 | CJ100: 0.005
BQ101: 25 | BR101: 0.8629 | BS101: 984.4475 | BT101: 1.3771 | BU101: 0.0199 | BV101: 0.0093 | BW101: 0.0995 | BX101: 0.019 | CC101: 25 | CD101: 0.2645 | CE101: 585.9364 | CF101: 0.5017 | CG101: 0.0052 | CH101: 0.0055 | CI101: 0.0225 | CJ101: 0.0049
BQ102: 26 | BR102: 0.8297 | BS102: 974.5904 | BT102: 1.3491 | BU102: 0.0188 | BV102: 0.0092 | BW102: 0.0935 | BX102: 0.018 | CC102: 26 | CD102: 0.2525 | CE102: 579.6648 | CF102: 0.4836 | CG102: 0.005 | CH102: 0.0054 | CI102: 0.0213 | CJ102: 0.0047
BQ103: 27 | BR103: 0.7977 | BS103: 964.8319 | BT103: 1.3216 | BU103: 0.0178 | BV103: 0.0091 | BW103: 0.0879 | BX103: 0.017 | CC103: 27 | CD103: 0.241 | CE103: 573.4603 | CF103: 0.4662 | CG103: 0.0047 | CH103: 0.0054 | CI103: 0.0202 | CJ103: 0.0045
BQ104: 28 | BR104: 0.767 | BS104: 955.1712 | BT104: 1.2948 | BU104: 0.0168 | BV104: 0.009 | BW104: 0.0827 | BX104: 0.0161 | CC104: 28 | CD104: 0.23 | CE104: 567.3222 | CF104: 0.4493 | CG104: 0.0045 | CH104: 0.0053 | CI104: 0.0191 | CJ104: 0.0043
BQ105: 29 | BR105: 0.7374 | BS105: 945.6072 | BT105: 1.2684 | BU105: 0.0159 | BV105: 0.0089 | BW105: 0.0777 | BX105: 0.0152 | CC105: 29 | CD105: 0.2196 | CE105: 561.2498 | CF105: 0.4331 | CG105: 0.0043 | CH105: 0.0053 | CI105: 0.0181 | CJ105: 0.0041
BQ106: 30 | BR106: 0.709 | BS106: 936.1389 | BT106: 1.2426 | BU106: 0.0151 | BV106: 0.0088 | BW106: 0.0731 | BX106: 0.0144 | CC106: 30 | CD106: 0.2096 | CE106: 555.2424 | CF106: 0.4175 | CG106: 0.0041 | CH106: 0.0052 | CI106: 0.0172 | CJ106: 0.0039
BQ107: 31 | BR107: 0.6779 | BS107: 941.2716 | BT107: 1.2298 | BU107: 0.0144 | BV107: 0.0089 | BW107: 0.0682 | BX107: 0.0137 | CC107: 31 | CD107: 0.2018 | CE107: 559.8303 | CF107: 0.4131 | CG107: 0.004 | CH107: 0.0052 | CI107: 0.0162 | CJ107: 0.0038
BQ108: 32 | BR108: 0.6482 | BS108: 946.4323 | BT108: 1.2171 | BU108: 0.0138 | BV108: 0.0089 | BW108: 0.0636 | BX108: 0.0131 | CC108: 32 | CD108: 0.1942 | CE108: 564.4561 | CF108: 0.4088 | CG108: 0.0039 | CH108: 0.0053 | CI108: 0.0153 | CJ108: 0.0038
BQ109: 33 | BR109: 0.6198 | BS109: 951.6214 | BT109: 1.2046 | BU109: 0.0131 | BV109: 0.0089 | BW109: 0.0593 | BX109: 0.0126 | CC109: 33 | CD109: 0.187 | CE109: 569.1201 | CF109: 0.4045 | CG109: 0.0039 | CH109: 0.0053 | CI109: 0.0144 | CJ109: 0.0037
BQ110: 34 | BR110: 0.5926 | BS110: 956.8389 | BT110: 1.1921 | BU110: 0.0126 | BV110: 0.009 | BW110: 0.0553 | BX110: 0.012 | CC110: 34 | CD110: 0.18 | CE110: 573.8226 | CF110: 0.4003 | CG110: 0.0038 | CH110: 0.0053 | CI110: 0.0136 | CJ110: 0.0036
BQ111: 35 | BR111: 0.5666 | BS111: 962.085 | BT111: 1.1798 | BU111: 0.012 | BV111: 0.009 | BW111: 0.0516 | BX111: 0.0115 | CC111: 35 | CD111: 0.1733 | CE111: 578.564 | CF111: 0.3961 | CG111: 0.0037 | CH111: 0.0054 | CI111: 0.0128 | CJ111: 0.0035
BQ112: 36 | BR112: 0.5505 | BS112: 967.4195 | BT112: 1.1663 | BU112: 0.0118 | BV112: 0.0091 | BW112: 0.0488 | BX112: 0.0113 | CC112: 36 | CD112: 0.1688 | CE112: 584.0671 | CF112: 0.3883 | CG112: 0.0038 | CH112: 0.0054 | CI112: 0.0122 | CJ112: 0.0036
BQ113: 37 | BR113: 0.5349 | BS113: 972.7836 | BT113: 1.1529 | BU113: 0.0116 | BV113: 0.0091 | BW113: 0.0462 | BX113: 0.011 | CC113: 37 | CD113: 0.1645 | CE113: 589.6225 | CF113: 0.3806 | CG113: 0.0038 | CH113: 0.0055 | CI113: 0.0116 | CJ113: 0.0037
BQ114: 38 | BR114: 0.5197 | BS114: 978.1775 | BT114: 1.1396 | BU114: 0.0113 | BV114: 0.0091 | BW114: 0.0437 | BX114: 0.0108 | CC114: 38 | CD114: 0.1603 | CE114: 595.2308 | CF114: 0.3731 | CG114: 0.0039 | CH114: 0.0055 | CI114: 0.0111 | CJ114: 0.0038
BQ115: 39 | BR115: 0.505 | BS115: 983.6013 | BT115: 1.1266 | BU115: 0.0111 | BV115: 0.0092 | BW115: 0.0413 | BX115: 0.0106 | CC115: 39 | CD115: 0.1561 | CE115: 600.8924 | CF115: 0.3658 | CG115: 0.004 | CH115: 0.0056 | CI115: 0.0105 | CJ115: 0.0038
BQ116: 40 | BR116: 0.4906 | BS116: 989.0551 | BT116: 1.1136 | BU116: 0.0109 | BV116: 0.0092 | BW116: 0.0391 | BX116: 0.0104 | CC116: 40 | CD116: 0.1521 | CE116: 606.6079 | CF116: 0.3586 | CG116: 0.0041 | CH116: 0.0056 | CI116: 0.01 | CJ116: 0.0039
C117: =0.00000110231131*($R117*FuelFreightRail*PARAMETERS!CQ44-$S117*VLOOKUP($U117,EmAuto1,2)+($V117-$W117)*VLOOKUP(0,EmAuto1,2)) -> 0 | BQ117: 41 | BR117: 0.4868 | BS117: 984.5077 | BT117: 1.0994 | BU117: 0.011 | BV117: 0.0092 | BW117: 0.0382 | BX117: 0.0105 | CC117: 41 | CD117: 0.1479 | CE117: 611.8629 | CF117: 0.353 | CG117: 0.0044 | CH117: 0.0057 | CI117: 0.0098 | CJ117: 0.0042
BQ118: 42 | BR118: 0.4829 | BS118: 979.9812 | BT118: 1.0854 | BU118: 0.0111 | BV118: 0.0091 | BW118: 0.0374 | BX118: 0.0106 | CC118: 42 | CD118: 0.1438 | CE118: 617.1633 | CF118: 0.3474 | CG118: 0.0046 | CH118: 0.0057 | CI118: 0.0096 | CJ118: 0.0044
BQ119: 43 | BR119: 0.4791 | BS119: 975.4754 | BT119: 1.0715 | BU119: 0.0111 | BV119: 0.0091 | BW119: 0.0366 | BX119: 0.0106 | CC119: 43 | CD119: 0.1399 | CE119: 622.5096 | CF119: 0.342 | CG119: 0.0049 | CH119: 0.0058 | CI119: 0.0094 | CJ119: 0.0047
BQ120: 44 | BR120: 0.4753 | BS120: 970.9904 | BT120: 1.0579 | BU120: 0.0112 | BV120: 0.0091 | BW120: 0.0359 | BX120: 0.0107 | CC120: 44 | CD120: 0.136 | CE120: 627.9023 | CF120: 0.3366 | CG120: 0.0052 | CH120: 0.0058 | CI120: 0.0093 | CJ120: 0.005
BQ121: 45 | BR121: 0.4716 | BS121: 966.5261 | BT121: 1.0444 | BU121: 0.0113 | BV121: 0.009 | BW121: 0.0351 | BX121: 0.0108 | CC121: 45 | CD121: 0.1323 | CE121: 633.3417 | CF121: 0.3314 | CG121: 0.0056 | CH121: 0.0059 | CI121: 0.0091 | CJ121: 0.0053
BQ122: 46 | BR122: 0.4762 | BS122: 930.2224 | BT122: 1.0417 | BU122: 0.0115 | BV122: 0.0087 | BW122: 0.0368 | BX122: 0.011 | CC122: 46 | CD122: 0.13 | CE122: 609.3532 | CF122: 0.3103 | CG122: 0.0057 | CH122: 0.0057 | CI122: 0.0093 | CJ122: 0.0054
BQ123: 47 | BR123: 0.4809 | BS123: 895.2823 | BT123: 1.0391 | BU123: 0.0118 | BV123: 0.0084 | BW123: 0.0386 | BX123: 0.0112 | CC123: 47 | CD123: 0.1278 | CE123: 586.2732 | CF123: 0.2906 | CG123: 0.0058 | CH123: 0.0055 | CI123: 0.0096 | CJ123: 0.0055
BQ124: 48 | BR124: 0.4857 | BS124: 861.6546 | BT124: 1.0364 | BU124: 0.012 | BV124: 0.0081 | BW124: 0.0405 | BX124: 0.0115 | CC124: 48 | CD124: 0.1256 | CE124: 564.0674 | CF124: 0.2722 | CG124: 0.0059 | CH124: 0.0053 | CI124: 0.0099 | CJ124: 0.0056
BQ125: 49 | BR125: 0.4905 | BS125: 829.2899 | BT125: 1.0338 | BU125: 0.0123 | BV125: 0.0078 | BW125: 0.0425 | BX125: 0.0117 | CC125: 49 | CD125: 0.1234 | CE125: 542.7027 | CF125: 0.2549 | CG125: 0.006 | CH125: 0.0051 | CI125: 0.0102 | CJ125: 0.0057
BQ126: 50 | BR126: 0.4953 | BS126: 798.141 | BT126: 1.0311 | BU126: 0.0125 | BV126: 0.0075 | BW126: 0.0445 | BX126: 0.012 | CC126: 50 | CD126: 0.1213 | CE126: 522.1472 | CF126: 0.2387 | CG126: 0.0061 | CH126: 0.0049 | CI126: 0.0105 | CJ126: 0.0058
BQ127: 51 | BR127: 0.4801 | BS127: 830.7086 | BT127: 1.0417 | BU127: 0.0131 | BV127: 0.0078 | BW127: 0.0425 | BX127: 0.0125 | CC127: 51 | CD127: 0.1184 | CE127: 546.1226 | CF127: 0.2548 | CG127: 0.0067 | CH127: 0.0051 | CI127: 0.0101 | CJ127: 0.0064
BQ128: 52 | BR128: 0.4653 | BS128: 864.6052 | BT128: 1.0523 | BU128: 0.0136 | BV128: 0.0081 | BW128: 0.0405 | BX128: 0.013 | CC128: 52 | CD128: 0.1156 | CE128: 571.1989 | CF128: 0.2719 | CG128: 0.0073 | CH128: 0.0053 | CI128: 0.0098 | CJ128: 0.007
BQ129: 53 | BR129: 0.451 | BS129: 899.8848 | BT129: 1.0631 | BU129: 0.0142 | BV129: 0.0085 | BW129: 0.0386 | BX129: 0.0136 | CC129: 53 | CD129: 0.1129 | CE129: 597.4266 | CF129: 0.2902 | CG129: 0.0079 | CH129: 0.0056 | CI129: 0.0094 | CJ129: 0.0076
BQ130: 54 | BR130: 0.4371 | BS130: 936.604 | BT130: 1.0739 | BU130: 0.0149 | BV130: 0.0088 | BW130: 0.0369 | BX130: 0.0142 | CC130: 54 | CD130: 0.1102 | CE130: 624.8585 | CF130: 0.3097 | CG130: 0.0087 | CH130: 0.0058 | CI130: 0.0091 | CJ130: 0.0083
BQ131: 55 | BR131: 0.4236 | BS131: 974.8216 | BT131: 1.0849 | BU131: 0.0155 | BV131: 0.0091 | BW131: 0.0352 | BX131: 0.0148 | CC131: 55 | CD131: 0.1076 | CE131: 653.5501 | CF131: 0.3306 | CG131: 0.0095 | CH131: 0.0061 | CI131: 0.0088 | CJ131: 0.0091
BQ132: 56 | BR132: 0.41 | BS132: 1022.8646 | BT132: 1.0832 | BU132: 0.0164 | BV132: 0.0096 | BW132: 0.0315 | BX132: 0.0157 | CC132: 56 | CD132: 0.1045 | CE132: 686.2747 | CF132: 0.3648 | CG132: 0.0105 | CH132: 0.0064 | CI132: 0.0085 | CJ132: 0.01
BQ133: 57 | BR133: 0.3969 | BS133: 1073.2754 | BT133: 1.0815 | BU133: 0.0173 | BV133: 0.0101 | BW133: 0.0282 | BX133: 0.0165 | CC133: 57 | CD133: 0.1015 | CE133: 720.6379 | CF133: 0.4025 | CG133: 0.0116 | CH133: 0.0067 | CI133: 0.0083 | CJ133: 0.0111
BQ134: 58 | BR134: 0.3841 | BS134: 1126.1707 | BT134: 1.0797 | BU134: 0.0183 | BV134: 0.0105 | BW134: 0.0252 | BX134: 0.0175 | CC134: 58 | CD134: 0.0986 | CE134: 756.7217 | CF134: 0.4442 | CG134: 0.0129 | CH134: 0.0071 | CI134: 0.008 | CJ134: 0.0123
BQ135: 59 | BR135: 0.3718 | BS135: 1181.6728 | BT135: 1.078 | BU135: 0.0193 | BV135: 0.0111 | BW135: 0.0226 | BX135: 0.0184 | CC135: 59 | CD135: 0.0957 | CE135: 794.6123 | CF135: 0.4902 | CG135: 0.0143 | CH135: 0.0074 | CI135: 0.0078 | CJ135: 0.0137
BQ136: 60 | BR136: 0.3599 | BS136: 1239.9103 | BT136: 1.0763 | BU136: 0.0203 | BV136: 0.0116 | BW136: 0.0202 | BX136: 0.0195 | CC136: 60 | CD136: 0.093 | CE136: 834.4002 | CF136: 0.5409 | CG136: 0.0158 | CH136: 0.0078 | CI136: 0.0076 | CJ136: 0.0151
BQ137: 61 | BR137: 0.3501 | BS137: 1264.0964 | BT137: 1.1266 | BU137: 0.0216 | BV137: 0.0118 | BW137: 0.0202 | BX137: 0.0206 | CC137: 61 | CD137: 0.0918 | CE137: 852.4879 | CF137: 0.5861 | CG137: 0.0169 | CH137: 0.008 | CI137: 0.0078 | CJ137: 0.0162
BQ138: 62 | BR138: 0.3406 | BS138: 1288.7544 | BT138: 1.1792 | BU138: 0.0229 | BV138: 0.0121 | BW138: 0.0201 | BX138: 0.0219 | CC138: 62 | CD138: 0.0907 | CE138: 870.9677 | CF138: 0.6351 | CG138: 0.0181 | CH138: 0.0082 | CI138: 0.0081 | CJ138: 0.0173
BQ139: 63 | BR139: 0.3313 | BS139: 1313.8933 | BT139: 1.2343 | BU139: 0.0243 | BV139: 0.0123 | BW139: 0.0201 | BX139: 0.0232 | CC139: 63 | CD139: 0.0896 | CE139: 889.8481 | CF139: 0.6882 | CG139: 0.0193 | CH139: 0.0083 | CI139: 0.0084 | CJ139: 0.0185
BQ140: 64 | BR140: 0.3223 | BS140: 1339.5226 | BT140: 1.292 | BU140: 0.0258 | BV140: 0.0126 | BW140: 0.0201 | BX140: 0.0247 | CC140: 64 | CD140: 0.0885 | CE140: 909.1377 | CF140: 0.7457 | CG140: 0.0206 | CH140: 0.0085 | CI140: 0.0086 | CJ140: 0.0197
BQ141: 65 | BR141: 0.3135 | BS141: 1365.6518 | BT141: 1.3524 | BU141: 0.0274 | BV141: 0.0128 | BW141: 0.02 | BX141: 0.0262 | CC141: 65 | CD141: 0.0874 | CE141: 928.8456 | CF141: 0.8081 | CG141: 0.022 | CH141: 0.0087 | CI141: 0.0089 | CJ141: 0.0211
BQ142: 66 | BR142: 0.3131 | BS142: 1350.2912 | BT142: 1.3589 | BU142: 0.0276 | BV142: 0.0127 | BW142: 0.0209 | BX142: 0.0264 | CC142: 66 | CD142: 0.0866 | CE142: 929.4837 | CF142: 0.8155 | CG142: 0.0223 | CH142: 0.0087 | CI142: 0.0091 | CJ142: 0.0213
BQ143: 67 | BR143: 0.3127 | BS143: 1335.1033 | BT143: 1.3655 | BU143: 0.0278 | BV143: 0.0125 | BW143: 0.0218 | BX143: 0.0266 | CC143: 67 | CD143: 0.0858 | CE143: 930.1224 | CF143: 0.823 | CG143: 0.0225 | CH143: 0.0087 | CI143: 0.0092 | CJ143: 0.0216
BQ144: 68 | BR144: 0.3124 | BS144: 1320.0862 | BT144: 1.3722 | BU144: 0.0281 | BV144: 0.0124 | BW144: 0.0228 | BX144: 0.0269 | CC144: 68 | CD144: 0.085 | CE144: 930.7614 | CF144: 0.8306 | CG144: 0.0228 | CH144: 0.0087 | CI144: 0.0094 | CJ144: 0.0218
BQ145: 69 | BR145: 0.312 | BS145: 1305.2381 | BT145: 1.3788 | BU145: 0.0283 | BV145: 0.0123 | BW145: 0.0238 | BX145: 0.0271 | CC145: 69 | CD145: 0.0842 | CE145: 931.4009 | CF145: 0.8383 | CG145: 0.023 | CH145: 0.0088 | CI145: 0.0095 | CJ145: 0.022
BQ146: 70 | BR146: 0.3116 | BS146: 1290.5569 | BT146: 1.3855 | BU146: 0.0286 | BV146: 0.0122 | BW146: 0.0248 | BX146: 0.0273 | CC146: 70 | CD146: 0.0834 | CE146: 932.0408 | CF146: 0.846 | CG146: 0.0233 | CH146: 0.0088 | CI146: 0.0097 | CJ146: 0.0223
BP148: Bus | BQ148: 0 | BR148: 1.7524 | BS148: 13.2318 | BT148: 0.5397 | BU148: 0.0001 | BV148: 0.0001 | BW148: 0.0815 | BX148: 0.0001 | CB148: Bus | CC148: 0 | CD148: 0.7539 | CE148: 6.0009 | CF148: 0.3925 | CG148: 0.0001 | CH148: 0.0001 | CI148: 0.0363 | CJ148: 0.0001
BQ149: 5 | BR149: 31.9638 | BS149: 5318.2891 | BT149: 4.1913 | BU149: 0.0385 | BV149: 0.0162 | BW149: 0.355 | BX149: 0.0368 | CC149: 5 | CD149: 4.4133 | CE149: 1358.904 | CF149: 0.8621 | CG149: 0.0056 | CH149: 0.0083 | CI149: 0.0694 | CJ149: 0.0053
BQ150: 6 | BR150: 29.9626 | BS150: 4954.2773 | BT150: 3.8723 | BU150: 0.0362 | BV150: 0.0157 | BW150: 0.3264 | BX150: 0.0346 | CC150: 6 | CD150: 3.5422 | CE150: 1229.3096 | CF150: 0.7928 | CG150: 0.0052 | CH150: 0.0079 | CI150: 0.061 | CJ150: 0.0049
BQ151: 7 | BR151: 28.0868 | BS151: 4615.1803 | BT151: 3.5776 | BU151: 0.0341 | BV151: 0.0153 | BW151: 0.3 | BX151: 0.0325 | CC151: 7 | CD151: 2.8431 | CE151: 1112.0741 | CF151: 0.729 | CG151: 0.0048 | CH151: 0.0075 | CI151: 0.0537 | CJ151: 0.0046
BQ152: 8 | BR152: 26.3284 | BS152: 4299.2929 | BT152: 3.3053 | BU152: 0.032 | BV152: 0.0149 | BW152: 0.2758 | BX152: 0.0306 | CC152: 8 | CD152: 2.282 | CE152: 1006.0191 | CF152: 0.6704 | CG152: 0.0045 | CH152: 0.0071 | CI152: 0.0472 | CJ152: 0.0042
BQ153: 9 | BR153: 24.6801 | BS153: 4005.0265 | BT153: 3.0537 | BU153: 0.0301 | BV153: 0.0145 | BW153: 0.2536 | BX153: 0.0287 | CC153: 9 | CD153: 1.8316 | CE153: 910.0782 | CF153: 0.6165 | CG153: 0.0042 | CH153: 0.0067 | CI153: 0.0415 | CJ153: 0.0039
BQ154: 10 | BR154: 23.1349 | BS154: 3730.9013 | BT154: 2.8213 | BU154: 0.0283 | BV154: 0.0141 | BW154: 0.2331 | BX154: 0.027 | CC154: 10 | CD154: 1.4701 | CE154: 823.2868 | CF154: 0.5669 | CG154: 0.0039 | CH154: 0.0063 | CI154: 0.0365 | CJ154: 0.0037
BQ155: 11 | BR155: 21.8499 | BS155: 3416.1438 | BT155: 2.5833 | BU155: 0.0253 | BV155: 0.0133 | BW155: 0.2059 | BX155: 0.0241 | CC155: 11 | CD155: 1.2749 | CE155: 759.9968 | CF155: 0.5047 | CG155: 0.0035 | CH155: 0.0059 | CI155: 0.0308 | CJ155: 0.0033
BQ156: 12 | BR156: 20.6362 | BS156: 3127.9409 | BT156: 2.3655 | BU156: 0.0226 | BV156: 0.0127 | BW156: 0.1819 | BX156: 0.0216 | CC156: 12 | CD156: 1.1056 | CE156: 701.5721 | CF156: 0.4493 | CG156: 0.0031 | CH156: 0.0055 | CI156: 0.0259 | CJ156: 0.0029
BQ157: 13 | BR157: 19.4899 | BS157: 2864.0522 | BT157: 2.166 | BU157: 0.0202 | BV157: 0.012 | BW157: 0.1606 | BX157: 0.0193 | CC157: 13 | CD157: 0.9588 | CE157: 647.6388 | CF157: 0.4 | CG157: 0.0028 | CH157: 0.0052 | CI157: 0.0219 | CJ157: 0.0026
BQ158: 14 | BR158: 18.4073 | BS158: 2622.4265 | BT158: 1.9833 | BU158: 0.018 | BV158: 0.0114 | BW158: 0.1419 | BX158: 0.0172 | CC158: 14 | CD158: 0.8315 | CE158: 597.8517 | CF158: 0.3561 | CG158: 0.0025 | CH158: 0.0048 | CI158: 0.0184 | CJ158: 0.0024
BQ159: 15 | BR159: 17.3848 | BS159: 2401.1855 | BT159: 1.816 | BU159: 0.0161 | BV159: 0.0108 | BW159: 0.1253 | BX159: 0.0154 | CC159: 15 | CD159: 0.7211 | CE159: 551.8919 | CF159: 0.3171 | CG159: 0.0022 | CH159: 0.0045 | CI159: 0.0155 | CJ159: 0.0021
BQ160: 16 | BR160: 19.1133 | BS160: 2343.2881 | BT160: 1.5686 | BU160: 0.0126 | BV160: 0.0092 | BW160: 0.1068 | BX160: 0.012 | CC160: 16 | CD160: 0.5336 | CE160: 427.0975 | CF160: 0.2446 | CG160: 0.0017 | CH160: 0.0035 | CI160: 0.0113 | CJ160: 0.0016
BQ161: 17 | BR161: 21.0138 | BS161: 2286.7867 | BT161: 1.3549 | BU161: 0.0098 | BV161: 0.0078 | BW161: 0.091 | BX161: 0.0093 | CC161: 17 | CD161: 0.3949 | CE161: 330.5218 | CF161: 0.1888 | CG161: 0.0013 | CH161: 0.0027 | CI161: 0.0082 | CJ161: 0.0012
BQ162: 18 | BR162: 23.1031 | BS162: 2231.6477 | BT162: 1.1703 | BU162: 0.0076 | BV162: 0.0066 | BW162: 0.0776 | BX162: 0.0073 | CC162: 18 | CD162: 0.2922 | CE162: 255.7839 | CF162: 0.1456 | CG162: 0.001 | CH162: 0.0021 | CI162: 0.006 | CJ162: 0.0009
BQ163: 19 | BR163: 25.4002 | BS163: 2177.8382 | BT163: 1.0108 | BU163: 0.006 | BV163: 0.0056 | BW163: 0.0661 | BX163: 0.0057 | CC163: 19 | CD163: 0.2162 | CE163: 197.9458 | CF163: 0.1124 | CG163: 0.0008 | CH163: 0.0017 | CI163: 0.0044 | CJ163: 0.0007
BQ164: 20 | BR164: 27.9257 | BS164: 2125.3262 | BT164: 0.8731 | BU164: 0.0046 | BV164: 0.0047 | BW164: 0.0563 | BX164: 0.0044 | CC164: 20 | CD164: 0.16 | CE164: 153.1861 | CF164: 0.0867 | CG164: 0.0006 | CH164: 0.0013 | CI164: 0.0032 | CJ164: 0.0005
BQ165: 21 | BR165: 21.3276 | BS165: 1958.9478 | BT165: 0.9662 | BU165: 0.0056 | BV165: 0.0055 | BW165: 0.0589 | BX165: 0.0053 | CC165: 21 | CD165: 0.1995 | CE165: 195.5079 | CF165: 0.11 | CG165: 0.0007 | CH165: 0.0016 | CI165: 0.0039 | CJ165: 0.0007
BQ166: 22 | BR166: 16.2884 | BS166: 1805.5941 | BT166: 1.0692 | BU166: 0.0067 | BV166: 0.0064 | BW166: 0.0616 | BX166: 0.0063 | CC166: 22 | CD166: 0.2487 | CE166: 249.5223 | CF166: 0.1395 | CG166: 0.0009 | CH166: 0.0021 | CI166: 0.0049 | CJ166: 0.0009
BQ167: 23 | BR167: 12.4399 | BS167: 1664.2455 | BT167: 1.1832 | BU167: 0.008 | BV167: 0.0075 | BW167: 0.0644 | BX167: 0.0076 | CC167: 23 | CD167: 0.31 | CE167: 318.4596 | CF167: 0.177 | CG167: 0.0012 | CH167: 0.0027 | CI167: 0.0061 | CJ167: 0.0011
BQ168: 24 | BR168: 9.5006 | BS168: 1533.9621 | BT168: 1.3094 | BU168: 0.0095 | BV168: 0.0087 | BW168: 0.0673 | BX168: 0.0091 | CC168: 24 | CD168: 0.3864 | CE168: 406.4427 | CF168: 0.2246 | CG168: 0.0015 | CH168: 0.0034 | CI168: 0.0076 | CJ168: 0.0014
BQ169: 25 | BR169: 7.2559 | BS169: 1413.8779 | BT169: 1.449 | BU169: 0.0114 | BV169: 0.0101 | BW169: 0.0704 | BX169: 0.0109 | CC169: 25 | CD169: 0.4817 | CE169: 518.7335 | CF169: 0.285 | CG169: 0.0019 | CH169: 0.0044 | CI169: 0.0094 | CJ169: 0.0018
BQ170: 26 | BR170: 7.1789 | BS170: 1378.7891 | BT170: 1.4072 | BU170: 0.0111 | BV170: 0.0099 | BW170: 0.0677 | BX170: 0.0106 | CC170: 26 | CD170: 0.4524 | CE170: 503.8763 | CF170: 0.2716 | CG170: 0.0018 | CH170: 0.0043 | CI170: 0.0089 | CJ170: 0.0017
BQ171: 27 | BR171: 7.1028 | BS171: 1344.571 | BT171: 1.3666 | BU171: 0.0108 | BV171: 0.0097 | BW171: 0.0651 | BX171: 0.0103 | CC171: 27 | CD171: 0.4249 | CE171: 489.4446 | CF171: 0.2589 | CG171: 0.0018 | CH171: 0.0042 | CI171: 0.0085 | CJ171: 0.0017
BQ172: 28 | BR172: 7.0275 | BS172: 1311.2022 | BT172: 1.3272 | BU172: 0.0105 | BV172: 0.0095 | BW172: 0.0626 | BX172: 0.01 | CC172: 28 | CD172: 0.3991 | CE172: 475.4262 | CF172: 0.2468 | CG172: 0.0017 | CH172: 0.004 | CI172: 0.0081 | CJ172: 0.0017
BQ173: 29 | BR173: 6.9529 | BS173: 1278.6615 | BT173: 1.289 | BU173: 0.0102 | BV173: 0.0094 | BW173: 0.0602 | BX173: 0.0097 | CC173: 29 | CD173: 0.3748 | CE173: 461.8094 | CF173: 0.2352 | CG173: 0.0017 | CH173: 0.0039 | CI173: 0.0077 | CJ173: 0.0016
BQ174: 30 | BR174: 6.8792 | BS174: 1246.9284 | BT174: 1.2518 | BU174: 0.0099 | BV174: 0.0092 | BW174: 0.0579 | BX174: 0.0095 | CC174: 30 | CD174: 0.352 | CE174: 448.5826 | CF174: 0.2242 | CG174: 0.0017 | CH174: 0.0038 | CI174: 0.0073 | CJ174: 0.0016
BQ175: 31 | BR175: 6.6944 | BS175: 1222.2643 | BT175: 1.234 | BU175: 0.01 | BV175: 0.0091 | BW175: 0.0564 | BX175: 0.0095 | CC175: 31 | CD175: 0.3357 | CE175: 444.9934 | CF175: 0.218 | CG175: 0.0017 | CH175: 0.0038 | CI175: 0.0071 | CJ175: 0.0016
BQ176: 32 | BR176: 6.5146 | BS176: 1198.088 | BT176: 1.2165 | BU176: 0.01 | BV176: 0.009 | BW176: 0.055 | BX176: 0.0096 | CC176: 32 | CD176: 0.3202 | CE176: 441.4329 | CF176: 0.2121 | CG176: 0.0017 | CH176: 0.0038 | CI176: 0.007 | CJ176: 0.0016
BQ177: 33 | BR177: 6.3396 | BS177: 1174.39 | BT177: 1.1992 | BU177: 0.0101 | BV177: 0.0089 | BW177: 0.0536 | BX177: 0.0096 | CC177: 33 | CD177: 0.3054 | CE177: 437.9009 | CF177: 0.2062 | CG177: 0.0018 | CH177: 0.0038 | CI177: 0.0068 | CJ177: 0.0017
BQ178: 34 | BR178: 6.1693 | BS178: 1151.1607 | BT178: 1.1822 | BU178: 0.0101 | BV178: 0.0088 | BW178: 0.0523 | BX178: 0.0097 | CC178: 34 | CD178: 0.2913 | CE178: 434.3972 | CF178: 0.2006 | CG178: 0.0018 | CH178: 0.0038 | CI178: 0.0066 | CJ178: 0.0017
BQ179: 35 | BR179: 6.0035 | BS179: 1128.3909 | BT179: 1.1654 | BU179: 0.0102 | BV179: 0.0087 | BW179: 0.051 | BX179: 0.0097 | CC179: 35 | CD179: 0.2779 | CE179: 430.9215 | CF179: 0.1951 | CG179: 0.0018 | CH179: 0.0037 | CI179: 0.0065 | CJ179: 0.0017
BQ180: 36 | BR180: 5.7912 | BS180: 1115.9714 | BT180: 1.1584 | BU180: 0.0103 | BV180: 0.0087 | BW180: 0.0498 | BX180: 0.0099 | CC180: 36 | CD180: 0.2673 | CE180: 436.4497 | CF180: 0.1926 | CG180: 0.0019 | CH180: 0.0038 | CI180: 0.0064 | CJ180: 0.0018
BQ181: 37 | BR181: 5.5864 | BS181: 1103.6886 | BT181: 1.1514 | BU181: 0.0104 | BV181: 0.0087 | BW181: 0.0487 | BX181: 0.01 | CC181: 37 | CD181: 0.2571 | CE181: 442.0488 | CF181: 0.1902 | CG181: 0.002 | CH181: 0.0039 | CI181: 0.0064 | CJ181: 0.0019
BQ182: 38 | BR182: 5.3889 | BS182: 1091.541 | BT182: 1.1445 | BU182: 0.0106 | BV182: 0.0087 | BW182: 0.0476 | BX182: 0.0101 | CC182: 38 | CD182: 0.2473 | CE182: 447.7198 | CF182: 0.1877 | CG182: 0.0021 | CH182: 0.0039 | CI182: 0.0063 | CJ182: 0.002
BQ183: 39 | BR183: 5.1983 | BS183: 1079.5271 | BT183: 1.1376 | BU183: 0.0107 | BV183: 0.0087 | BW183: 0.0466 | BX183: 0.0102 | CC183: 39 | CD183: 0.2378 | CE183: 453.4634 | CF183: 0.1854 | CG183: 0.0022 | CH183: 0.004 | CI183: 0.0063 | CJ183: 0.0021
BQ184: 40 | BR184: 5.0145 | BS184: 1067.6455 | BT184: 1.1308 | BU184: 0.0108 | BV184: 0.0087 | BW184: 0.0455 | BX184: 0.0103 | CC184: 40 | CD184: 0.2288 | CE184: 459.2808 | CF184: 0.183 | CG184: 0.0023 | CH184: 0.0041 | CI184: 0.0062 | CJ184: 0.0022
BQ185: 41 | BR185: 4.8804 | BS185: 1062.5605 | BT185: 1.1354 | BU185: 0.0109 | BV185: 0.0087 | BW185: 0.0446 | BX185: 0.0104 | CC185: 41 | CD185: 0.2233 | CE185: 464.4658 | CF185: 0.1794 | CG185: 0.0023 | CH185: 0.0041 | CI185: 0.0061 | CJ185: 0.0022
BQ186: 42 | BR186: 4.7499 | BS186: 1057.4997 | BT186: 1.1399 | BU186: 0.0109 | BV186: 0.0087 | BW186: 0.0436 | BX186: 0.0105 | CC186: 42 | CD186: 0.2179 | CE186: 469.7092 | CF186: 0.1759 | CG186: 0.0024 | CH186: 0.0042 | CI186: 0.006 | CJ186: 0.0023
BQ187: 43 | BR187: 4.6229 | BS187: 1052.463 | BT187: 1.1446 | BU187: 0.011 | BV187: 0.0087 | BW187: 0.0427 | BX187: 0.0105 | CC187: 43 | CD187: 0.2127 | CE187: 475.0119 | CF187: 0.1724 | CG187: 0.0025 | CH187: 0.0042 | CI187: 0.0059 | CJ187: 0.0024
BQ188: 44 | BR188: 4.4993 | BS188: 1047.4503 | BT188: 1.1492 | BU188: 0.0111 | BV188: 0.0087 | BW188: 0.0418 | BX188: 0.0106 | CC188: 44 | CD188: 0.2076 | CE188: 480.3744 | CF188: 0.1691 | CG188: 0.0026 | CH188: 0.0043 | CI188: 0.0059 | CJ188: 0.0025
BQ189: 45 | BR189: 4.3791 | BS189: 1042.4615 | BT189: 1.1538 | BU189: 0.0111 | BV189: 0.0088 | BW189: 0.0409 | BX189: 0.0106 | CC189: 45 | CD189: 0.2026 | CE189: 485.7975 | CF189: 0.1657 | CG189: 0.0027 | CH189: 0.0044 | CI189: 0.0058 | CJ189: 0.0026
BQ190: 46 | BR190: 4.3262 | BS190: 1046.1259 | BT190: 1.144 | BU190: 0.011 | BV190: 0.0088 | BW190: 0.0401 | BX190: 0.0105 | CC190: 46 | CD190: 0.2012 | CE190: 489.0084 | CF190: 0.1615 | CG190: 0.0028 | CH190: 0.0044 | CI190: 0.0057 | CJ190: 0.0026
BQ191: 47 | BR191: 4.274 | BS191: 1049.8033 | BT191: 1.1342 | BU191: 0.0109 | BV191: 0.0089 | BW191: 0.0392 | BX191: 0.0104 | CC191: 47 | CD191: 0.1997 | CE191: 492.2406 | CF191: 0.1573 | CG191: 0.0028 | CH191: 0.0044 | CI191: 0.0056 | CJ191: 0.0027
BQ192: 48 | BR192: 4.2223 | BS192: 1053.4936 | BT192: 1.1245 | BU192: 0.0107 | BV192: 0.0089 | BW192: 0.0384 | BX192: 0.0103 | CC192: 48 | CD192: 0.1983 | CE192: 495.4942 | CF192: 0.1532 | CG192: 0.0029 | CH192: 0.0045 | CI192: 0.0055 | CJ192: 0.0028
BQ193: 49 | BR193: 4.1714 | BS193: 1057.1969 | BT193: 1.1148 | BU193: 0.0106 | BV193: 0.009 | BW193: 0.0377 | BX193: 0.0101 | CC193: 49 | CD193: 0.1969 | CE193: 498.7693 | CF193: 0.1493 | CG193: 0.003 | CH193: 0.0045 | CI193: 0.0054 | CJ193: 0.0028
BQ194: 50 | BR194: 4.121 | BS194: 1060.9131 | BT194: 1.1053 | BU194: 0.0105 | BV194: 0.009 | BW194: 0.0369 | BX194: 0.01 | CC194: 50 | CD194: 0.1955 | CE194: 502.066 | CF194: 0.1454 | CG194: 0.003 | CH194: 0.0045 | CI194: 0.0054 | CJ194: 0.0029
BQ195: 51 | BR195: 4.0545 | BS195: 1079.6318 | BT195: 1.1102 | BU195: 0.0107 | BV195: 0.0092 | BW195: 0.0371 | BX195: 0.0102 | CC195: 51 | CD195: 0.1974 | CE195: 514.7106 | CF195: 0.1497 | CG195: 0.0032 | CH195: 0.0047 | CI195: 0.0054 | CJ195: 0.0031
BQ196: 52 | BR196: 3.9891 | BS196: 1098.6808 | BT196: 1.115 | BU196: 0.0108 | BV196: 0.0094 | BW196: 0.0373 | BX196: 0.0104 | CC196: 52 | CD196: 0.1995 | CE196: 527.6737 | CF196: 0.154 | CG196: 0.0034 | CH196: 0.0048 | CI196: 0.0055 | CJ196: 0.0033
BQ197: 53 | BR197: 3.9248 | BS197: 1118.0659 | BT197: 1.1199 | BU197: 0.011 | BV197: 0.0096 | BW197: 0.0374 | BX197: 0.0105 | CC197: 53 | CD197: 0.2015 | CE197: 540.9633 | CF197: 0.1585 | CG197: 0.0037 | CH197: 0.0049 | CI197: 0.0056 | CJ197: 0.0035
BQ198: 54 | BR198: 3.8615 | BS198: 1137.7929 | BT198: 1.1249 | BU198: 0.0112 | BV198: 0.0098 | BW198: 0.0376 | BX198: 0.0107 | CC198: 54 | CD198: 0.2036 | CE198: 554.5876 | CF198: 0.1632 | CG198: 0.0039 | CH198: 0.005 | CI198: 0.0057 | CJ198: 0.0037
BQ199: 55 | BR199: 3.7992 | BS199: 1157.8681 | BT199: 1.1298 | BU199: 0.0114 | BV199: 0.0101 | BW199: 0.0378 | BX199: 0.0109 | CC199: 55 | CD199: 0.2056 | CE199: 568.555 | CF199: 0.168 | CG199: 0.0041 | CH199: 0.0052 | CI199: 0.0058 | CJ199: 0.0039
BQ200: 56 | BR200: 3.683 | BS200: 1184.1948 | BT200: 1.1319 | BU200: 0.0118 | BV200: 0.0103 | BW200: 0.038 | BX200: 0.0113 | CC200: 56 | CD200: 0.1997 | CE200: 594.1363 | CF200: 0.1821 | CG200: 0.0046 | CH200: 0.0054 | CI200: 0.006 | CJ200: 0.0044
BQ201: 57 | BR201: 3.5703 | BS201: 1211.1202 | BT201: 1.1339 | BU201: 0.0122 | BV201: 0.0106 | BW201: 0.0382 | BX201: 0.0117 | CC201: 57 | CD201: 0.194 | CE201: 620.8686 | CF201: 0.1975 | CG201: 0.0051 | CH201: 0.0057 | CI201: 0.0062 | CJ201: 0.0048
BQ202: 58 | BR202: 3.4611 | BS202: 1238.6578 | BT202: 1.136 | BU202: 0.0127 | BV202: 0.0109 | BW202: 0.0384 | BX202: 0.0121 | CC202: 58 | CD202: 0.1885 | CE202: 648.8037 | CF202: 0.2141 | CG202: 0.0056 | CH202: 0.0059 | CI202: 0.0065 | CJ202: 0.0053
BQ203: 59 | BR203: 3.3552 | BS203: 1266.8214 | BT203: 1.138 | BU203: 0.0131 | BV203: 0.0113 | BW203: 0.0386 | BX203: 0.0125 | CC203: 59 | CD203: 0.1831 | CE203: 677.9957 | CF203: 0.2321 | CG203: 0.0062 | CH203: 0.0062 | CI203: 0.0067 | CJ203: 0.0059
... 13 more rows
